Workbook

Sheet guide
B2: Package: Reg Available functions: OutputLReg res = ols(y[], X[][], 0/1) where y[] is a range that represents dependable variable, X[][] is a range that represents exogenous variable, and 0/1 is an indicator whether constant is added or not to the regression; double[][] (double[]) get(OutputLReg res, String key) where key represents the key for a specific retrieved field. The following keys can be used: 1. table-standard: standard table output of the regression output; 2. stats: regression statistics; 3. y, yhat, res: dependent and projected variablles and residuals; 4. XX, XX-INV, COV: matrices (XT x X), (XT x X)-1 and covariance matrix of estimated coefficients; | I2: Wheather derivatives Definitions Heating degree day (HDD): a measure to quantify demand for energy needed to heat a building. HDD is derived based on the outside air temperature measurements that are made at specific locations (stations). HDD is derived relative to a bse temperature at which no heating is require. The base temperature is selected at 18-19oC or 65oF. HDD in weather derivatives is calculated as Daily HDD = MAX[0, 65oF - Tmean] Cooling degree day (CDD): similar to HDD, CDD is a measure to quantify demand for energy required to cool a building. Daily CDD = MAX[0, Tmean - 65oF] Stations where the temperature measurements are taken: EWR - Newark International airport, Ne Jersey; ORD - Chicago O'Hare airport, Chicago
I24: Valuation: 1. BS is not applicable because the underlying instrument (weather) is not tradeable; 2. Time series modelling is geerally applied for periods longer than few week+I2s. Implemented model specification is described as follows: Tt = Trendt + Seasonalt + Σl βl x Tt-l + σt where Tt is daily average temperature, trend is modelled using a linear function, seasonal component is modelled using low-order Fourier series and cyclical dynamics is modelled using auto-regression time series specification. Facts: 1. Seasonality is the key factor in predicting the weather; 2. Weather volatility displays certain persistance (seasonal heteroskedasticity); 3. No trend over last 15 years (different from campbell and diebold); 4. Weather displays strong cyclical persistence (AR(1) coefficient is arounf 0.8;

Sheet data
D2: =B4 -> WEUSKEWR ACTU Index | G2: =B5 -> WEUSKORD ACTU Index
B3: Weather Index | D3: Date | E3: Mean Temperature | G3: Date | H3: Mean Temperature
B4: WEUSKEWR ACTU Index | D4: 2017-04-17 | E4: 71 | G4: 2017-04-17 | H4: 69
B5: WEUSKORD ACTU Index | D5: 2017-04-16 | E5: 72.5 | G5: 2017-04-16 | H5: 63.95
D6: 2017-04-15 | E6: 57.45 | G6: 2017-04-15 | H6: 72.05
D7: 2017-04-14 | E7: 55 | G7: 2017-04-14 | H7: 56.45
D8: 2017-04-13 | E8: 56.48 | G8: 2017-04-13 | H8: 51.55
D9: 2017-04-12 | E9: 68.55 | G9: 2017-04-12 | H9: 48.5
D10: 2017-04-11 | E10: 70 | G10: 2017-04-11 | H10: 47.5
D11: 2017-04-10 | E11: 65 | G11: 2017-04-10 | H11: 59.5
D12: 2017-04-09 | E12: 55.05 | G12: 2017-04-09 | H12: 67
D13: 2017-04-08 | E13: 50 | G13: 2017-04-08 | H13: 52.5
D14: 2017-04-07 | E14: 44.96 | G14: 2017-04-07 | H14: 45.5
D15: 2017-04-06 | E15: 46.05 | G15: 2017-04-06 | H15: 44.5
D16: 2017-04-05 | E16: 54 | G16: 2017-04-05 | H16: 43.42
D17: 2017-04-04 | E17: 50 | G17: 2017-04-04 | H17: 49.5
D18: 2017-04-03 | E18: 53 | G18: 2017-04-03 | H18: 50
D19: 2017-04-02 | E19: 53 | G19: 2017-04-02 | H19: 51.5
D20: 2017-04-01 | E20: 42.98 | G20: 2017-04-01 | H20: 46.49
D21: 2017-03-31 | E21: 40 | G21: 2017-03-31 | H21: 40
D22: 2017-03-30 | E22: 43.52 | G22: 2017-03-30 | H22: 41.98
D23: 2017-03-29 | E23: 50.99 | G23: 2017-03-29 | H23: 41.99
D24: 2017-03-28 | E24: 44.95 | G24: 2017-03-28 | H24: 43
D25: 2017-03-27 | E25: 47.45 | G25: 2017-03-27 | H25: 47.05
D26: 2017-03-26 | E26: 41.56 | G26: 2017-03-26 | H26: 54.5
D27: 2017-03-25 | E27: 53.06 | G27: 2017-03-25 | H27: 44
D28: 2017-03-24 | E28: 44.42 | G28: 2017-03-24 | H28: 62
D29: 2017-03-23 | E29: 34 | G29: 2017-03-23 | H29: 39.5
D30: 2017-03-22 | E30: 36.5 | G30: 2017-03-22 | H30: 32.54
D31: 2017-03-21 | E31: 52.07 | G31: 2017-03-21 | H31: 43.52
D32: 2017-03-20 | E32: 44.51 | G32: 2017-03-20 | H32: 45.5
D33: 2017-03-19 | E33: 40.55 | G33: 2017-03-19 | H33: 41.02
D34: 2017-03-18 | E34: 33.53 | G34: 2017-03-18 | H34: 38.48
D35: 2017-03-17 | E35: 36.5 | G35: 2017-03-17 | H35: 43
D36: 2017-03-16 | E36: 32 | G36: 2017-03-16 | H36: 30
D37: 2017-03-15 | E37: 23.47 | G37: 2017-03-15 | H37: 24.53
D38: 2017-03-14 | E38: 27 | G38: 2017-03-14 | H38: 23.5
D39: 2017-03-13 | E39: 28.49 | G39: 2017-03-13 | H39: 29
D40: 2017-03-12 | E40: 25.95 | G40: 2017-03-12 | H40: 26.96
D41: 2017-03-11 | E41: 24.53 | G41: 2017-03-11 | H41: 24.98
D42: 2017-03-10 | E42: 36.5 | G42: 2017-03-10 | H42: 29.5
D43: 2017-03-09 | E43: 57 | G43: 2017-03-09 | H43: 35.49
D44: 2017-03-08 | E44: 55.5 | G44: 2017-03-08 | H44: 46.5
D45: 2017-03-07 | E45: 49.5 | G45: 2017-03-07 | H45: 54.5
D46: 2017-03-06 | E46: 32.99 | G46: 2017-03-06 | H46: 58.45
D47: 2017-03-05 | E47: 25.97 | G47: 2017-03-05 | H47: 46.05
D48: 2017-03-04 | E48: 24.5 | G48: 2017-03-04 | H48: 35.05
D49: 2017-03-03 | E49: 33.5 | G49: 2017-03-03 | H49: 27.05
D50: 2017-03-02 | E50: 50.5 | G50: 2017-03-02 | H50: 31
D51: 2017-03-01 | E51: 62.5 | G51: 2017-03-01 | H51: 43
D52: 2017-02-28 | E52: 52 | G52: 2017-02-28 | H52: 53.5
D53: 2017-02-27 | E53: 42.53 | G53: 2017-02-27 | H53: 40.5
D54: 2017-02-26 | E54: 39 | G54: 2017-02-26 | H54: 34.97
D55: 2017-02-25 | E55: 56 | G55: 2017-02-25 | H55: 28.05
D56: 2017-02-24 | E56: 63.5 | G56: 2017-02-24 | H56: 36.5
D57: 2017-02-23 | E57: 54.95 | G57: 2017-02-23 | H57: 48.45
D58: 2017-02-22 | E58: 50 | G58: 2017-02-22 | H58: 59
D59: 2017-02-21 | E59: 37.95 | G59: 2017-02-21 | H59: 57.45
D60: 2017-02-20 | E60: 46.5 | G60: 2017-02-20 | H60: 55.49
D61: 2017-02-19 | E61: 58.01 | G61: 2017-02-19 | H61: 52.07
D62: 2017-02-18 | E62: 48.02 | G62: 2017-02-18 | H62: 54.95
D63: 2017-02-17 | E63: 35.55 | G63: 2017-02-17 | H63: 46.94
D64: 2017-02-16 | E64: 33.5 | G64: 2017-02-16 | H64: 35.5
D65: 2017-02-15 | E65: 41.99 | G65: 2017-02-15 | H65: 30.5
D66: 2017-02-14 | E66: 34.52 | G66: 2017-02-14 | H66: 40.45
D67: 2017-02-13 | E67: 33.98 | G67: 2017-02-13 | H67: 34.52
D68: 2017-02-12 | E68: 35.95 | G68: 2017-02-12 | H68: 38.93
D69: 2017-02-11 | E69: 39 | G69: 2017-02-11 | H69: 41.45
D70: 2017-02-10 | E70: 25 | G70: 2017-02-10 | H70: 29.5
D71: 2017-02-09 | E71: 31 | G71: 2017-02-09 | H71: 18.94
D72: 2017-02-08 | E72: 52 | G72: 2017-02-08 | H72: 25.5
D73: 2017-02-07 | E73: 37.05 | G73: 2017-02-07 | H73: 41
D74: 2017-02-06 | E74: 44 | G74: 2017-02-06 | H74: 38.03
D75: 2017-02-05 | E75: 35.06 | G75: 2017-02-05 | H75: 31.01
D76: 2017-02-04 | E76: 28.48 | G76: 2017-02-04 | H76: 21.57
D77: 2017-02-03 | E77: 30.02 | G77: 2017-02-03 | H77: 21
D78: 2017-02-02 | E78: 38.93 | G78: 2017-02-02 | H78: 19.04
D79: 2017-02-01 | E79: 39 | G79: 2017-02-01 | H79: 29.48
D80: 2017-01-31 | E80: 28.5 | G80: 2017-01-31 | H80: 37
D81: 2017-01-30 | E81: 34.43 | G81: 2017-01-30 | H81: 26.05
D82: 2017-01-29 | E82: 37.5 | G82: 2017-01-29 | H82: 24.53
D83: 2017-01-28 | E83: 36.05 | G83: 2017-01-28 | H83: 26.5
D84: 2017-01-27 | E84: 40.5 | G84: 2017-01-27 | H84: 27.5
D85: 2017-01-26 | E85: 49.01 | G85: 2017-01-26 | H85: 32
D86: 2017-01-25 | E86: 44.49 | G86: 2017-01-25 | H86: 38.03
D87: 2017-01-24 | E87: 38.5 | G87: 2017-01-24 | H87: 35.95
D88: 2017-01-23 | E88: 41.5 | G88: 2017-01-23 | H88: 39.05
D89: 2017-01-22 | E89: 47.05 | G89: 2017-01-22 | H89: 41.99
D90: 2017-01-21 | E90: 45 | G90: 2017-01-21 | H90: 49.46
D91: 2017-01-20 | E91: 42.43 | G91: 2017-01-20 | H91: 40.5
D92: 2017-01-19 | E92: 43.52 | G92: 2017-01-19 | H92: 36
D93: 2017-01-18 | E93: 40 | G93: 2017-01-18 | H93: 33.01
D94: 2017-01-17 | E94: 39.45 | G94: 2017-01-17 | H94: 37.04
D95: 2017-01-16 | E95: 34.52 | G95: 2017-01-16 | H95: 33.5
D96: 2017-01-15 | E96: 35 | G96: 2017-01-15 | H96: 27.95
D97: 2017-01-14 | E97: 30.99 | G97: 2017-01-14 | H97: 28.04
D98: 2017-01-13 | E98: 47 | G98: 2017-01-13 | H98: 21.49
D99: 2017-01-12 | E99: 56.5 | G99: 2017-01-12 | H99: 23.5
D100: 2017-01-11 | E100: 46.5 | G100: 2017-01-11 | H100: 33.98
D101: 2017-01-10 | E101: 29.57 | G101: 2017-01-10 | H101: 38
D102: 2017-01-09 | E102: 17.5 | G102: 2017-01-09 | H102: 26
D103: 2017-01-08 | E103: 20.5 | G103: 2017-01-08 | H103: 10.5
D104: 2017-01-07 | E104: 23.09 | G104: 2017-01-07 | H104: 8.96
D105: 2017-01-06 | E105: 29.49 | G105: 2017-01-06 | H105: 4.5
D106: 2017-01-05 | E106: 29.58 | G106: 2017-01-05 | H106: 7.97
D107: 2017-01-04 | E107: 43.5 | G107: 2017-01-04 | H107: 13.01
D108: 2017-01-03 | E108: 41.55 | G108: 2017-01-03 | H108: 29
D109: 2017-01-02 | E109: 37.05 | G109: 2017-01-02 | H109: 32.54
D110: 2017-01-01 | E110: 41.5 | G110: 2017-01-01 | H110: 28.5
D111: 2016-12-31 | E111: 36.5 | G111: 2016-12-31 | H111: 32.45
D112: 2016-12-30 | E112: 36.5 | G112: 2016-12-30 | H112: 30.05
D113: 2016-12-29 | E113: 37.95 | G113: 2016-12-29 | H113: 32.53
D114: 2016-12-28 | E114: 38.04 | G114: 2016-12-28 | H114: 32
D115: 2016-12-27 | E115: 50 | G115: 2016-12-27 | H115: 23.99
D116: 2016-12-26 | E116: 38.48 | G116: 2016-12-26 | H116: 41
D117: 2016-12-25 | E117: 41.99 | G117: 2016-12-25 | H117: 34.97
D118: 2016-12-24 | E118: 41.54 | G118: 2016-12-24 | H118: 35.51
D119: 2016-12-23 | E119: 41 | G119: 2016-12-23 | H119: 31.03
D120: 2016-12-22 | E120: 41.54 | G120: 2016-12-22 | H120: 30.56
D121: 2016-12-21 | E121: 33.08 | G121: 2016-12-21 | H121: 27.5
D122: 2016-12-20 | E122: 25.97 | G122: 2016-12-20 | H122: 19.04
D123: 2016-12-19 | E123: 26.51 | G123: 2016-12-19 | H123: 1.05
D124: 2016-12-18 | E124: 44.96 | G124: 2016-12-18 | H124: 5.45
D125: 2016-12-17 | E125: 30.05 | G125: 2016-12-17 | H125: 19.49
D126: 2016-12-16 | E126: 22.1 | G126: 2016-12-16 | H126: 11.93
D127: 2016-12-15 | E127: 24.98 | G127: 2016-12-15 | H127: 3.5
D128: 2016-12-14 | E128: 37.04 | G128: 2016-12-14 | H128: 10.49
D129: 2016-12-13 | E129: 38.57 | G129: 2016-12-13 | H129: 11.93
D130: 2016-12-12 | E130: 37.58 | G130: 2016-12-12 | H130: 19.49
D131: 2016-12-11 | E131: 29.49 | G131: 2016-12-11 | H131: 27.41
D132: 2016-12-10 | E132: 30.02 | G132: 2016-12-10 | H132: 20.5
D133: 2016-12-09 | E133: 34.97 | G133: 2016-12-09 | H133: 21.5
D134: 2016-12-08 | E134: 38.59 | G134: 2016-12-08 | H134: 20.93
D135: 2016-12-07 | E135: 42.53 | G135: 2016-12-07 | H135: 24.45
D136: 2016-12-06 | E136: 40 | G136: 2016-12-06 | H136: 33
D137: 2016-12-05 | E137: 43.5 | G137: 2016-12-05 | H137: 32.45
D138: 2016-12-04 | E138: 43.52 | G138: 2016-12-04 | H138: 29.85
D139: 2016-12-03 | E139: 45.5 | G139: 2016-12-03 | H139: 31.47
D140: 2016-12-02 | E140: 45.48 | G140: 2016-12-02 | H140: 36.95
D141: 2016-12-01 | E141: 47.48 | G141: 2016-12-01 | H141: 38.03
D142: 2016-11-30 | E142: 54.5 | G142: 2016-11-30 | H142: 39.5
D143: 2016-11-29 | E143: 53.87 | G143: 2016-11-29 | H143: 50.55
D144: 2016-11-28 | E144: 42.98 | G144: 2016-11-28 | H144: 44.42
D145: 2016-11-27 | E145: 43.52 | G145: 2016-11-27 | H145: 38.03
D146: 2016-11-26 | E146: 46.49 | G146: 2016-11-26 | H146: 38.93
D147: 2016-11-25 | E147: 50 | G147: 2016-11-25 | H147: 37.04
D148: 2016-11-24 | E148: 42.53 | G148: 2016-11-24 | H148: 39.03
D149: 2016-11-23 | E149: 40.55 | G149: 2016-11-23 | H149: 40.8
D150: 2016-11-22 | E150: 40 | G150: 2016-11-22 | H150: 32
D151: 2016-11-21 | E151: 39.55 | G151: 2016-11-21 | H151: 31.46
D152: 2016-11-20 | E152: 38.49 | G152: 2016-11-20 | H152: 29.03
D153: 2016-11-19 | E153: 48.47 | G153: 2016-11-19 | H153: 33.53
D154: 2016-11-18 | E154: 55.5 | G154: 2016-11-18 | H154: 52.52
D155: 2016-11-17 | E155: 54.95 | G155: 2016-11-17 | H155: 58.05
D156: 2016-11-16 | E156: 52.52 | G156: 2016-11-16 | H156: 49.56
D157: 2016-11-15 | E157: 49.48 | G157: 2016-11-15 | H157: 45.95
D158: 2016-11-14 | E158: 50.02 | G158: 2016-11-14 | H158: 50.54
D159: 2016-11-13 | E159: 48.5 | G159: 2016-11-13 | H159: 45.5
D160: 2016-11-12 | E160: 45 | G160: 2016-11-12 | H160: 41.45
D161: 2016-11-11 | E161: 53 | G161: 2016-11-11 | H161: 44.51
D162: 2016-11-10 | E162: 49.5 | G162: 2016-11-10 | H162: 52
D163: 2016-11-09 | E163: 53 | G163: 2016-11-09 | H163: 49.46
D164: 2016-11-08 | E164: 53.5 | G164: 2016-11-08 | H164: 55.94
D165: 2016-11-07 | E165: 46 | G165: 2016-11-07 | H165: 54
D166: 2016-11-06 | E166: 51.5 | G166: 2016-11-06 | H166: 55.59
D167: 2016-11-05 | E167: 52.4 | G167: 2016-11-05 | H167: 55.5
D168: 2016-11-04 | E168: 54.5 | G168: 2016-11-04 | H168: 51.44
D169: 2016-11-03 | E169: 65.45 | G169: 2016-11-03 | H169: 57.45
D170: 2016-11-02 | E170: 62.05 | G170: 2016-11-02 | H170: 59.97
D171: 2016-11-01 | E171: 48.56 | G171: 2016-11-01 | H171: 68
D172: 2016-10-31 | E172: 50 | G172: 2016-10-31 | H172: 49.5
D173: 2016-10-30 | E173: 66.02 | G173: 2016-10-30 | H173: 48.5
D174: 2016-10-29 | E174: 51.53 | G174: 2016-10-29 | H174: 63.5
D175: 2016-10-28 | E175: 46.5 | G175: 2016-10-28 | H175: 51.5
D176: 2016-10-27 | E176: 49 | G176: 2016-10-27 | H176: 46.5
D177: 2016-10-26 | E177: 44.51 | G177: 2016-10-26 | H177: 48.02
D178: 2016-10-25 | E178: 48 | G178: 2016-10-25 | H178: 45
D179: 2016-10-24 | E179: 56.5 | G179: 2016-10-24 | H179: 49
D180: 2016-10-23 | E180: 54.5 | G180: 2016-10-23 | H180: 57.02
D181: 2016-10-22 | E181: 52.5 | G181: 2016-10-22 | H181: 48.56
D182: 2016-10-21 | E182: 64.5 | G182: 2016-10-21 | H182: 45.5
D183: 2016-10-20 | E183: 65.5 | G183: 2016-10-20 | H183: 50.5
D184: 2016-10-19 | E184: 75.56 | G184: 2016-10-19 | H184: 59.99
D185: 2016-10-18 | E185: 73.5 | G185: 2016-10-18 | H185: 65.48
D186: 2016-10-17 | E186: 71.51 | G186: 2016-10-17 | H186: 74.45
D187: 2016-10-16 | E187: 59 | G187: 2016-10-16 | H187: 68.5
D188: 2016-10-15 | E188: 53 | G188: 2016-10-15 | H188: 61.5
D189: 2016-10-14 | E189: 55 | G189: 2016-10-14 | H189: 51.98
D190: 2016-10-13 | E190: 59.9 | G190: 2016-10-13 | H190: 47.5
D191: 2016-10-12 | E191: 56.93 | G191: 2016-10-12 | H191: 57
D192: 2016-10-11 | E192: 53.5 | G192: 2016-10-11 | H192: 63.5
D193: 2016-10-10 | E193: 56.45 | G193: 2016-10-10 | H193: 58.01
D194: 2016-10-09 | E194: 59 | G194: 2016-10-09 | H194: 54.95
D195: 2016-10-08 | E195: 62.06 | G195: 2016-10-08 | H195: 52.4
D196: 2016-10-07 | E196: 63.5 | G196: 2016-10-07 | H196: 58.44
D197: 2016-10-06 | E197: 63.05 | G197: 2016-10-06 | H197: 66
D198: 2016-10-05 | E198: 59.99 | G198: 2016-10-05 | H198: 69.5
D199: 2016-10-04 | E199: 66.02 | G199: 2016-10-04 | H199: 67.55
D200: 2016-10-03 | E200: 67 | G200: 2016-10-03 | H200: 62
D201: 2016-10-02 | E201: 60.95 | G201: 2016-10-02 | H201: 60.5
... 6119 more rows

Sheet Aug
C2: OLS Data | H2: Explanatory variables | O2: OLS fitted data | S2: Data projections | AF2: Statistics
D4: Average | E4: =AVERAGE(E9:E535) -> 76.85694497 | F4: =AVERAGE(F9:F535) -> 73.18795066 | H4: π | I4: =PI() -> 3.141592654 | Q4: =AVERAGE(Q9:Q535) -> 12.96179007
D5: StDev | E5: =STDEV(E9:E535) -> 5.122489477 | F5: =STDEV(F9:F535) -> 5.23736622 | H5: p | I5: 1 | Q5: =SQRT(Q4) -> 3.600248613
C7: August | H7: ='ols A'!D10 -> -1.749243939 | I7: ='ols A'!D11 -> 3.193868142 | J7: ='ols A'!D12 -> 0.8008497427 | K7: ='ols A'!D13 -> -0.165138317 | L7: ='ols A'!D14 -> 49.60629859 | M7: ='ols A'!D15 -> -12.7855523 | O7: ='ols A'!D9 -> 27.77260662 | P7: =SUM(P9:P535) -> -4.670468456e-10 | U7: =SUM(U9:U39) -> 369.4943658
B8: # | C8: Year | D8: Date | E8: EWR: Aug | F8: ORD | H8: Linear | I8: Quadratic | J8: EWR T[t-1] | K8: EWR T[t-2] | L8: Aug 1st | M8: Aug 2nd | O8: EWR: Aug, fitted | P8: res | Q8: res2 | S8: Date | T8: EWR: proj | U8: CDD: µ | V8: Ak | W8: Bk | X8: CDD: σ factor | Y8: CDD: σ | Z8: CDD: x=-μ/σ | AA8: CDD mean | AB8: CDD s2 | AC8: CDD stdev | AD8: CDD cum: σ factor | AF8: Statistics | AG8: Value
B9: 1 | C9: 2016 | D9: =DATE(C9, 8, 31) -> 2016-08-31 | E9: =VLOOKUP($D9, data!$D$5:$E$6326,2, FALSE) -> 83 | F9: =VLOOKUP($D9, data!$G$5:$H$6326,2, FALSE) -> 69.5 | H9: =B9/31 -> 0.03225806452 | I9: =H9*H9 -> 0.001040582726 | J9: =E10 -> 76.5 | K9: =E11 -> 82.45 | L9: 0 | M9: 0 | O9: =$O$7+SUMPRODUCT(H$7:M$7, H9:M9) -> 75.36885396 | P9: =E9-O9 -> 7.631146045 | Q9: =P9*P9 -> 58.23438996 | S9: 2017-08-31 | T9: =$O$7+SUMPRODUCT(H$7:I$7, H9:I9) + $J$7*T10+$K$7*T11 -> 75.94959625 | U9: =T9-65 -> 10.94959625 | V9: =V10*$J$7+W10 -> -8.982615521e-12 | W9: =V10*$K$7 -> 4.020479994e-12 | X9: =SQRT(SUMPRODUCT(V9:V$39, V9:V$39)) -> 1.395944863 | Y9: =X9*$AG$17 -> 4.906755257 | Z9: =-U9/Y9 -> -2.231535032 | AA9: =U9*(1-NORMDIST(Z9, 0, 1, TRUE)) + Y9*NORMDIST(Z9, 0, 1, FALSE) -> 10.97150884 | AB9: =(U9*U9+Y9*Y9)*(1-NORMDIST(Z9, 0, 1, TRUE)) + 2*U9*Y9*NORMDIST(Z9, 0, 1, FALSE) -> 145.6784259 | AC9: =SQRT(AB9-AA9*AA9) -> 5.030349863 | AD9: =SUM(V9:V$39) -> 2.745076487 | AF9: Number of years | AG9: 17
B10: =B9+1 -> 2 | C10: =C9 -> 2016 | D10: =D9-1 -> 2016-08-30 | E10: =VLOOKUP($D10, data!$D$5:$E$6326,2, FALSE) -> 76.5 | F10: =VLOOKUP($D10, data!$G$5:$H$6326,2, FALSE) -> 77 | H10: 0.06451612903 | I10: =H10*H10 -> 0.004162330905 | J10: =E11 -> 82.45 | K10: =E12 -> 79.5 | L10: 0 | M10: 0 | O10: =$O$7+SUMPRODUCT(H$7:M$7, H10:M10) -> 80.57461119 | P10: =E10-O10 -> -4.074611188 | Q10: =P10*P10 -> 16.60245633 | S10: =S9-1 -> 2017-08-30 | T10: 75.84563886 | U10: =T10-65 -> 10.84563886 | V10: -2.434613641e-11 | W10: 1.051498156e-11 | X10: =SQRT(SUMPRODUCT(V10:V$39, V10:V$39)) -> 1.395944863 | Y10: =X10*$AG$17 -> 4.906755257 | Z10: -2.210348447 | AA10: 10.86892148 | AB10: 143.4758947 | AC10: =SQRT(AB10-AA10*AA10) -> 5.034127577 | AD10: =SUM(V10:V$39) -> 2.745076487 | AF10: Cumulative projected CDD | AG10: =SUM(AA9:AA39) -> 369.9765291
B11: =B10+1 -> 3 | C11: 2016 | D11: =D10-1 -> 2016-08-29 | E11: =VLOOKUP($D11, data!$D$5:$E$6326,2, FALSE) -> 82.45 | F11: =VLOOKUP($D11, data!$G$5:$H$6326,2, FALSE) -> 78 | H11: 0.09677419355 | I11: 0.009365244537 | J11: 79.5 | K11: 79.55 | L11: 0 | M11: 0 | O11: 78.16403773 | P11: 4.285962273 | Q11: 18.3694726 | S11: =S10-1 -> 2017-08-29 | T11: 75.7599279 | U11: 10.7599279 | V11: -6.36737842e-11 | W11: 2.664699728e-11 | X11: =SQRT(SUMPRODUCT(V11:V$39, V11:V$39)) -> 1.395944863 | Y11: 4.906755257 | Z11: -2.192880497 | AA11: 10.78439739 | AB11: 141.6771608 | AC11: 5.037254583 | AD11: =SUM(V11:V$39) -> 2.745076487 | AF11: Variance on Aug 1st | AG11: =SUMPRODUCT(L9:L535, Q9:Q535)/AG9 -> 26.26297578
B12: 4 | C12: 2016 | D12: 2016-08-28 | E12: =VLOOKUP($D12, data!$D$5:$E$6326,2, FALSE) -> 79.5 | F12: =VLOOKUP($D12, data!$G$5:$H$6326,2, FALSE) -> 77 | H12: 0.1290322581 | I12: 0.01664932362 | J12: 79.55 | K12: 85 | L12: 0 | M12: 0 | O12: 77.27091355 | P12: 2.229086449 | Q12: 4.968826398 | S12: 2017-08-28 | T12: 75.69246339 | U12: 10.69246339 | V12: -1.613616861e-10 | W12: 6.55526806e-11 | X12: =SQRT(SUMPRODUCT(V12:V$39, V12:V$39)) -> 1.395944863 | Y12: 4.906755257 | Z12: -2.179131182 | AA12: 10.71790492 | AB12: 140.2722745 | AC12: 5.039721099 | AD12: =SUM(V12:V$39) -> 2.745076487 | AF12: StDev on Aug 1st | AG12: =SQRT(AG11) -> 5.124741533
B13: 5 | C13: 2016 | D13: 2016-08-27 | E13: =VLOOKUP($D13, data!$D$5:$E$6326,2, FALSE) -> 79.55 | F13: =VLOOKUP($D13, data!$G$5:$H$6326,2, FALSE) -> 75.47 | H13: 0.1612903226 | I13: 0.02601456816 | J13: 85 | K13: 77.45 | L13: 0 | M13: 0 | O13: 82.85582307 | P13: -3.305823074 | Q13: 10.9284662 | S13: 2017-08-27 | T13: 75.6432453 | U13: 10.6432453 | V13: -3.969562109e-10 | W13: 1.565405932e-10 | X13: =SQRT(SUMPRODUCT(V13:V$39, V13:V$39)) -> 1.395944863 | Y13: 4.906755257 | Z13: -2.169100504 | AA13: 10.66941765 | AB13: 139.253419 | AC13: 5.041522194 | AD13: =SUM(V13:V$39) -> 2.745076488 | AF13: AR(1) coefficient | AG13: =J7 -> 0.8008497427
B14: 6 | C14: 2016 | D14: 2016-08-26 | E14: =VLOOKUP($D14, data!$D$5:$E$6326,2, FALSE) -> 85 | F14: =VLOOKUP($D14, data!$G$5:$H$6326,2, FALSE) -> 73.48 | H14: 0.1935483871 | I14: 0.03746097815 | J14: 77.45 | K14: 76.46 | L14: 0 | M14: 0 | O14: 76.95302555 | P14: 8.046974449 | Q14: 64.75379778 | S14: 2017-08-26 | T14: 75.61227365 | U14: 10.61227365 | V14: -9.479362274e-10 | W14: 3.621982729e-10 | X14: =SQRT(SUMPRODUCT(V14:V$39, V14:V$39)) -> 1.395944863 | Y14: 4.906755257 | Z14: -2.162788461 | AA14: 10.63891546 | AB14: 138.6149008 | AC14: 5.042655902 | AD14: =SUM(V14:V$39) -> 2.745076488 | AF14: AR(2) coefficient | AG14: =K7 -> -0.165138317
B15: 7 | C15: 2016 | D15: 2016-08-25 | E15: =VLOOKUP($D15, data!$D$5:$E$6326,2, FALSE) -> 77.45 | F15: =VLOOKUP($D15, data!$G$5:$H$6326,2, FALSE) -> 76 | H15: 0.2258064516 | I15: 0.05098855359 | J15: 76.46 | K15: 71.51 | L15: 0 | M15: 0 | O15: 76.96439704 | P15: 0.4856029562 | Q15: 0.2358102311 | S15: 2017-08-25 | T15: 75.59954844 | U15: 10.59954844 | V15: -2.193302435e-09 | W15: 8.085694636e-10 | X15: =SQRT(SUMPRODUCT(V15:V$39, V15:V$39)) -> 1.395944863 | Y15: 4.906755257 | Z15: -2.160195055 | AA15: 10.62638531 | AB15: 138.3531415 | AC15: 5.043121721 | AD15: =SUM(V15:V$39) -> 2.745076489 | AF15: AR(1) cumulative | AG15: =1/(1-AG13) -> 5.02133421
B16: 8 | C16: 2016 | D16: 2016-08-24 | E16: =VLOOKUP($D16, data!$D$5:$E$6326,2, FALSE) -> 76.46 | F16: =VLOOKUP($D16, data!$G$5:$H$6326,2, FALSE) -> 77 | H16: 0.2580645161 | I16: 0.06659729448 | J16: 71.51 | K16: 73.94 | L16: 0 | M16: 0 | O16: 72.59232974 | P16: 3.867670256 | Q16: 14.95887321 | S16: 2017-08-24 | T16: 75.60506967 | U16: 10.60506967 | V16: -4.896316483e-09 | W16: 1.72791136e-09 | X16: =SQRT(SUMPRODUCT(V16:V$39, V16:V$39)) -> 1.395944863 | Y16: 4.906755257 | Z16: -2.161320284 | AA16: 10.63182175 | AB16: 138.4666719 | AC16: 5.042919612 | AD16: =SUM(V16:V$39) -> 2.745076491 | AF16: Variance on days other than Aug 1st | AG16: =(SUM(Q9:Q533) - AG11*AG9) / (30*AG9) -> 12.35527064
B17: 9 | C17: 2016 | D17: 2016-08-23 | E17: =VLOOKUP($D17, data!$D$5:$E$6326,2, FALSE) -> 71.51 | F17: =VLOOKUP($D17, data!$G$5:$H$6326,2, FALSE) -> 70.5 | H17: 0.2903225806 | I17: 0.08428720083 | J17: 73.94 | K17: 80.51 | L17: 0 | M17: 0 | O17: 73.45350788 | P17: -1.94350788 | Q17: 3.777222879 | S17: 2017-08-23 | T17: 75.62883733 | U17: 10.62883733 | V17: -1.046341873e-08 | W17: 3.483309718e-09 | X17: =SQRT(SUMPRODUCT(V17:V$39, V17:V$39)) -> 1.395944863 | Y17: 4.906755257 | Z17: -2.16616415 | AA17: 10.65522714 | AB17: 138.9561294 | AC17: 5.042049579 | AD17: =SUM(V17:V$39) -> 2.745076496 | AF17: StDev on days other than Aug 1st | AG17: =SQRT(AG16) -> 3.515006492
B18: 10 | C18: 2016 | D18: 2016-08-22 | E18: =VLOOKUP($D18, data!$D$5:$E$6326,2, FALSE) -> 73.94 | F18: =VLOOKUP($D18, data!$G$5:$H$6326,2, FALSE) -> 67 | H18: 0.3225806452 | I18: 0.1040582726 | J18: 80.51 | K18: 79.52 | L18: 0 | M18: 0 | O18: 78.8852966 | P18: -4.945296596 | Q18: 24.45595842 | S18: 2017-08-22 | T18: 75.67085143 | U18: 10.67085143 | V18: -2.10932858e-08 | W18: 6.429133771e-09 | X18: =SQRT(SUMPRODUCT(V18:V$39, V18:V$39)) -> 1.395944863 | Y18: 4.906755257 | Z18: -2.174726652 | AA18: 10.69661159 | AB18: 139.8242592 | AC18: 5.040511854 | AD18: =SUM(V18:V$39) -> 2.745076506 | AF18: Cumulative CDD StDev | AG18: =AG17*SQRT(SUMPRODUCT(AD9:AD39, AD9:AD39)) -> 51.93966494
B19: 11 | C19: 2016 | D19: 2016-08-21 | E19: =VLOOKUP($D19, data!$D$5:$E$6326,2, FALSE) -> 80.51 | F19: =VLOOKUP($D19, data!$G$5:$H$6326,2, FALSE) -> 67 | H19: 0.3548387097 | I19: 0.1259105099 | J19: 79.52 | K19: 82 | L19: 0 | M19: 0 | O19: 77.69627826 | P19: 2.813721735 | Q19: 7.917030003 | S19: 2017-08-21 | T19: 75.73111198 | U19: 10.73111198 | V19: -3.893181115e-08 | W19: 1.008524514e-08 | X19: =SQRT(SUMPRODUCT(V19:V$39, V19:V$39)) -> 1.395944863 | Y19: 4.906755257 | Z19: -2.187007792 | AA19: 10.75599251 | AB19: 141.075919 | AC19: 5.038307671 | AD19: =SUM(V19:V$39) -> 2.745076528
B20: 12 | C20: 2016 | D20: 2016-08-20 | E20: =VLOOKUP($D20, data!$D$5:$E$6326,2, FALSE) -> 79.52 | F20: =VLOOKUP($D20, data!$G$5:$H$6326,2, FALSE) -> 71.5 | H20: 0.3870967742 | I20: 0.1498439126 | J20: 82 | K20: 80.05 | L20: 0 | M20: 0 | O20: 80.02441825 | P20: -0.5044182536 | Q20: 0.2544377745 | S20: 2017-08-20 | T20: 75.80961899 | U20: 10.80961899 | V20: -6.107150249e-08 | W20: 9.977285907e-09 | X20: =SQRT(SUMPRODUCT(V20:V$39, V20:V$39)) -> 1.395944863 | Y20: 4.906755257 | Z20: -2.203007573 | AA20: 10.83339395 | AB20: 142.7180864 | AC20: 5.035440582 | AD20: =SUM(V20:V$39) -> 2.745076566
B21: 13 | C21: 2016 | D21: 2016-08-19 | E21: =VLOOKUP($D21, data!$D$5:$E$6326,2, FALSE) -> 82 | F21: =VLOOKUP($D21, data!$G$5:$H$6326,2, FALSE) -> 75 | H21: 0.4193548387 | I21: 0.1758584807 | J21: 80.05 | K21: 82 | L21: 0 | M21: 0 | O21: 78.16740141 | P21: 3.832598586 | Q21: 14.68881192 | S21: 2017-08-19 | T21: 75.90637248 | U21: 10.90637248 | V21: -6.041775214e-08 | W21: -1.268596123e-08 | X21: =SQRT(SUMPRODUCT(V21:V$39, V21:V$39)) -> 1.395944863 | Y21: 4.906755257 | Z21: -2.222725998 | AA21: 10.92884565 | AB21: 144.7598682 | AC21: 5.031918208 | AD21: =SUM(V21:V$39) -> 2.745076628
B22: 14 | C22: 2016 | D22: 2016-08-18 | E22: =VLOOKUP($D22, data!$D$5:$E$6326,2, FALSE) -> 80.05 | F22: =VLOOKUP($D22, data!$G$5:$H$6326,2, FALSE) -> 77.45 | H22: 0.4516129032 | I22: 0.2039542144 | J22: 82 | K22: 85.01 | L22: 0 | M22: 0 | O22: 79.26529892 | P22: 0.7847010776 | Q22: 0.6157557811 | S22: 2017-08-18 | T22: 76.02137246 | U22: 11.02137246 | V22: 7.682021629e-08 | W22: -1.219392026e-07 | X22: =SQRT(SUMPRODUCT(V22:V$39, V22:V$39)) -> 1.395944863 | Y22: 4.906755257 | Z22: -2.246163072 | AA22: 11.04238185 | AB22: 147.2125102 | AC22: 5.027754296 | AD22: =SUM(V22:V$39) -> 2.745076688
B23: 15 | C23: 2016 | D23: 2016-08-17 | E23: =VLOOKUP($D23, data!$D$5:$E$6326,2, FALSE) -> 82 | F23: =VLOOKUP($D23, data!$G$5:$H$6326,2, FALSE) -> 79 | H23: 0.4838709677 | I23: 0.2341311134 | J23: 85.01 | K23: 85.45 | L23: 0 | M23: 0 | O23: 81.6431496 | P23: 0.3568503988 | Q23: 0.1273422071 | S23: 2017-08-17 | T23: 76.15461894 | U23: 11.15461894 | V23: 7.384064751e-07 | W23: -5.145324193e-07 | X23: =SQRT(SUMPRODUCT(V23:V$39, V23:V$39)) -> 1.395944863 | Y23: 4.906755257 | Z23: -2.273318792 | AA23: 11.17403991 | AB23: 150.0894047 | AC23: 5.022970901 | AD23: =SUM(V23:V$39) -> 2.745076611
B24: 16 | C24: 2016 | D24: 2016-08-16 | E24: =VLOOKUP($D24, data!$D$5:$E$6326,2, FALSE) -> 85.01 | F24: =VLOOKUP($D24, data!$G$5:$H$6326,2, FALSE) -> 79.55 | H24: 0.5161290323 | I24: 0.2663891779 | J24: 85.45 | K24: 88.5 | L24: 0 | M24: 0 | O24: 81.5384524 | P24: 3.471547598 | Q24: 12.05164273 | S24: 2017-08-16 | T24: 76.30611173 | U24: 11.30611173 | V24: 3.115766399e-06 | W24: -1.756854243e-06 | X24: =SQRT(SUMPRODUCT(V24:V$39, V24:V$39)) -> 1.395944863 | Y24: 4.906755257 | Z24: -2.304193124 | AA24: 11.3238588 | AB24: 153.406093 | AC24: 5.017600511 | AD24: =SUM(V24:V$39) -> 2.745075873
B25: 17 | C25: 2016 | D25: 2016-08-15 | E25: =VLOOKUP($D25, data!$D$5:$E$6326,2, FALSE) -> 85.45 | F25: =VLOOKUP($D25, data!$G$5:$H$6326,2, FALSE) -> 72.5 | H25: 0.5483870968 | I25: 0.3007284079 | J25: 88.5 | K25: 88.5 | L25: 0 | M25: 0 | O25: 84.03429187 | P25: 1.415708134 | Q25: 2.004229521 | S25: 2017-08-15 | T25: 76.47585006 | U25: 11.47585006 | V25: 1.063868323e-05 | W25: -5.404220326e-06 | X25: =SQRT(SUMPRODUCT(V25:V$39, V25:V$39)) -> 1.395944863 | Y25: 4.906755257 | Z25: -2.33878591 | AA25: 11.49187712 | AB25: 157.1802552 | AC25: 5.011687896 | AD25: =SUM(V25:V$39) -> 2.745072757
B26: 18 | C26: 2016 | D26: 2016-08-14 | E26: =VLOOKUP($D26, data!$D$5:$E$6326,2, FALSE) -> 88.5 | F26: =VLOOKUP($D26, data!$G$5:$H$6326,2, FALSE) -> 76 | H26: 0.5806451613 | I26: 0.3371488033 | J26: 88.5 | K26: 85.5 | L26: 0 | M26: 0 | O26: 84.58960153 | P26: 3.910398466 | Q26: 15.29121616 | S26: 2017-08-14 | T26: 76.6638312 | U26: 11.6638312 | V26: 3.272541723e-05 | W26: -1.556945874e-05 | X26: =SQRT(SUMPRODUCT(V26:V$39, V26:V$39)) -> 1.395944863 | Y26: 4.906755257 | Z26: -2.377096592 | AA26: 11.67813036 | AB26: 161.4316713 | AC26: 5.005291471 | AD26: =SUM(V26:V$39) -> 2.745062118
B27: 19 | C27: 2016 | D27: 2016-08-13 | E27: =VLOOKUP($D27, data!$D$5:$E$6326,2, FALSE) -> 88.5 | F27: =VLOOKUP($D27, data!$G$5:$H$6326,2, FALSE) -> 77.95 | H27: 0.6129032258 | I27: 0.3756503642 | J27: 85.5 | K27: 85.5 | L27: 0 | M27: 0 | O27: 82.25359399 | P27: 6.246406009 | Q27: 39.01758804 | S27: 2017-08-13 | T27: 76.87004659 | U27: 11.87004659 | V27: 9.428132141e-05 | W27: -4.277975476e-05 | X27: =SQRT(SUMPRODUCT(V27:V$39, V27:V$39)) -> 1.395944863 | Y27: 4.906755256 | Z27: -2.419123428 | AA27: 11.88264573 | AB27: 166.182112 | AC27: 4.998484024 | AD27: =SUM(V27:V$39) -> 2.745029393
B28: 20 | C28: 2016 | D28: 2016-08-12 | E28: =VLOOKUP($D28, data!$D$5:$E$6326,2, FALSE) -> 85.5 | F28: =VLOOKUP($D28, data!$G$5:$H$6326,2, FALSE) -> 78.5 | H28: 0.6451612903 | I28: 0.4162330905 | J28: 85.5 | K28: 82.49 | L28: 0 | M28: 0 | O28: 82.82384898 | P28: 2.676151022 | Q28: 7.161784294 | S28: 2017-08-12 | T28: 77.09447134 | U28: 12.09447134 | V28: 0.0002590540798 | W28: -0.0001131820717 | X28: =SQRT(SUMPRODUCT(V28:V$39, V28:V$39)) -> 1.39594486 | Y28: 4.906755244 | Z28: -2.464861346 | AA28: 12.10543048 | AB28: 171.4550489 | AC28: 4.991352705 | AD28: =SUM(V28:V$39) -> 2.744935112
B29: 21 | C29: 2016 | D29: 2016-08-11 | E29: =VLOOKUP($D29, data!$D$5:$E$6326,2, FALSE) -> 85.5 | F29: =VLOOKUP($D29, data!$G$5:$H$6326,2, FALSE) -> 82.49 | H29: 0.6774193548 | I29: 0.4588969823 | J29: 82.49 | K29: 77.55 | L29: 0 | M29: 0 | O29: 81.30891016 | P29: 4.191089841 | Q29: 17.56523405 | S29: 2017-08-11 | T29: 77.3370364 | U29: 12.3370364 | V29: 0.0006853774083 | W29: -0.0002898302413 | X29: =SQRT(SUMPRODUCT(V29:V$39, V29:V$39)) -> 1.395944836 | Y29: 4.90675516 | Z29: -2.514296311 | AA29: 12.3464433 | AB29: 177.2749016 | AC29: 4.983998351 | AD29: =SUM(V29:V$39) -> 2.744676057
B30: 22 | C30: 2016 | D30: 2016-08-10 | E30: =VLOOKUP($D30, data!$D$5:$E$6326,2, FALSE) -> 82.49 | F30: =VLOOKUP($D30, data!$G$5:$H$6326,2, FALSE) -> 79.07 | H30: 0.7096774194 | I30: 0.5036420395 | J30: 77.55 | K30: 78.08 | L30: 0 | M30: 0 | O30: 77.35167171 | P30: 5.138328289 | Q30: 26.4024176 | S30: 2017-08-10 | T30: 77.59755788 | U30: 12.59755788 | V30: 0.001755075663 | W30: -0.000720174485 | X30: =SQRT(SUMPRODUCT(V30:V$39, V30:V$39)) -> 1.395944667 | Y30: 4.906754569 | Z30: -2.567391074 | AA30: 12.60552305 | AB30: 183.6651049 | AC30: 4.976534293 | AD30: =SUM(V30:V$39) -> 2.74399068
B31: 23 | C31: 2016 | D31: 2016-08-09 | E31: =VLOOKUP($D31, data!$D$5:$E$6326,2, FALSE) -> 77.55 | F31: =VLOOKUP($D31, data!$G$5:$H$6326,2, FALSE) -> 77.45 | H31: 0.7419354839 | I31: 0.5504682622 | J31: 78.08 | K31: 80.08 | L31: 0 | M31: 0 | O31: 77.538975 | P31: 0.01102500204 | Q31: 0.0001215506701 | S31: 2017-08-09 | T31: 77.87556193 | U31: 12.87556193 | V31: 0.004361038055 | W31: -0.001737460541 | X31: =SQRT(SUMPRODUCT(V31:V$39, V31:V$39)) -> 1.395943564 | Y31: 4.90675069 | Z31: -2.624050567 | AA31: 12.88221364 | AB31: 190.6432251 | AC31: 4.969084112 | AD31: =SUM(V31:V$39) -> 2.742235604
B32: 24 | C32: 2016 | D32: 2016-08-08 | E32: =VLOOKUP($D32, data!$D$5:$E$6326,2, FALSE) -> 78.08 | F32: =VLOOKUP($D32, data!$G$5:$H$6326,2, FALSE) -> 78 | H32: 0.7741935484 | I32: 0.5993756504 | J32: 80.08 | K32: 81.5 | L32: 0 | M32: 0 | O32: 79.0059546 | P32: -0.9259545982 | Q32: 0.857391918 | S32: 2017-08-08 | T32: 78.16986416 | U32: 13.16986416 | V32: 0.01052124409 | W32: -0.004064897564 | X32: =SQRT(SUMPRODUCT(V32:V$39, V32:V$39)) -> 1.395936752 | Y32: 4.906726746 | Z32: -2.684042713 | AA32: 13.17534387 | AB32: 198.2088636 | AC32: 4.961771593 | AD32: =SUM(V32:V$39) -> 2.737874566
B33: 25 | C33: 2016 | D33: 2016-08-07 | E33: =VLOOKUP($D33, data!$D$5:$E$6326,2, FALSE) -> 80.08 | F33: =VLOOKUP($D33, data!$G$5:$H$6326,2, FALSE) -> 72.5 | H33: 0.8064516129 | I33: 0.650364204 | J33: 81.5 | K33: 75.47 | L33: 0 | M33: 0 | O33: 81.24536878 | P33: -1.165368778 | Q33: 1.358084388 | S33: 2017-08-07 | T33: 78.47759031 | U33: 13.47759031 | V33: 0.02461510833 | W33: -0.009191759089 | X33: =SQRT(SUMPRODUCT(V33:V$39, V33:V$39)) -> 1.395897102 | Y33: 4.906587375 | Z33: -2.746835892 | AA33: 13.48204886 | AB33: 206.3142987 | AC33: 4.954660145 | AD33: =SUM(V33:V$39) -> 2.727353322
B34: 26 | C34: 2016 | D34: 2016-08-06 | E34: =VLOOKUP($D34, data!$D$5:$E$6326,2, FALSE) -> 81.5 | F34: =VLOOKUP($D34, data!$G$5:$H$6326,2, FALSE) -> 75 | H34: 0.8387096774 | I34: 0.703433923 | J34: 75.47 | K34: 72.5 | L34: 0 | M34: 0 | O34: 77.01977609 | P34: 4.480223908 | Q34: 20.07240627 | S34: 2017-08-06 | T34: 78.7919734 | U34: 13.7919734 | V34: 0.05566097108 | W34: -0.01996096604 | X34: =SQRT(SUMPRODUCT(V34:V$39, V34:V$39)) -> 1.395680055 | Y34: 4.905824454 | Z34: -2.811346702 | AA34: 13.7955674 | AB34: 214.7946311 | AC34: 4.947418648 | AD34: =SUM(V34:V$39) -> 2.702738214
B35: 27 | C35: 2016 | D35: 2016-08-05 | E35: =VLOOKUP($D35, data!$D$5:$E$6326,2, FALSE) -> 75.47 | F35: =VLOOKUP($D35, data!$G$5:$H$6326,2, FALSE) -> 78.98 | H35: 0.8709677419 | I35: 0.7585848075 | J35: 72.5 | K35: 72.5 | L35: 0 | M35: 0 | O35: 74.76096979 | P35: 0.7090302147 | Q35: 0.5027238453 | S35: 2017-08-05 | T35: 79.09760183 | U35: 14.09760183 | V35: 0.1208742247 | W35: -0.04114112065 | X35: =SQRT(SUMPRODUCT(V35:V$39, V35:V$39)) -> 1.394569708 | Y35: 4.901921579 | Z35: -2.875933776 | AA35: 14.10048584 | AB35: 223.2044307 | AC35: 4.937684661 | AD35: =SUM(V35:V$39) -> 2.647077243
B36: 28 | C36: 2016 | D36: 2016-08-04 | E36: =VLOOKUP($D36, data!$D$5:$E$6326,2, FALSE) -> 72.5 | F36: =VLOOKUP($D36, data!$G$5:$H$6326,2, FALSE) -> 80.51 | H36: 0.9032258065 | I36: 0.8158168574 | J36: 72.5 | K36: 73.49 | L36: 0 | M36: 0 | O36: 74.72384725 | P36: -2.223847249 | Q36: 4.945496586 | S36: 2017-08-04 | T36: 79.36071355 | U36: 14.36071355 | V36: 0.2491312821 | W36: -0.07864249851 | X36: =SQRT(SUMPRODUCT(V36:V$39, V36:V$39)) -> 1.389321451 | Y36: 4.883473919 | Z36: -2.940675795 | AA36: 14.3630113 | AB36: 230.4430534 | AC36: 4.913955612 | AD36: =SUM(V36:V$39) -> 2.526203018
B37: 29 | C37: 2016 | D37: 2016-08-03 | E37: =VLOOKUP($D37, data!$D$5:$E$6326,2, FALSE) -> 72.5 | F37: =VLOOKUP($D37, data!$G$5:$H$6326,2, FALSE) -> 79.52 | H37: 0.935483871 | I37: 0.8751300728 | J37: 73.49 | K37: 75 | L37: 0 | M37: 0 | O37: 75.400341 | P37: -2.900341001 | Q37: 8.411977919 | S37: 2017-08-03 | T37: =$O$7+SUMPRODUCT(H$7:I$7, H37:I37) + $J$7*T38+$K$7*T39 -> 79.51090244 | U37: 14.51090244 | V37: 0.4762219933 | W37: -0.1322509787 | X37: =SQRT(SUMPRODUCT(V37:V$39, V37:V$39)) -> 1.366801996 | Y37: 4.804317891 | Z37: -3.020387653 | AA37: 14.51261055 | AB37: 233.9339864 | AC37: 4.82888408 | AD37: =SUM(V37:V$39) -> 2.277071736
B38: 30 | C38: 2016 | D38: 2016-08-02 | E38: =VLOOKUP($D38, data!$D$5:$E$6326,2, FALSE) -> 73.49 | F38: =VLOOKUP($D38, data!$G$5:$H$6326,2, FALSE) -> 77 | H38: 0.9677419355 | I38: 0.9365244537 | J38: 75 | K38: 0 | L38: 0 | M38: 1 | O38: 76.34910392 | P38: -2.859103925 | Q38: 8.174475254 | S38: 2017-08-02 | T38: =O7 + M7 + SUMPRODUCT(H7:I7, H38:I38) + J7*T39 -> 79.41117647 | U38: 14.41117647 | V38: =J7 -> 0.8008497427 | W38: =K7 -> -0.165138317 | X38: =SQRT(SUMPRODUCT(V38:V$39, V38:V$39)) -> 1.281155849 | Y38: 4.503271128 | Z38: -3.20015741 | AA38: 14.4120102 | AB38: 228.1141893 | AC38: 4.517538185 | AD38: =SUM(V38:V$39) -> 1.800849743
B39: 31 | C39: 2016 | D39: 2016-08-01 | E39: =VLOOKUP($D39, data!$D$5:$E$6326,2, FALSE) -> 75 | F39: =VLOOKUP($D39, data!$G$5:$H$6326,2, FALSE) -> 74.48 | H39: 1 | I39: 1 | J39: 0 | K39: 0 | L39: 1 | M39: 0 | O39: 78.82352941 | P39: -3.823529412 | Q39: 14.61937716 | S39: 2017-08-01 | T39: =O7 + L7 + SUMPRODUCT(H7:I7, H39:I39) -> 78.82352941 | U39: 13.82352941 | V39: 1 | X39: =SQRT(SUMPRODUCT(V39:V$39, V39:V$39)) -> 1 | Y39: 3.515006492 | Z39: -3.932718031 | AA39: 13.82356318 | AB39: 203.4536758 | AC39: 3.516074042 | AD39: =SUM(V39:V$39) -> 1
B40: 32 | C40: =C9-1 -> 2015 | D40: =DATE(C40, 8, 31) -> 2015-08-31 | E40: =VLOOKUP($D40, data!$D$5:$E$6326,2, FALSE) -> 84.5 | F40: =VLOOKUP($D40, data!$G$5:$H$6326,2, FALSE) -> 72.5 | H40: =H9 -> 0.03225806452 | I40: =I9 -> 0.001040582726 | J40: =E41 -> 79 | K40: =E42 -> 75.5 | L40: 0 | M40: 0 | O40: 78.51868962 | P40: 5.981310385 | Q40: 35.77607392
B41: 33 | C41: 2015 | D41: =D40-1 -> 2015-08-30 | E41: =VLOOKUP($D41, data!$D$5:$E$6326,2, FALSE) -> 79 | F41: =VLOOKUP($D41, data!$G$5:$H$6326,2, FALSE) -> 69.5 | H41: =H10 -> 0.06451612903 | I41: 0.004162330905 | J41: =E42 -> 75.5 | K41: =E43 -> 73 | L41: 0 | M41: 0 | O41: 76.08210454 | P41: 2.917895463 | Q41: 8.514113935
B42: 34 | C42: 2015 | D42: 2015-08-29 | E42: =VLOOKUP($D42, data!$D$5:$E$6326,2, FALSE) -> 75.5 | F42: =VLOOKUP($D42, data!$G$5:$H$6326,2, FALSE) -> 66.5 | H42: =H11 -> 0.09677419355 | I42: 0.009365244537 | J42: 73 | K42: 74 | L42: 0 | M42: 0 | O42: 73.87503206 | P42: 1.624967941 | Q42: 2.640520809
B43: 35 | C43: 2015 | D43: 2015-08-28 | E43: =VLOOKUP($D43, data!$D$5:$E$6326,2, FALSE) -> 73 | F43: =VLOOKUP($D43, data!$G$5:$H$6326,2, FALSE) -> 64 | H43: =H12 -> 0.1290322581 | I43: 0.01664932362 | J43: 74 | K43: 75.5 | L43: 0 | M43: 0 | O43: 74.39501149 | P43: -1.395011491 | Q43: 1.946057059
B44: 36 | C44: 2015 | D44: 2015-08-27 | E44: =VLOOKUP($D44, data!$D$5:$E$6326,2, FALSE) -> 74 | F44: =VLOOKUP($D44, data!$G$5:$H$6326,2, FALSE) -> 63.5 | H44: =H13 -> 0.1612903226 | I44: 0.02601456816 | J44: 75.5 | K44: 83 | L44: 0 | M44: 0 | O44: 74.33123286 | P44: -0.3312328593 | Q44: 0.1097152071
B45: 37 | C45: 2015 | D45: 2015-08-26 | E45: =VLOOKUP($D45, data!$D$5:$E$6326,2, FALSE) -> 75.5 | F45: =VLOOKUP($D45, data!$G$5:$H$6326,2, FALSE) -> 61.5 | H45: =H14 -> 0.1935483871 | I45: 0.03746097815 | J45: 83 | K45: 78.5 | L45: 0 | M45: 0 | O45: 81.06085946 | P45: -5.560859457 | Q45: 30.9231579
B46: 38 | C46: 2015 | D46: 2015-08-25 | E46: =VLOOKUP($D46, data!$D$5:$E$6326,2, FALSE) -> 83 | F46: =VLOOKUP($D46, data!$G$5:$H$6326,2, FALSE) -> 65.5 | H46: =H15 -> 0.2258064516 | I46: 0.05098855359 | J46: 78.5 | K46: 75 | L46: 0 | M46: 0 | O46: 78.02179779 | P46: 4.978202208 | Q46: 24.78249722
B47: 39 | C47: 2015 | D47: 2015-08-24 | E47: =VLOOKUP($D47, data!$D$5:$E$6326,2, FALSE) -> 78.5 | F47: =VLOOKUP($D47, data!$G$5:$H$6326,2, FALSE) -> 65 | H47: =H16 -> 0.2580645161 | I47: 0.06659729448 | J47: 75 | K47: 77.5 | L47: 0 | M47: 0 | O47: 74.79940294 | P47: 3.700597063 | Q47: 13.69441862
B48: 40 | C48: 2015 | D48: 2015-08-23 | E48: =VLOOKUP($D48, data!$D$5:$E$6326,2, FALSE) -> 75 | F48: =VLOOKUP($D48, data!$G$5:$H$6326,2, FALSE) -> 69 | H48: =H17 -> 0.2903225806 | I48: 0.08428720083 | J48: 77.5 | K48: 80.5 | L48: 0 | M48: 0 | O48: 76.30618435 | P48: -1.306184347 | Q48: 1.706117548
B49: 41 | C49: 2015 | D49: 2015-08-22 | E49: =VLOOKUP($D49, data!$D$5:$E$6326,2, FALSE) -> 77.5 | F49: =VLOOKUP($D49, data!$G$5:$H$6326,2, FALSE) -> 70.5 | H49: =H18 -> 0.3225806452 | I49: 0.1040582726 | J49: 80.5 | K49: 81.5 | L49: 0 | M49: 0 | O49: 78.55031423 | P49: -1.050314231 | Q49: 1.103159983
B50: 42 | C50: 2015 | D50: 2015-08-21 | E50: =VLOOKUP($D50, data!$D$5:$E$6326,2, FALSE) -> 80.5 | F50: =VLOOKUP($D50, data!$G$5:$H$6326,2, FALSE) -> 68.5 | H50: =H19 -> 0.3548387097 | I50: 0.1259105099 | J50: 81.5 | K50: 81 | L50: 0 | M50: 0 | O50: 79.44709907 | P50: 1.052900928 | Q50: 1.108600363
B51: 43 | C51: 2015 | D51: 2015-08-20 | E51: =VLOOKUP($D51, data!$D$5:$E$6326,2, FALSE) -> 81.5 | F51: =VLOOKUP($D51, data!$G$5:$H$6326,2, FALSE) -> 66.5 | H51: =H20 -> 0.3870967742 | I51: 0.1498439126 | J51: 81 | K51: 84 | L51: 0 | M51: 0 | O51: 78.57127216 | P51: 2.928727841 | Q51: 8.577446769
B52: 44 | C52: 2015 | D52: 2015-08-19 | E52: =VLOOKUP($D52, data!$D$5:$E$6326,2, FALSE) -> 81 | F52: =VLOOKUP($D52, data!$G$5:$H$6326,2, FALSE) -> 68.5 | H52: =H21 -> 0.4193548387 | I52: 0.1758584807 | J52: 84 | K52: 85 | L52: 0 | M52: 0 | O52: 80.83534295 | P52: 0.1646570537 | Q52: 0.02711194534
B53: 45 | C53: 2015 | D53: 2015-08-18 | E53: =VLOOKUP($D53, data!$D$5:$E$6326,2, FALSE) -> 84 | F53: =VLOOKUP($D53, data!$G$5:$H$6326,2, FALSE) -> 75 | H53: =H22 -> 0.4516129032 | I53: 0.2039542144 | J53: 85 | K53: 84 | L53: 0 | M53: 0 | O53: 81.83463785 | P53: 2.165362149 | Q53: 4.688793238
B54: 46 | C54: 2015 | D54: 2015-08-17 | E54: =VLOOKUP($D54, data!$D$5:$E$6326,2, FALSE) -> 85 | F54: =VLOOKUP($D54, data!$G$5:$H$6326,2, FALSE) -> 78 | H54: =H23 -> 0.4838709677 | I54: 0.2341311134 | J54: 84 | K54: 81 | L54: 0 | M54: 0 | O54: 81.56915687 | P54: 3.430843128 | Q54: 11.77068457
B55: 47 | C55: 2015 | D55: 2015-08-16 | E55: =VLOOKUP($D55, data!$D$5:$E$6326,2, FALSE) -> 84 | F55: =VLOOKUP($D55, data!$G$5:$H$6326,2, FALSE) -> 80 | H55: =H24 -> 0.5161290323 | I55: 0.2663891779 | J55: 81 | K55: 76.5 | L55: 0 | M55: 0 | O55: 79.95633085 | P55: 4.043669149 | Q55: 16.35126019
B56: 48 | C56: 2015 | D56: 2015-08-15 | E56: =VLOOKUP($D56, data!$D$5:$E$6326,2, FALSE) -> 81 | F56: =VLOOKUP($D56, data!$G$5:$H$6326,2, FALSE) -> 79.5 | H56: =H25 -> 0.5483870968 | I56: 0.3007284079 | J56: 76.5 | K56: 76.5 | L56: 0 | M56: 0 | O56: 76.40575476 | P56: 4.594245242 | Q56: 21.10708935
B57: 49 | C57: 2015 | D57: 2015-08-14 | E57: =VLOOKUP($D57, data!$D$5:$E$6326,2, FALSE) -> 76.5 | F57: =VLOOKUP($D57, data!$G$5:$H$6326,2, FALSE) -> 78.5 | H57: =H26 -> 0.5806451613 | I57: 0.3371488033 | J57: 76.5 | K57: 78 | L57: 0 | M57: 0 | O57: 76.217942 | P57: 0.2820580009 | Q57: 0.07955671585
B58: 50 | C58: 2015 | D58: 2015-08-13 | E58: =VLOOKUP($D58, data!$D$5:$E$6326,2, FALSE) -> 76.5 | F58: =VLOOKUP($D58, data!$G$5:$H$6326,2, FALSE) -> 75 | H58: =H27 -> 0.6129032258 | I58: 0.3756503642 | J58: 78 | K58: 76.5 | L58: 0 | M58: 0 | O58: 77.73346577 | P58: -1.233465774 | Q58: 1.521437815
B59: 51 | C59: 2015 | D59: 2015-08-12 | E59: =VLOOKUP($D59, data!$D$5:$E$6326,2, FALSE) -> 78 | F59: =VLOOKUP($D59, data!$G$5:$H$6326,2, FALSE) -> 71 | H59: =H28 -> 0.6451612903 | I59: 0.4162330905 | J59: 76.5 | K59: 74.5 | L59: 0 | M59: 0 | O59: 76.93565645 | P59: 1.064343553 | Q59: 1.1328272
B60: 52 | C60: 2015 | D60: 2015-08-11 | E60: =VLOOKUP($D60, data!$D$5:$E$6326,2, FALSE) -> 76.5 | F60: =VLOOKUP($D60, data!$G$5:$H$6326,2, FALSE) -> 73.5 | H60: =H29 -> 0.6774193548 | I60: 0.4588969823 | J60: 74.5 | K60: 77 | L60: 0 | M60: 0 | O60: 75.00094679 | P60: 1.49905321 | Q60: 2.247160528
B61: 53 | C61: 2015 | D61: 2015-08-10 | E61: =VLOOKUP($D61, data!$D$5:$E$6326,2, FALSE) -> 74.5 | F61: =VLOOKUP($D61, data!$G$5:$H$6326,2, FALSE) -> 76 | H61: =H30 -> 0.7096774194 | I61: 0.5036420395 | J61: 77 | K61: 74 | L61: 0 | M61: 0 | O61: 77.58496869 | P61: -3.084968686 | Q61: 9.517031796
B62: 54 | C62: 2015 | D62: 2015-08-09 | E62: =VLOOKUP($D62, data!$D$5:$E$6326,2, FALSE) -> 77 | F62: =VLOOKUP($D62, data!$G$5:$H$6326,2, FALSE) -> 73.5 | H62: =H31 -> 0.7419354839 | I62: 0.5504682622 | J62: 74 | K62: 75.5 | L62: 0 | M62: 0 | O62: 75.02784154 | P62: 1.97215846 | Q62: 3.889408992
B63: 55 | C63: 2015 | D63: 2015-08-08 | E63: =VLOOKUP($D63, data!$D$5:$E$6326,2, FALSE) -> 74 | F63: =VLOOKUP($D63, data!$G$5:$H$6326,2, FALSE) -> 75 | H63: =H32 -> 0.7741935484 | I63: 0.5993756504 | J63: 75.5 | K63: 75.5 | L63: 0 | M63: 0 | O63: 76.32889268 | P63: -2.328892679 | Q63: 5.42374111
B64: 56 | C64: 2015 | D64: 2015-08-07 | E64: =VLOOKUP($D64, data!$D$5:$E$6326,2, FALSE) -> 75.5 | F64: =VLOOKUP($D64, data!$G$5:$H$6326,2, FALSE) -> 73 | H64: =H33 -> 0.8064516129 | I64: 0.650364204 | J64: 75.5 | K64: 79.5 | L64: 0 | M64: 0 | O64: 75.7747629 | P64: -0.2747629039 | Q64: 0.07549465334
B65: 57 | C65: 2015 | D65: 2015-08-06 | E65: =VLOOKUP($D65, data!$D$5:$E$6326,2, FALSE) -> 75.5 | F65: =VLOOKUP($D65, data!$G$5:$H$6326,2, FALSE) -> 73.5 | H65: =H34 -> 0.8387096774 | I65: 0.703433923 | J65: 79.5 | K65: 81 | L65: 0 | M65: 0 | O65: 78.84352486 | P65: -3.34352486 | Q65: 11.17915849
B66: 58 | C66: 2015 | D66: 2015-08-05 | E66: =VLOOKUP($D66, data!$D$5:$E$6326,2, FALSE) -> 79.5 | F66: =VLOOKUP($D66, data!$G$5:$H$6326,2, FALSE) -> 71.5 | H66: =H35 -> 0.8709677419 | I66: 0.7585848075 | J66: 81 | K66: 81.5 | L66: 0 | M66: 0 | O66: 80.08194774 | P66: -0.581947745 | Q66: 0.3386631779
B67: 59 | C67: 2015 | D67: 2015-08-04 | E67: =VLOOKUP($D67, data!$D$5:$E$6326,2, FALSE) -> 81 | F67: =VLOOKUP($D67, data!$G$5:$H$6326,2, FALSE) -> 71.5 | H67: =H36 -> 0.9032258065 | I67: 0.8158168574 | J67: 81.5 | K67: 79 | L67: 0 | M67: 0 | O67: 81.02158281 | P67: -0.0215828061 | Q67: 0.0004658175191
B68: 60 | C68: 2015 | D68: 2015-08-03 | E68: =VLOOKUP($D68, data!$D$5:$E$6326,2, FALSE) -> 81.5 | F68: =VLOOKUP($D68, data!$G$5:$H$6326,2, FALSE) -> 74.5 | H68: =H37 -> 0.935483871 | I68: 0.8751300728 | J68: 79 | K68: 82 | L68: 0 | M68: 0 | O68: 78.65705486 | P68: 2.842945136 | Q68: 8.082337049
B69: 61 | C69: 2015 | D69: 2015-08-02 | E69: =VLOOKUP($D69, data!$D$5:$E$6326,2, FALSE) -> 79 | F69: =VLOOKUP($D69, data!$G$5:$H$6326,2, FALSE) -> 79 | H69: =H38 -> 0.9677419355 | I69: 0.9365244537 | J69: 82 | K69: 0 | L69: 0 | M69: 1 | O69: 81.95505212 | P69: -2.955052124 | Q69: 8.732333055
B70: 62 | C70: 2015 | D70: 2015-08-01 | E70: =VLOOKUP($D70, data!$D$5:$E$6326,2, FALSE) -> 82 | F70: =VLOOKUP($D70, data!$G$5:$H$6326,2, FALSE) -> 75.5 | H70: =H39 -> 1 | I70: 1 | J70: 0 | K70: 0 | L70: 1 | M70: 0 | O70: 78.82352941 | P70: 3.176470588 | Q70: 10.0899654
B71: 63 | C71: 2014 | D71: =DATE(C71, 8, 31) -> 2014-08-31 | E71: =VLOOKUP($D71, data!$D$5:$E$6326,2, FALSE) -> 82 | F71: =VLOOKUP($D71, data!$G$5:$H$6326,2, FALSE) -> 76.5 | H71: =H40 -> 0.03225806452 | I71: =I40 -> 0.001040582726 | J71: =E72 -> 70 | K71: =E73 -> 70 | L71: 0 | M71: 0 | O71: 72.21930267 | P71: 9.780697325 | Q71: 95.66204017
B72: 64 | C72: =C41-1 -> 2014 | D72: =D71-1 -> 2014-08-30 | E72: =VLOOKUP($D72, data!$D$5:$E$6326,2, FALSE) -> 70 | F72: =VLOOKUP($D72, data!$G$5:$H$6326,2, FALSE) -> 76.5 | H72: =H41 -> 0.06451612903 | I72: 0.004162330905 | J72: =E73 -> 70 | K72: =E74 -> 74 | L72: 0 | M72: 0 | O72: 71.51229263 | P72: -1.512292635 | Q72: 2.287029013
B73: 65 | C73: 2014 | D73: 2014-08-29 | E73: =VLOOKUP($D73, data!$D$5:$E$6326,2, FALSE) -> 70 | F73: =VLOOKUP($D73, data!$G$5:$H$6326,2, FALSE) -> 78.5 | H73: =H42 -> 0.09677419355 | I73: 0.009365244537 | J73: 74 | K73: 80 | L73: 0 | M73: 0 | O73: 73.6850519 | P73: -3.6850519 | Q73: 13.5796075
B74: 66 | C74: 2014 | D74: 2014-08-28 | E74: =VLOOKUP($D74, data!$D$5:$E$6326,2, FALSE) -> 74 | F74: =VLOOKUP($D74, data!$G$5:$H$6326,2, FALSE) -> 72 | H74: =H43 -> 0.1290322581 | I74: 0.01664932362 | J74: 80 | K74: 77.5 | L74: 0 | M74: 0 | O74: =$O$7+SUMPRODUCT(H$7:M$7, H74:M74) -> 78.86983331 | P74: =E74-O74 -> -4.869833313 | Q74: =P74*P74 -> 23.71527649
B75: =B74+1 -> 67 | C75: 2014 | D75: 2014-08-27 | E75: =VLOOKUP($D75, data!$D$5:$E$6326,2, FALSE) -> 80 | F75: =VLOOKUP($D75, data!$G$5:$H$6326,2, FALSE) -> 74.5 | H75: =H44 -> 0.1612903226 | I75: 0.02601456816 | J75: 77.5 | K75: 74 | L75: 0 | M75: 0 | O75: 77.4191772 | P75: 2.580822802 | Q75: 6.660646335
B76: 68 | C76: 2014 | D76: 2014-08-26 | E76: =VLOOKUP($D76, data!$D$5:$E$6326,2, FALSE) -> 77.5 | F76: =VLOOKUP($D76, data!$G$5:$H$6326,2, FALSE) -> 78 | H76: =H45 -> 0.1935483871 | I76: 0.03746097815 | J76: 74 | K76: 72 | L76: 0 | M76: 0 | O76: 74.92661083 | P76: 2.573389167 | Q76: 6.622331805
B77: 69 | C77: 2014 | D77: 2014-08-25 | E77: =VLOOKUP($D77, data!$D$5:$E$6326,2, FALSE) -> 74 | F77: =VLOOKUP($D77, data!$G$5:$H$6326,2, FALSE) -> 79.5 | H77: =H46 -> 0.2258064516 | I77: 0.05098855359 | J77: 72 | K77: 71 | L77: 0 | M77: 0 | O77: 73.47682773 | P77: 0.5231722669 | Q77: 0.2737092209
B78: 70 | C78: 2014 | D78: 2014-08-24 | E78: =VLOOKUP($D78, data!$D$5:$E$6326,2, FALSE) -> 72 | F78: =VLOOKUP($D78, data!$G$5:$H$6326,2, FALSE) -> 79 | H78: =H47 -> 0.2580645161 | I78: 0.06659729448 | J78: 71 | K78: 72 | L78: 0 | M78: 0 | O78: 72.50426471 | P78: -0.5042647098 | Q78: 0.2542828975
B79: 71 | C79: 2014 | D79: 2014-08-23 | E79: =VLOOKUP($D79, data!$D$5:$E$6326,2, FALSE) -> 71 | F79: =VLOOKUP($D79, data!$G$5:$H$6326,2, FALSE) -> 77 | H79: =H48 -> 0.2903225806 | I79: 0.08428720083 | J79: 72 | K79: 73 | L79: 0 | M79: 0 | O79: 73.14004814 | P79: -2.14004814 | Q79: 4.579806041
B80: 72 | C80: 2014 | D80: 2014-08-22 | E80: =VLOOKUP($D80, data!$D$5:$E$6326,2, FALSE) -> 72 | F80: =VLOOKUP($D80, data!$G$5:$H$6326,2, FALSE) -> 79 | H80: =H49 -> 0.3225806452 | I80: 0.1040582726 | J80: 73 | K80: 76 | L80: 0 | M80: 0 | O80: 73.4522019 | P80: -1.452201904 | Q80: 2.10889037
B81: 73 | C81: 2014 | D81: 2014-08-21 | E81: =VLOOKUP($D81, data!$D$5:$E$6326,2, FALSE) -> 73 | F81: =VLOOKUP($D81, data!$G$5:$H$6326,2, FALSE) -> 74.5 | H81: =H50 -> 0.3548387097 | I81: 0.1259105099 | J81: 76 | K81: 72.5 | L81: 0 | M81: 0 | O81: 76.44610118 | P81: -3.446101182 | Q81: 11.87561336
B82: 74 | C82: 2014 | D82: 2014-08-20 | E82: =VLOOKUP($D82, data!$D$5:$E$6326,2, FALSE) -> 76 | F82: =VLOOKUP($D82, data!$G$5:$H$6326,2, FALSE) -> 76 | H82: =H51 -> 0.3870967742 | I82: 0.1498439126 | J82: 72.5 | K82: 73.5 | L82: 0 | M82: 0 | O82: 73.49800167 | P82: 2.501998325 | Q82: 6.259995621
B83: 75 | C83: 2014 | D83: 2014-08-19 | E83: =VLOOKUP($D83, data!$D$5:$E$6326,2, FALSE) -> 72.5 | F83: =VLOOKUP($D83, data!$G$5:$H$6326,2, FALSE) -> 77.5 | H83: =H52 -> 0.4193548387 | I83: 0.1758584807 | J83: 73.5 | K83: 75.5 | L83: 0 | M83: 0 | O83: 73.99523466 | P83: -1.49523466 | Q83: 2.235726688
B84: 76 | C84: 2014 | D84: 2014-08-18 | E84: =VLOOKUP($D84, data!$D$5:$E$6326,2, FALSE) -> 73.5 | F84: =VLOOKUP($D84, data!$G$5:$H$6326,2, FALSE) -> 74 | H84: =H53 -> 0.4516129032 | I84: 0.2039542144 | J84: 75.5 | K84: 69.5 | L84: 0 | M84: 0 | O84: 76.62107089 | P84: -3.121070892 | Q84: 9.741083513
B85: 77 | C85: 2014 | D85: 2014-08-17 | E85: =VLOOKUP($D85, data!$D$5:$E$6326,2, FALSE) -> 75.5 | F85: =VLOOKUP($D85, data!$G$5:$H$6326,2, FALSE) -> 67.5 | H85: =H54 -> 0.4838709677 | I85: 0.2341311134 | J85: 69.5 | K85: 67 | L85: 0 | M85: 0 | O85: 72.26877204 | P85: 3.231227959 | Q85: 10.44083412
B86: 78 | C86: 2014 | D86: 2014-08-16 | E86: =VLOOKUP($D86, data!$D$5:$E$6326,2, FALSE) -> 69.5 | F86: =VLOOKUP($D86, data!$G$5:$H$6326,2, FALSE) -> 72 | H86: =H55 -> 0.5161290323 | I86: 0.2663891779 | J86: 67 | K86: 71.5 | L86: 0 | M86: 0 | O86: 69.57012604 | P86: -0.0701260386 | Q86: 0.004917661289
B87: 79 | C87: 2014 | D87: 2014-08-15 | E87: =VLOOKUP($D87, data!$D$5:$E$6326,2, FALSE) -> 67 | F87: =VLOOKUP($D87, data!$G$5:$H$6326,2, FALSE) -> 65 | H87: =H56 -> 0.5483870968 | I87: 0.3007284079 | J87: 71.5 | K87: 77.5 | L87: 0 | M87: 0 | O87: 72.23636773 | P87: -5.236367727 | Q87: 27.41954698
B88: 80 | C88: 2014 | D88: 2014-08-14 | E88: =VLOOKUP($D88, data!$D$5:$E$6326,2, FALSE) -> 71.5 | F88: =VLOOKUP($D88, data!$G$5:$H$6326,2, FALSE) -> 64.5 | H88: =H57 -> 0.5806451613 | I88: 0.3371488033 | J88: 77.5 | K88: 76 | L88: 0 | M88: 0 | O88: 77.34906838 | P88: -5.849068376 | Q88: 34.21160087
B89: 81 | C89: 2014 | D89: 2014-08-13 | E89: =VLOOKUP($D89, data!$D$5:$E$6326,2, FALSE) -> 77.5 | F89: =VLOOKUP($D89, data!$G$5:$H$6326,2, FALSE) -> 69.5 | H89: =H58 -> 0.6129032258 | I89: 0.3756503642 | J89: 76 | K89: 76.5 | L89: 0 | M89: 0 | O89: 76.13176629 | P89: 1.368233712 | Q89: 1.87206349
B90: 82 | C90: 2014 | D90: 2014-08-12 | E90: =VLOOKUP($D90, data!$D$5:$E$6326,2, FALSE) -> 76 | F90: =VLOOKUP($D90, data!$G$5:$H$6326,2, FALSE) -> 65.5 | H90: =H59 -> 0.6451612903 | I90: 0.4162330905 | J90: 76.5 | K90: 76 | L90: 0 | M90: 0 | O90: 76.68794897 | P90: -0.687948971 | Q90: 0.4732737867
B91: 83 | C91: 2014 | D91: 2014-08-11 | E91: =VLOOKUP($D91, data!$D$5:$E$6326,2, FALSE) -> 76.5 | F91: =VLOOKUP($D91, data!$G$5:$H$6326,2, FALSE) -> 74.5 | H91: =H60 -> 0.6774193548 | I91: 0.4588969823 | J91: 76 | K91: 76.5 | L91: 0 | M91: 0 | O91: 76.28479056 | P91: 0.2152094379 | Q91: 0.04631510216
B92: 84 | C92: 2014 | D92: 2014-08-10 | E92: =VLOOKUP($D92, data!$D$5:$E$6326,2, FALSE) -> 76 | F92: =VLOOKUP($D92, data!$G$5:$H$6326,2, FALSE) -> 75 | H92: =H61 -> 0.7096774194 | I92: 0.5036420395 | J92: 76.5 | K92: 73 | L92: 0 | M92: 0 | O92: 77.34968213 | P92: -1.349682132 | Q92: 1.821641858
B93: 85 | C93: 2014 | D93: 2014-08-09 | E93: =VLOOKUP($D93, data!$D$5:$E$6326,2, FALSE) -> 76.5 | F93: =VLOOKUP($D93, data!$G$5:$H$6326,2, FALSE) -> 73 | H93: =H62 -> 0.7419354839 | I93: 0.5504682622 | J93: 73 | K93: 76 | L93: 0 | M93: 0 | O93: 74.14442264 | P93: 2.355577361 | Q93: 5.548744706
B94: 86 | C94: 2014 | D94: 2014-08-08 | E94: =VLOOKUP($D94, data!$D$5:$E$6326,2, FALSE) -> 73 | F94: =VLOOKUP($D94, data!$G$5:$H$6326,2, FALSE) -> 74 | H94: =H63 -> 0.7741935484 | I94: 0.5993756504 | J94: 76 | K94: 78.5 | L94: 0 | M94: 0 | O94: 76.2339026 | P94: -3.233902599 | Q94: 10.45812602
B95: 87 | C95: 2014 | D95: 2014-08-07 | E95: =VLOOKUP($D95, data!$D$5:$E$6326,2, FALSE) -> 76 | F95: =VLOOKUP($D95, data!$G$5:$H$6326,2, FALSE) -> 71 | H95: =H64 -> 0.8064516129 | I95: 0.650364204 | J95: 78.5 | K95: 78.5 | L95: 0 | M95: 0 | O95: 78.34245045 | P95: -2.342450449 | Q95: 5.487074106
B96: 88 | C96: 2014 | D96: 2014-08-06 | E96: =VLOOKUP($D96, data!$D$5:$E$6326,2, FALSE) -> 78.5 | F96: =VLOOKUP($D96, data!$G$5:$H$6326,2, FALSE) -> 71 | H96: =H65 -> 0.8387096774 | I96: 0.703433923 | J96: 78.5 | K96: 77.5 | L96: 0 | M96: 0 | O96: 78.62065923 | P96: -0.1206592272 | Q96: 0.0145586491
B97: 89 | C97: 2014 | D97: 2014-08-05 | E97: =VLOOKUP($D97, data!$D$5:$E$6326,2, FALSE) -> 78.5 | F97: =VLOOKUP($D97, data!$G$5:$H$6326,2, FALSE) -> 72 | H97: =H66 -> 0.8709677419 | I97: 0.7585848075 | J97: 77.5 | K97: 72.5 | L97: 0 | M97: 0 | O97: 78.7652185 | P97: -0.2652184988 | Q97: 0.07034085211
B98: 90 | C98: 2014 | D98: 2014-08-04 | E98: =VLOOKUP($D98, data!$D$5:$E$6326,2, FALSE) -> 77.5 | F98: =VLOOKUP($D98, data!$G$5:$H$6326,2, FALSE) -> 77 | H98: =H67 -> 0.9032258065 | I98: 0.8158168574 | J98: 72.5 | K98: 71 | L98: 0 | M98: 0 | O98: 75.13504166 | P98: 2.364958342 | Q98: 5.593027959
B99: 91 | C99: 2014 | D99: 2014-08-03 | E99: =VLOOKUP($D99, data!$D$5:$E$6326,2, FALSE) -> 72.5 | F99: =VLOOKUP($D99, data!$G$5:$H$6326,2, FALSE) -> 74.5 | H99: =H68 -> 0.935483871 | I99: 0.8751300728 | J99: 71 | K99: 77.5 | L99: 0 | M99: 0 | O99: 72.99337935 | P99: -0.4933793486 | Q99: 0.2434231816
B100: 92 | C100: 2014 | D100: 2014-08-02 | E100: =VLOOKUP($D100, data!$D$5:$E$6326,2, FALSE) -> 71 | F100: =VLOOKUP($D100, data!$G$5:$H$6326,2, FALSE) -> 72.5 | H100: =H69 -> 0.9677419355 | I100: 0.9365244537 | J100: 77.5 | K100: 0 | L100: 0 | M100: 1 | O100: 78.35122828 | P100: -7.351228282 | Q100: 54.04055725
B101: 93 | C101: 2014 | D101: 2014-08-01 | E101: =VLOOKUP($D101, data!$D$5:$E$6326,2, FALSE) -> 77.5 | F101: =VLOOKUP($D101, data!$G$5:$H$6326,2, FALSE) -> 73.5 | H101: =H70 -> 1 | I101: 1 | J101: 0 | K101: 0 | L101: 1 | M101: 0 | O101: 78.82352941 | P101: -1.323529412 | Q101: 1.751730104
B102: 94 | C102: 2013 | D102: =DATE(C102, 8, 31) -> 2013-08-31 | E102: =VLOOKUP($D102, data!$D$5:$E$6326,2, FALSE) -> 80 | F102: =VLOOKUP($D102, data!$G$5:$H$6326,2, FALSE) -> 74.57 | H102: =H71 -> 0.03225806452 | I102: =I71 -> 0.001040582726 | J102: =E103 -> 78 | K102: =E104 -> 76 | L102: 0 | M102: 0 | O102: 77.63527071 | P102: 2.364729286 | Q102: 5.591944596
B103: 95 | C103: 2013 | D103: =D102-1 -> 2013-08-30 | E103: =VLOOKUP($D103, data!$D$5:$E$6326,2, FALSE) -> 78 | F103: =VLOOKUP($D103, data!$G$5:$H$6326,2, FALSE) -> 81.51 | H103: =H72 -> 0.06451612903 | I103: 0.004162330905 | J103: =E104 -> 76 | K103: =E105 -> 78.5 | L103: 0 | M103: 0 | O103: 75.57426866 | P103: 2.425731336 | Q103: 5.884172513
B104: 96 | C104: =C73-1 -> 2013 | D104: 2013-08-29 | E104: =VLOOKUP($D104, data!$D$5:$E$6326,2, FALSE) -> 76 | F104: =VLOOKUP($D104, data!$G$5:$H$6326,2, FALSE) -> 77.54 | H104: =H73 -> 0.09677419355 | I104: 0.009365244537 | J104: 78.5 | K104: 81 | L104: 0 | M104: 0 | O104: 77.12373742 | P104: -1.123737425 | Q104: 1.2627858
B105: 97 | C105: 2013 | D105: 2013-08-28 | E105: =VLOOKUP($D105, data!$D$5:$E$6326,2, FALSE) -> 78.5 | F105: =VLOOKUP($D105, data!$G$5:$H$6326,2, FALSE) -> 77 | H105: =H74 -> 0.1290322581 | I105: 0.01664932362 | J105: 81 | K105: 76.5 | L105: 0 | M105: 0 | O105: 79.83582137 | P105: -1.335821372 | Q105: 1.784418739
B106: 98 | C106: 2013 | D106: 2013-08-27 | E106: =VLOOKUP($D106, data!$D$5:$E$6326,2, FALSE) -> 81 | F106: =VLOOKUP($D106, data!$G$5:$H$6326,2, FALSE) -> 86.54 | H106: =H75 -> 0.1612903226 | I106: 0.02601456816 | J106: 76.5 | K106: 72.05 | L106: 0 | M106: 0 | O106: 76.94034717 | P106: 4.059652827 | Q106: 16.48078107
B107: 99 | C107: 2013 | D107: 2013-08-26 | E107: =VLOOKUP($D107, data!$D$5:$E$6326,2, FALSE) -> 76.5 | F107: =VLOOKUP($D107, data!$G$5:$H$6326,2, FALSE) -> 80.96 | H107: =H76 -> 0.1935483871 | I107: 0.03746097815 | J107: 72.05 | K107: 71 | L107: 0 | M107: 0 | O107: 73.53009215 | P107: 2.969907848 | Q107: 8.820352627
B108: 100 | C108: 2013 | D108: 2013-08-25 | E108: =VLOOKUP($D108, data!$D$5:$E$6326,2, FALSE) -> 72.05 | F108: =VLOOKUP($D108, data!$G$5:$H$6326,2, FALSE) -> 77 | H108: =H77 -> 0.2258064516 | I108: 0.05098855359 | J108: 71 | K108: 76 | L108: 0 | M108: 0 | O108: 71.85028641 | P108: 0.1997135948 | Q108: 0.03988551995
B109: 101 | C109: 2013 | D109: 2013-08-24 | E109: =VLOOKUP($D109, data!$D$5:$E$6326,2, FALSE) -> 71 | F109: =VLOOKUP($D109, data!$G$5:$H$6326,2, FALSE) -> 73.04 | H109: =H78 -> 0.2580645161 | I109: 0.06659729448 | J109: 76 | K109: 75 | L109: 0 | M109: 0 | O109: 76.01309847 | P109: -5.013098472 | Q109: 25.13115629
B110: 102 | C110: 2013 | D110: 2013-08-23 | E110: =VLOOKUP($D110, data!$D$5:$E$6326,2, FALSE) -> 76 | F110: =VLOOKUP($D110, data!$G$5:$H$6326,2, FALSE) -> 72 | H110: =H79 -> 0.2903225806 | I110: 0.08428720083 | J110: 75 | K110: 79.5 | L110: 0 | M110: 0 | O110: 74.46919831 | P110: 1.530801693 | Q110: 2.343353822
B111: 103 | C111: 2013 | D111: 2013-08-22 | E111: =VLOOKUP($D111, data!$D$5:$E$6326,2, FALSE) -> 75 | F111: =VLOOKUP($D111, data!$G$5:$H$6326,2, FALSE) -> 73.05 | H111: =H80 -> 0.3225806452 | I111: 0.1040582726 | J111: 79.5 | K111: 77 | L111: 0 | M111: 0 | O111: 78.49258691 | P111: -3.492586915 | Q111: 12.19816336
B112: 104 | C112: 2013 | D112: 2013-08-21 | E112: =VLOOKUP($D112, data!$D$5:$E$6326,2, FALSE) -> 79.5 | F112: =VLOOKUP($D112, data!$G$5:$H$6326,2, FALSE) -> 79 | H112: =H81 -> 0.3548387097 | I112: 0.1259105099 | J112: 77 | K112: 71.5 | L112: 0 | M112: 0 | O112: 77.41208924 | P112: 2.087910758 | Q112: 4.359371333
B113: 105 | C113: 2013 | D113: 2013-08-20 | E113: =VLOOKUP($D113, data!$D$5:$E$6326,2, FALSE) -> 77 | F113: =VLOOKUP($D113, data!$G$5:$H$6326,2, FALSE) -> 77.01 | H113: =H82 -> 0.3870967742 | I113: 0.1498439126 | J113: 71.5 | K113: 71.5 | L113: 0 | M113: 0 | O113: 73.02742857 | P113: 3.972571434 | Q113: 15.7813238
B114: 106 | C114: 2013 | D114: 2013-08-19 | E114: =VLOOKUP($D114, data!$D$5:$E$6326,2, FALSE) -> 71.5 | F114: =VLOOKUP($D114, data!$G$5:$H$6326,2, FALSE) -> 70.95 | H114: =H83 -> 0.4193548387 | I114: 0.1758584807 | J114: 71.5 | K114: 72.5 | L114: 0 | M114: 0 | O114: 72.88895013 | P114: -1.388950126 | Q114: 1.929182451
B115: 107 | C115: 2013 | D115: 2013-08-18 | E115: =VLOOKUP($D115, data!$D$5:$E$6326,2, FALSE) -> 71.5 | F115: =VLOOKUP($D115, data!$G$5:$H$6326,2, FALSE) -> 70 | H115: =H84 -> 0.4516129032 | I115: 0.2039542144 | J115: 72.5 | K115: 69.5 | L115: 0 | M115: 0 | O115: 74.21852166 | P115: -2.718521664 | Q115: 7.390360038
B116: 108 | C116: 2013 | D116: 2013-08-17 | E116: =VLOOKUP($D116, data!$D$5:$E$6326,2, FALSE) -> 72.5 | F116: =VLOOKUP($D116, data!$G$5:$H$6326,2, FALSE) -> 68.99 | H116: =H85 -> 0.4838709677 | I116: 0.2341311134 | J116: 69.5 | K116: 69 | L116: 0 | M116: 0 | O116: 71.93849541 | P116: 0.5615045929 | Q116: 0.3152874078
B117: 109 | C117: 2013 | D117: 2013-08-16 | E117: =VLOOKUP($D117, data!$D$5:$E$6326,2, FALSE) -> 69.5 | F117: =VLOOKUP($D117, data!$G$5:$H$6326,2, FALSE) -> 68.54 | H117: =H86 -> 0.5161290323 | I117: 0.2663891779 | J117: 69 | K117: 68.5 | L117: 0 | M117: 0 | O117: 71.66724048 | P117: -2.167240475 | Q117: 4.696931277
B118: 110 | C118: 2013 | D118: 2013-08-15 | E118: =VLOOKUP($D118, data!$D$5:$E$6326,2, FALSE) -> 69 | F118: =VLOOKUP($D118, data!$G$5:$H$6326,2, FALSE) -> 65 | H118: =H87 -> 0.5483870968 | I118: 0.3007284079 | J118: 68.5 | K118: 74.5 | L118: 0 | M118: 0 | O118: 70.32923345 | P118: -1.32923345 | Q118: 1.766861566
B119: 111 | C119: 2013 | D119: 2013-08-14 | E119: =VLOOKUP($D119, data!$D$5:$E$6326,2, FALSE) -> 68.5 | F119: =VLOOKUP($D119, data!$G$5:$H$6326,2, FALSE) -> 64 | H119: =H88 -> 0.5806451613 | I119: 0.3371488033 | J119: 74.5 | K119: 76.5 | L119: 0 | M119: 0 | O119: 74.86394999 | P119: -6.363949989 | Q119: 40.49985947
B120: 112 | C120: 2013 | D120: 2013-08-13 | E120: =VLOOKUP($D120, data!$D$5:$E$6326,2, FALSE) -> 74.5 | F120: =VLOOKUP($D120, data!$G$5:$H$6326,2, FALSE) -> 63.95 | H120: =H89 -> 0.6129032258 | I120: 0.3756503642 | J120: 76.5 | K120: 73.49 | L120: 0 | M120: 0 | O120: 77.02925749 | P120: -2.529257494 | Q120: 6.39714347
B121: 113 | C121: 2013 | D121: 2013-08-12 | E121: =VLOOKUP($D121, data!$D$5:$E$6326,2, FALSE) -> 76.5 | F121: =VLOOKUP($D121, data!$G$5:$H$6326,2, FALSE) -> 74.48 | H121: =H90 -> 0.6451612903 | I121: 0.4162330905 | J121: 73.49 | K121: 76.46 | L121: 0 | M121: 0 | O121: 74.20142762 | P121: 2.29857238 | Q121: 5.283434988
B122: 114 | C122: 2013 | D122: 2013-08-11 | E122: =VLOOKUP($D122, data!$D$5:$E$6326,2, FALSE) -> 73.49 | F122: =VLOOKUP($D122, data!$G$5:$H$6326,2, FALSE) -> 70.52 | H122: =H91 -> 0.6774193548 | I122: 0.4588969823 | J122: 76.46 | K122: 80.95 | L122: 0 | M122: 0 | O122: 75.91831593 | P122: -2.428315933 | Q122: 5.89671827
B123: 115 | C123: 2013 | D123: 2013-08-10 | E123: =VLOOKUP($D123, data!$D$5:$E$6326,2, FALSE) -> 76.46 | F123: =VLOOKUP($D123, data!$G$5:$H$6326,2, FALSE) -> 72.5 | H123: =H92 -> 0.7096774194 | I123: 0.5036420395 | J123: 80.95 | K123: 77 | L123: 0 | M123: 0 | O123: 80.25291022 | P123: -3.792910219 | Q123: 14.38616793
B124: 116 | C124: 2013 | D124: 2013-08-09 | E124: =VLOOKUP($D124, data!$D$5:$E$6326,2, FALSE) -> 80.95 | F124: =VLOOKUP($D124, data!$G$5:$H$6326,2, FALSE) -> 70.5 | H124: =H93 -> 0.7419354839 | I124: 0.5504682622 | J124: 77 | K124: 74.5 | L124: 0 | M124: 0 | O124: 77.59552908 | P124: 3.354470915 | Q124: 11.25247512
B125: 117 | C125: 2013 | D125: 2013-08-08 | E125: =VLOOKUP($D125, data!$D$5:$E$6326,2, FALSE) -> 77 | F125: =VLOOKUP($D125, data!$G$5:$H$6326,2, FALSE) -> 71.5 | H125: =H94 -> 0.7741935484 | I125: 0.5993756504 | J125: 74.5 | K125: 71 | L125: 0 | M125: 0 | O125: 76.27116536 | P125: 0.7288346372 | Q125: 0.5311999284
B126: 118 | C126: 2013 | D126: 2013-08-07 | E126: =VLOOKUP($D126, data!$D$5:$E$6326,2, FALSE) -> 74.5 | F126: =VLOOKUP($D126, data!$G$5:$H$6326,2, FALSE) -> 78 | H126: =H95 -> 0.8064516129 | I126: 0.650364204 | J126: 71 | K126: 71 | L126: 0 | M126: 0 | O126: 73.57461476 | P126: 0.9253852435 | Q126: 0.8563378489
B127: 119 | C127: 2013 | D127: 2013-08-06 | E127: =VLOOKUP($D127, data!$D$5:$E$6326,2, FALSE) -> 71 | F127: =VLOOKUP($D127, data!$G$5:$H$6326,2, FALSE) -> 75 | H127: =H96 -> 0.8387096774 | I127: 0.703433923 | J127: 71 | K127: 73 | L127: 0 | M127: 0 | O127: 73.35740858 | P127: -2.357408584 | Q127: 5.55737523
B128: 120 | C128: 2013 | D128: 2013-08-05 | E128: =VLOOKUP($D128, data!$D$5:$E$6326,2, FALSE) -> 71 | F128: =VLOOKUP($D128, data!$G$5:$H$6326,2, FALSE) -> 66.5 | H128: =H97 -> 0.8709677419 | I128: 0.7585848075 | J128: 73 | K128: 74.6 | L128: 0 | M128: 0 | O128: 74.81460419 | P128: -3.814604191 | Q128: 14.55120513
B129: 121 | C129: 2013 | D129: 2013-08-04 | E129: =VLOOKUP($D129, data!$D$5:$E$6326,2, FALSE) -> 73 | F129: =VLOOKUP($D129, data!$G$5:$H$6326,2, FALSE) -> 67.5 | H129: =H98 -> 0.9032258065 | I129: 0.8158168574 | J129: 74.6 | K129: 77 | L129: 0 | M129: 0 | O129: 75.82599622 | P129: -2.825996216 | Q129: 7.98625461
B130: 122 | C130: 2013 | D130: 2013-08-03 | E130: =VLOOKUP($D130, data!$D$5:$E$6326,2, FALSE) -> 74.6 | F130: =VLOOKUP($D130, data!$G$5:$H$6326,2, FALSE) -> 72.5 | H130: =H99 -> 0.935483871 | I130: 0.8751300728 | J130: 77 | K130: 71.5 | L130: 0 | M130: 0 | O130: 78.78930771 | P130: -4.189307707 | Q130: 17.55029906
B131: 123 | C131: 2013 | D131: 2013-08-02 | E131: =VLOOKUP($D131, data!$D$5:$E$6326,2, FALSE) -> 77 | F131: =VLOOKUP($D131, data!$G$5:$H$6326,2, FALSE) -> 73 | H131: =H100 -> 0.9677419355 | I131: 0.9365244537 | J131: 71.5 | K131: 0 | L131: 0 | M131: 1 | O131: 73.54612983 | P131: 3.453870174 | Q131: 11.92921918
B132: 124 | C132: 2013 | D132: 2013-08-01 | E132: =VLOOKUP($D132, data!$D$5:$E$6326,2, FALSE) -> 71.5 | F132: =VLOOKUP($D132, data!$G$5:$H$6326,2, FALSE) -> 71 | H132: =H101 -> 1 | I132: 1 | J132: 0 | K132: 0 | L132: 1 | M132: 0 | O132: 78.82352941 | P132: -7.323529412 | Q132: 53.63408305
B133: 125 | C133: 2012 | D133: =DATE(C133, 8, 31) -> 2012-08-31 | E133: =VLOOKUP($D133, data!$D$5:$E$6326,2, FALSE) -> 78.5 | F133: =VLOOKUP($D133, data!$G$5:$H$6326,2, FALSE) -> 81.5 | H133: =H102 -> 0.03225806452 | I133: =I102 -> 0.001040582726 | J133: =E134 -> 73 | K133: =E135 -> 74 | L133: 0 | M133: 0 | O133: 73.96129863 | P133: 4.538701365 | Q133: 20.59981008
B134: 126 | C134: 2012 | D134: =D133-1 -> 2012-08-30 | E134: =VLOOKUP($D134, data!$D$5:$E$6326,2, FALSE) -> 73 | F134: =VLOOKUP($D134, data!$G$5:$H$6326,2, FALSE) -> 77 | H134: =H103 -> 0.06451612903 | I134: 0.004162330905 | J134: =E135 -> 74 | K134: =E136 -> 81.5 | L134: 0 | M134: 0 | O134: 73.47715423 | P134: -0.4771542279 | Q134: 0.2276761572
B135: 127 | C135: 2012 | D135: 2012-08-29 | E135: =VLOOKUP($D135, data!$D$5:$E$6326,2, FALSE) -> 74 | F135: =VLOOKUP($D135, data!$G$5:$H$6326,2, FALSE) -> 74.5 | H135: =H104 -> 0.09677419355 | I135: 0.009365244537 | J135: 81.5 | K135: 76.5 | L135: 0 | M135: 0 | O135: 80.26940908 | P135: -6.26940908 | Q135: 39.30549021
B136: 128 | C136: =C105-1 -> 2012 | D136: 2012-08-28 | E136: =VLOOKUP($D136, data!$D$5:$E$6326,2, FALSE) -> 81.5 | F136: =VLOOKUP($D136, data!$G$5:$H$6326,2, FALSE) -> 74.5 | H136: =H105 -> 0.1290322581 | I136: 0.01664932362 | J136: 76.5 | K136: 75.5 | L136: 0 | M136: 0 | O136: 76.39713585 | P136: 5.102864153 | Q136: 26.03922256
B137: 129 | C137: 2012 | D137: 2012-08-27 | E137: =VLOOKUP($D137, data!$D$5:$E$6326,2, FALSE) -> 76.5 | F137: =VLOOKUP($D137, data!$G$5:$H$6326,2, FALSE) -> 77 | H137: =H106 -> 0.1612903226 | I137: 0.02601456816 | J137: 75.5 | K137: 77.5 | L137: 0 | M137: 0 | O137: 75.2394936 | P137: 1.260506397 | Q137: 1.588876377
B138: 130 | C138: 2012 | D138: 2012-08-26 | E138: =VLOOKUP($D138, data!$D$5:$E$6326,2, FALSE) -> 75.5 | F138: =VLOOKUP($D138, data!$G$5:$H$6326,2, FALSE) -> 72.5 | H138: =H107 -> 0.1935483871 | I138: 0.03746097815 | J138: 77.5 | K138: 78.5 | L138: 0 | M138: 0 | O138: =$O$7+SUMPRODUCT(H$7:M$7, H138:M138) -> 76.65618587 | P138: =E138-O138 -> -1.156185872 | Q138: =P138*P138 -> 1.33676577
B139: =B138+1 -> 131 | C139: 2012 | D139: 2012-08-25 | E139: =VLOOKUP($D139, data!$D$5:$E$6326,2, FALSE) -> 77.5 | F139: =VLOOKUP($D139, data!$G$5:$H$6326,2, FALSE) -> 79.5 | H139: =H108 -> 0.2258064516 | I139: 0.05098855359 | J139: 78.5 | K139: 76 | L139: 0 | M139: 0 | O139: 77.85665948 | P139: -0.3566594754 | Q139: 0.1272059814
B140: 132 | C140: 2012 | D140: 2012-08-24 | E140: =VLOOKUP($D140, data!$D$5:$E$6326,2, FALSE) -> 78.5 | F140: =VLOOKUP($D140, data!$G$5:$H$6326,2, FALSE) -> 79 | H140: =H109 -> 0.2580645161 | I140: 0.06659729448 | J140: 76 | K140: 76 | L140: 0 | M140: 0 | O140: 75.84796016 | P140: 2.652039845 | Q140: 7.033315339
B141: 133 | C141: 2012 | D141: 2012-08-23 | E141: =VLOOKUP($D141, data!$D$5:$E$6326,2, FALSE) -> 76 | F141: =VLOOKUP($D141, data!$G$5:$H$6326,2, FALSE) -> 78 | H141: =H110 -> 0.2903225806 | I141: 0.08428720083 | J141: 76 | K141: 75 | L141: 0 | M141: 0 | O141: 76.01317048 | P141: -0.01317047667 | Q141: 0.0001734614557
B142: 134 | C142: 2012 | D142: 2012-08-22 | E142: =VLOOKUP($D142, data!$D$5:$E$6326,2, FALSE) -> 76 | F142: =VLOOKUP($D142, data!$G$5:$H$6326,2, FALSE) -> 69.5 | H142: =H111 -> 0.3225806452 | I142: 0.1040582726 | J142: 75 | K142: 72 | L142: 0 | M142: 0 | O142: 75.71445466 | P142: 0.2855453424 | Q142: 0.08153614256
B143: 135 | C143: 2012 | D143: 2012-08-21 | E143: =VLOOKUP($D143, data!$D$5:$E$6326,2, FALSE) -> 75 | F143: =VLOOKUP($D143, data!$G$5:$H$6326,2, FALSE) -> 66 | H143: =H112 -> 0.3548387097 | I143: 0.1259105099 | J143: 72 | K143: 67.5 | L143: 0 | M143: 0 | O143: 74.0683938 | P143: 0.9316062033 | Q143: 0.867890118
B144: 136 | C144: 2012 | D144: 2012-08-20 | E144: =VLOOKUP($D144, data!$D$5:$E$6326,2, FALSE) -> 72 | F144: =VLOOKUP($D144, data!$G$5:$H$6326,2, FALSE) -> 66 | H144: =H113 -> 0.3870967742 | I144: 0.1498439126 | J144: 67.5 | K144: 73.5 | L144: 0 | M144: 0 | O144: 69.49375296 | P144: 2.506247039 | Q144: 6.28127422
B145: 137 | C145: 2012 | D145: 2012-08-19 | E145: =VLOOKUP($D145, data!$D$5:$E$6326,2, FALSE) -> 67.5 | F145: =VLOOKUP($D145, data!$G$5:$H$6326,2, FALSE) -> 69.5 | H145: =H114 -> 0.4193548387 | I145: 0.1758584807 | J145: 73.5 | K145: 79 | L145: 0 | M145: 0 | O145: 73.41725055 | P145: -5.91725055 | Q145: 35.01385407
B146: 138 | C146: 2012 | D146: 2012-08-18 | E146: =VLOOKUP($D146, data!$D$5:$E$6326,2, FALSE) -> 73.5 | F146: =VLOOKUP($D146, data!$G$5:$H$6326,2, FALSE) -> 65 | H146: =H115 -> 0.4516129032 | I146: 0.2039542144 | J146: 79 | K146: 78 | L146: 0 | M146: 0 | O146: 78.0203693 | P146: -4.520369297 | Q146: 20.43373858
B147: 139 | C147: 2012 | D147: 2012-08-17 | E147: =VLOOKUP($D147, data!$D$5:$E$6326,2, FALSE) -> 79 | F147: =VLOOKUP($D147, data!$G$5:$H$6326,2, FALSE) -> 67 | H147: =H116 -> 0.4838709677 | I147: 0.2341311134 | J147: 78 | K147: 77.5 | L147: 0 | M147: 0 | O147: 77.34204253 | P147: 1.657957475 | Q147: 2.748822988
B148: 140 | C148: 2012 | D148: 2012-08-16 | E148: =VLOOKUP($D148, data!$D$5:$E$6326,2, FALSE) -> 78 | F148: =VLOOKUP($D148, data!$G$5:$H$6326,2, FALSE) -> 69 | H148: =H117 -> 0.5161290323 | I148: 0.2663891779 | J148: 77.5 | K148: 74.5 | L148: 0 | M148: 0 | O148: 77.48363339 | P148: 0.5163666142 | Q148: 0.2666344803
B149: 141 | C149: 2012 | D149: 2012-08-15 | E149: =VLOOKUP($D149, data!$D$5:$E$6326,2, FALSE) -> 77.5 | F149: =VLOOKUP($D149, data!$G$5:$H$6326,2, FALSE) -> 75 | H149: =H118 -> 0.5483870968 | I149: 0.3007284079 | J149: 74.5 | K149: 78 | L149: 0 | M149: 0 | O149: 74.5563478 | P149: 2.943652203 | Q149: 8.665088293
B150: 142 | C150: 2012 | D150: 2012-08-14 | E150: =VLOOKUP($D150, data!$D$5:$E$6326,2, FALSE) -> 74.5 | F150: =VLOOKUP($D150, data!$G$5:$H$6326,2, FALSE) -> 70 | H150: =H119 -> 0.5806451613 | I150: 0.3371488033 | J150: 78 | K150: 80.5 | L150: 0 | M150: 0 | O150: 77.00637082 | P150: -2.506370821 | Q150: 6.28189469
B151: 143 | C151: 2012 | D151: 2012-08-13 | E151: =VLOOKUP($D151, data!$D$5:$E$6326,2, FALSE) -> 78 | F151: =VLOOKUP($D151, data!$G$5:$H$6326,2, FALSE) -> 64.5 | H151: =H120 -> 0.6129032258 | I151: 0.3756503642 | J151: 80.5 | K151: 82 | L151: 0 | M151: 0 | O151: 78.82732939 | P151: -0.8273293867 | Q151: 0.684473914
B152: 144 | C152: 2012 | D152: 2012-08-12 | E152: =VLOOKUP($D152, data!$D$5:$E$6326,2, FALSE) -> 80.5 | F152: =VLOOKUP($D152, data!$G$5:$H$6326,2, FALSE) -> 65.5 | H152: =H121 -> 0.6451612903 | I152: 0.4162330905 | J152: 82 | K152: 77 | L152: 0 | M152: 0 | O152: 80.92748424 | P152: -0.4274842388 | Q152: 0.1827427744
B153: 145 | C153: 2012 | D153: 2012-08-11 | E153: =VLOOKUP($D153, data!$D$5:$E$6326,2, FALSE) -> 82 | F153: =VLOOKUP($D153, data!$G$5:$H$6326,2, FALSE) -> 67 | H153: =H122 -> 0.6774193548 | I153: 0.4588969823 | J153: 77 | K153: 81.5 | L153: 0 | M153: 0 | O153: 76.25994872 | P153: 5.74005128 | Q153: 32.9481887
B154: 146 | C154: 2012 | D154: 2012-08-10 | E154: =VLOOKUP($D154, data!$D$5:$E$6326,2, FALSE) -> 77 | F154: =VLOOKUP($D154, data!$G$5:$H$6326,2, FALSE) -> 68.5 | H154: =H123 -> 0.7096774194 | I154: 0.5036420395 | J154: 81.5 | K154: 80 | L154: 0 | M154: 0 | O154: 80.19796263 | P154: -3.197962626 | Q154: 10.22696496
B155: 147 | C155: 2012 | D155: 2012-08-09 | E155: =VLOOKUP($D155, data!$D$5:$E$6326,2, FALSE) -> 81.5 | F155: =VLOOKUP($D155, data!$G$5:$H$6326,2, FALSE) -> 69 | H155: =H124 -> 0.7419354839 | I155: 0.5504682622 | J155: 80 | K155: 74.5 | L155: 0 | M155: 0 | O155: 79.99807831 | P155: 1.501921687 | Q155: 2.255768754
B156: 148 | C156: 2012 | D156: 2012-08-08 | E156: =VLOOKUP($D156, data!$D$5:$E$6326,2, FALSE) -> 80 | F156: =VLOOKUP($D156, data!$G$5:$H$6326,2, FALSE) -> 78 | H156: =H125 -> 0.7741935484 | I156: 0.5993756504 | J156: 74.5 | K156: 81.5 | L156: 0 | M156: 0 | O156: 74.53721303 | P156: 5.462786966 | Q156: 29.84204144
B157: 149 | C157: 2012 | D157: 2012-08-07 | E157: =VLOOKUP($D157, data!$D$5:$E$6326,2, FALSE) -> 74.5 | F157: =VLOOKUP($D157, data!$G$5:$H$6326,2, FALSE) -> 77 | H157: =H126 -> 0.8064516129 | I157: 0.650364204 | J157: 81.5 | K157: 84.5 | L157: 0 | M157: 0 | O157: 79.75416977 | P157: -5.254169775 | Q157: 27.60630002
B158: 150 | C158: 2012 | D158: 2012-08-06 | E158: =VLOOKUP($D158, data!$D$5:$E$6326,2, FALSE) -> 81.5 | F158: =VLOOKUP($D158, data!$G$5:$H$6326,2, FALSE) -> 73.5 | H158: =H127 -> 0.8387096774 | I158: 0.703433923 | J158: 84.5 | K158: 83 | L158: 0 | M158: 0 | O158: 82.51749694 | P158: -1.01749694 | Q158: 1.035300022
B159: 151 | C159: 2012 | D159: 2012-08-05 | E159: =VLOOKUP($D159, data!$D$5:$E$6326,2, FALSE) -> 84.5 | F159: =VLOOKUP($D159, data!$G$5:$H$6326,2, FALSE) -> 75 | H159: =H128 -> 0.8709677419 | I159: 0.7585848075 | J159: 83 | K159: 83.5 | L159: 0 | M159: 0 | O159: 81.3533706 | P159: 3.146629404 | Q159: 9.901276604
B160: 152 | C160: 2012 | D160: 2012-08-04 | E160: =VLOOKUP($D160, data!$D$5:$E$6326,2, FALSE) -> 83 | F160: =VLOOKUP($D160, data!$G$5:$H$6326,2, FALSE) -> 82 | H160: =H129 -> 0.9032258065 | I160: 0.8158168574 | J160: 83.5 | K160: 80.5 | L160: 0 | M160: 0 | O160: 82.37557482 | P160: 0.6244251841 | Q160: 0.3899068105
B161: 153 | C161: 2012 | D161: 2012-08-03 | E161: =VLOOKUP($D161, data!$D$5:$E$6326,2, FALSE) -> 83.5 | F161: =VLOOKUP($D161, data!$G$5:$H$6326,2, FALSE) -> 83 | H161: =H130 -> 0.935483871 | I161: 0.8751300728 | J161: 80.5 | K161: 75.5 | L161: 0 | M161: 0 | O161: 80.93172854 | P161: 2.568271462 | Q161: 6.596018301
B162: 154 | C162: 2012 | D162: 2012-08-02 | E162: =VLOOKUP($D162, data!$D$5:$E$6326,2, FALSE) -> 80.5 | F162: =VLOOKUP($D162, data!$G$5:$H$6326,2, FALSE) -> 79.5 | H162: =H131 -> 0.9677419355 | I162: 0.9365244537 | J162: 75.5 | K162: 0 | L162: 0 | M162: 1 | O162: 76.7495288 | P162: 3.750471204 | Q162: 14.06603425
B163: 155 | C163: 2012 | D163: 2012-08-01 | E163: =VLOOKUP($D163, data!$D$5:$E$6326,2, FALSE) -> 75.5 | F163: =VLOOKUP($D163, data!$G$5:$H$6326,2, FALSE) -> 79 | H163: =H132 -> 1 | I163: 1 | J163: 0 | K163: 0 | L163: 1 | M163: 0 | O163: 78.82352941 | P163: -3.323529412 | Q163: 11.04584775
B164: 156 | C164: 2011 | D164: =DATE(C164, 8, 31) -> 2011-08-31 | E164: =VLOOKUP($D164, data!$D$5:$E$6326,2, FALSE) -> 74.5 | F164: =VLOOKUP($D164, data!$G$5:$H$6326,2, FALSE) -> 76 | H164: =H133 -> 0.03225806452 | I164: =I133 -> 0.001040582726 | J164: =E165 -> 72.5 | K164: =E166 -> 68 | L164: 0 | M164: 0 | O164: 74.55170367 | P164: -0.05170366552 | Q164: 0.002673269028
B165: 157 | C165: =C164 -> 2011 | D165: =D164-1 -> 2011-08-30 | E165: =VLOOKUP($D165, data!$D$5:$E$6326,2, FALSE) -> 72.5 | F165: =VLOOKUP($D165, data!$G$5:$H$6326,2, FALSE) -> 68.5 | H165: =H134 -> 0.06451612903 | I165: 0.004162330905 | J165: =E166 -> 68 | K165: =E167 -> 71 | L165: 0 | M165: 0 | O165: 70.4060081 | P165: 2.093991899 | Q165: 4.384802075
B166: 158 | C166: 2011 | D166: 2011-08-29 | E166: =VLOOKUP($D166, data!$D$5:$E$6326,2, FALSE) -> 68 | F166: =VLOOKUP($D166, data!$G$5:$H$6326,2, FALSE) -> 69 | H166: =H135 -> 0.09677419355 | I166: 0.009365244537 | J166: 71 | K166: 77 | L166: 0 | M166: 0 | O166: 71.77791762 | P166: -3.777917623 | Q166: 14.27266156
B167: 159 | C167: 2011 | D167: 2011-08-28 | E167: =VLOOKUP($D167, data!$D$5:$E$6326,2, FALSE) -> 71 | F167: =VLOOKUP($D167, data!$G$5:$H$6326,2, FALSE) -> 69 | H167: =H136 -> 0.1290322581 | I167: 0.01664932362 | J167: 77 | K167: 78.5 | L167: 0 | M167: 0 | O167: 76.30214577 | P167: -5.302145768 | Q167: 28.11274974
B168: 160 | C168: 2011 | D168: 2011-08-27 | E168: =VLOOKUP($D168, data!$D$5:$E$6326,2, FALSE) -> 77 | F168: =VLOOKUP($D168, data!$G$5:$H$6326,2, FALSE) -> 72.5 | H168: =H137 -> 0.1612903226 | I168: 0.02601456816 | J168: 78.5 | K168: 76.5 | L168: 0 | M168: 0 | O168: 77.80718115 | P168: -0.8071811481 | Q168: 0.6515414058
B169: 161 | C169: 2011 | D169: 2011-08-26 | E169: =VLOOKUP($D169, data!$D$5:$E$6326,2, FALSE) -> 78.5 | F169: =VLOOKUP($D169, data!$G$5:$H$6326,2, FALSE) -> 71 | H169: =H138 -> 0.1935483871 | I169: 0.03746097815 | J169: 76.5 | K169: 72.5 | L169: 0 | M169: 0 | O169: 76.84616603 | P169: 1.653833969 | Q169: 2.735166796
B170: 162 | C170: 2011 | D170: 2011-08-25 | E170: =VLOOKUP($D170, data!$D$5:$E$6326,2, FALSE) -> 76.5 | F170: =VLOOKUP($D170, data!$G$5:$H$6326,2, FALSE) -> 73.5 | H170: =H139 -> 0.2258064516 | I170: 0.05098855359 | J170: 72.5 | K170: 72 | L170: 0 | M170: 0 | O170: 73.71211429 | P170: 2.787885713 | Q170: 7.772306747
B171: 163 | C171: 2011 | D171: 2011-08-24 | E171: =VLOOKUP($D171, data!$D$5:$E$6326,2, FALSE) -> 72.5 | F171: =VLOOKUP($D171, data!$G$5:$H$6326,2, FALSE) -> 80.5 | H171: =H140 -> 0.2580645161 | I171: 0.06659729448 | J171: 72 | K171: 74.5 | L171: 0 | M171: 0 | O171: 72.89226866 | P171: -0.3922686599 | Q171: 0.1538747015
B172: 164 | C172: 2011 | D172: 2011-08-23 | E172: =VLOOKUP($D172, data!$D$5:$E$6326,2, FALSE) -> 72 | F172: =VLOOKUP($D172, data!$G$5:$H$6326,2, FALSE) -> 67.5 | H172: =H141 -> 0.2903225806 | I172: 0.08428720083 | J172: 74.5 | K172: 79.5 | L172: 0 | M172: 0 | O172: 74.06877344 | P172: -2.068773436 | Q172: 4.279823529
B173: 165 | C173: 2011 | D173: 2011-08-22 | E173: =VLOOKUP($D173, data!$D$5:$E$6326,2, FALSE) -> 74.5 | F173: =VLOOKUP($D173, data!$G$5:$H$6326,2, FALSE) -> 70.5 | H173: =H142 -> 0.3225806452 | I173: 0.1040582726 | J173: 79.5 | K173: 77 | L173: 0 | M173: 0 | O173: 78.49258691 | P173: -3.992586915 | Q173: 15.94075027
B174: 166 | C174: 2011 | D174: 2011-08-21 | E174: =VLOOKUP($D174, data!$D$5:$E$6326,2, FALSE) -> 79.5 | F174: =VLOOKUP($D174, data!$G$5:$H$6326,2, FALSE) -> 72 | H174: =H143 -> 0.3548387097 | I174: 0.1259105099 | J174: 77 | K174: 76.5 | L174: 0 | M174: 0 | O174: 76.58639766 | P174: 2.913602343 | Q174: 8.489078614
B175: 167 | C175: 2011 | D175: 2011-08-20 | E175: =VLOOKUP($D175, data!$D$5:$E$6326,2, FALSE) -> 77 | F175: =VLOOKUP($D175, data!$G$5:$H$6326,2, FALSE) -> 73 | H175: =H144 -> 0.3870967742 | I175: 0.1498439126 | J175: 76.5 | K175: 78 | L175: 0 | M175: 0 | O175: 75.95827822 | P175: 1.041721781 | Q175: 1.08518427
B176: 168 | C176: 2011 | D176: 2011-08-19 | E176: =VLOOKUP($D176, data!$D$5:$E$6326,2, FALSE) -> 76.5 | F176: =VLOOKUP($D176, data!$G$5:$H$6326,2, FALSE) -> 75.5 | H176: =H145 -> 0.4193548387 | I176: 0.1758584807 | J176: 78 | K176: 77.5 | L176: 0 | M176: 0 | O176: 77.26878187 | P176: -0.7687818679 | Q176: 0.5910255604
B177: 169 | C177: 2011 | D177: 2011-08-18 | E177: =VLOOKUP($D177, data!$D$5:$E$6326,2, FALSE) -> 78 | F177: =VLOOKUP($D177, data!$G$5:$H$6326,2, FALSE) -> 75.5 | H177: =H146 -> 0.4516129032 | I177: 0.2039542144 | J177: 77.5 | K177: 73.5 | L177: 0 | M177: 0 | O177: 77.56221711 | P177: 0.4377828907 | Q177: 0.1916538594
B178: 170 | C178: 2011 | D178: 2011-08-17 | E178: =VLOOKUP($D178, data!$D$5:$E$6326,2, FALSE) -> 77.5 | F178: =VLOOKUP($D178, data!$G$5:$H$6326,2, FALSE) -> 72.5 | H178: =H147 -> 0.4838709677 | I178: 0.2341311134 | J178: 73.5 | K178: 75.5 | L178: 0 | M178: 0 | O178: 74.06849532 | P178: 3.431504683 | Q178: 11.77522439
B179: 171 | C179: 2011 | D179: 2011-08-16 | E179: =VLOOKUP($D179, data!$D$5:$E$6326,2, FALSE) -> 73.5 | F179: =VLOOKUP($D179, data!$G$5:$H$6326,2, FALSE) -> 73 | H179: =H148 -> 0.5161290323 | I179: 0.2663891779 | J179: 75.5 | K179: 71.5 | L179: 0 | M179: 0 | O179: 76.37734885 | P179: -2.877348851 | Q179: 8.279136413
B180: 172 | C180: 2011 | D180: 2011-08-15 | E180: =VLOOKUP($D180, data!$D$5:$E$6326,2, FALSE) -> 75.5 | F180: =VLOOKUP($D180, data!$G$5:$H$6326,2, FALSE) -> 69.5 | H180: =H149 -> 0.5483870968 | I180: 0.3007284079 | J180: 71.5 | K180: 78 | L180: 0 | M180: 0 | O180: 72.15379857 | P180: 3.346201431 | Q180: 11.19706402
B181: 173 | C181: 2011 | D181: 2011-08-14 | E181: =VLOOKUP($D181, data!$D$5:$E$6326,2, FALSE) -> 71.5 | F181: =VLOOKUP($D181, data!$G$5:$H$6326,2, FALSE) -> 68.5 | H181: =H150 -> 0.5806451613 | I181: 0.3371488033 | J181: 78 | K181: 75 | L181: 0 | M181: 0 | O181: 77.91463156 | P181: -6.414631564 | Q181: 41.14749811
B182: 174 | C182: 2011 | D182: 2011-08-13 | E182: =VLOOKUP($D182, data!$D$5:$E$6326,2, FALSE) -> 78 | F182: =VLOOKUP($D182, data!$G$5:$H$6326,2, FALSE) -> 72.5 | H182: =H151 -> 0.6129032258 | I182: 0.3756503642 | J182: 75 | K182: 77.5 | L182: 0 | M182: 0 | O182: 75.16577823 | P182: 2.834221772 | Q182: 8.03281305
B183: 175 | C183: 2011 | D183: 2011-08-12 | E183: =VLOOKUP($D183, data!$D$5:$E$6326,2, FALSE) -> 75 | F183: =VLOOKUP($D183, data!$G$5:$H$6326,2, FALSE) -> 70.5 | H183: =H152 -> 0.6451612903 | I183: 0.4162330905 | J183: 77.5 | K183: 80 | L183: 0 | M183: 0 | O183: 76.82824545 | P183: -1.828245446 | Q183: 3.342481409
B184: 176 | C184: 2011 | D184: 2011-08-11 | E184: =VLOOKUP($D184, data!$D$5:$E$6326,2, FALSE) -> 77.5 | F184: =VLOOKUP($D184, data!$G$5:$H$6326,2, FALSE) -> 69 | H184: =H153 -> 0.6774193548 | I184: 0.4588969823 | J184: 80 | K184: 78 | L184: 0 | M184: 0 | O184: 79.24048206 | P184: -1.740482057 | Q184: 3.029277792
B185: 177 | C185: 2011 | D185: 2011-08-10 | E185: =VLOOKUP($D185, data!$D$5:$E$6326,2, FALSE) -> 80 | F185: =VLOOKUP($D185, data!$G$5:$H$6326,2, FALSE) -> 69 | H185: =H154 -> 0.7096774194 | I185: 0.5036420395 | J185: 78 | K185: 85 | L185: 0 | M185: 0 | O185: 76.56929694 | P185: 3.430703058 | Q185: 11.76972347
B186: 178 | C186: 2011 | D186: 2011-08-09 | E186: =VLOOKUP($D186, data!$D$5:$E$6326,2, FALSE) -> 78 | F186: =VLOOKUP($D186, data!$G$5:$H$6326,2, FALSE) -> 72 | H186: =H155 -> 0.7419354839 | I186: 0.5504682622 | J186: 85 | K186: 85 | L186: 0 | M186: 0 | O186: 82.2683747 | P186: -4.268374698 | Q186: 18.21902256
B187: 179 | C187: 2011 | D187: 2011-08-08 | E187: =VLOOKUP($D187, data!$D$5:$E$6326,2, FALSE) -> 85 | F187: =VLOOKUP($D187, data!$G$5:$H$6326,2, FALSE) -> 74 | H187: =H156 -> 0.7741935484 | I187: 0.5993756504 | J187: 85 | K187: 78.5 | L187: 0 | M187: 0 | O187: 83.44155028 | P187: 1.558449717 | Q187: 2.428765519
B188: 180 | C188: 2011 | D188: 2011-08-07 | E188: =VLOOKUP($D188, data!$D$5:$E$6326,2, FALSE) -> 85 | F188: =VLOOKUP($D188, data!$G$5:$H$6326,2, FALSE) -> 77 | H188: =H157 -> 0.8064516129 | I188: 0.650364204 | J188: 78.5 | K188: 77.5 | L188: 0 | M188: 0 | O188: 78.50758877 | P188: 6.492411234 | Q188: 42.15140363
B189: 181 | C189: 2011 | D189: 2011-08-06 | E189: =VLOOKUP($D189, data!$D$5:$E$6326,2, FALSE) -> 78.5 | F189: =VLOOKUP($D189, data!$G$5:$H$6326,2, FALSE) -> 78.5 | H189: =H158 -> 0.8387096774 | I189: 0.703433923 | J189: 77.5 | K189: 76.5 | L189: 0 | M189: 0 | O189: 77.9849478 | P189: 0.5150521985 | Q189: 0.2652787672
B190: 182 | C190: 2011 | D190: 2011-08-05 | E190: =VLOOKUP($D190, data!$D$5:$E$6326,2, FALSE) -> 77.5 | F190: =VLOOKUP($D190, data!$G$5:$H$6326,2, FALSE) -> 76 | H190: =H159 -> 0.8709677419 | I190: 0.7585848075 | J190: 76.5 | K190: 78 | L190: 0 | M190: 0 | O190: 77.05610801 | P190: 0.4438919876 | Q190: 0.1970400966
B191: 183 | C191: 2011 | D191: 2011-08-04 | E191: =VLOOKUP($D191, data!$D$5:$E$6326,2, FALSE) -> 76.5 | F191: =VLOOKUP($D191, data!$G$5:$H$6326,2, FALSE) -> 76.5 | H191: =H160 -> 0.9032258065 | I191: 0.8158168574 | J191: 78 | K191: 83 | L191: 0 | M191: 0 | O191: 77.55805544 | P191: -1.058055439 | Q191: 1.119481311
B192: 184 | C192: 2011 | D192: 2011-08-03 | E192: =VLOOKUP($D192, data!$D$5:$E$6326,2, FALSE) -> 78 | F192: =VLOOKUP($D192, data!$G$5:$H$6326,2, FALSE) -> 79 | H192: =H161 -> 0.935483871 | I192: 0.8751300728 | J192: 83 | K192: 85.5 | L192: 0 | M192: 0 | O192: 81.28246972 | P192: -3.282469725 | Q192: 10.77460749
B193: 185 | C193: 2011 | D193: 2011-08-02 | E193: =VLOOKUP($D193, data!$D$5:$E$6326,2, FALSE) -> 83 | F193: =VLOOKUP($D193, data!$G$5:$H$6326,2, FALSE) -> 83.5 | H193: =H162 -> 0.9677419355 | I193: 0.9365244537 | J193: 85.5 | K193: 0 | L193: 0 | M193: 1 | O193: 84.75802622 | P193: -1.758026223 | Q193: 3.090656202
B194: 186 | C194: 2011 | D194: 2011-08-01 | E194: =VLOOKUP($D194, data!$D$5:$E$6326,2, FALSE) -> 85.5 | F194: =VLOOKUP($D194, data!$G$5:$H$6326,2, FALSE) -> 82.5 | H194: =H163 -> 1 | I194: 1 | J194: 0 | K194: 0 | L194: 1 | M194: 0 | O194: 78.82352941 | P194: 6.676470588 | Q194: 44.57525952
B195: 187 | C195: =C164-1 -> 2010 | D195: =DATE(C195, 8, 31) -> 2010-08-31 | E195: =VLOOKUP($D195, data!$D$5:$E$6326,2, FALSE) -> 85.5 | F195: =VLOOKUP($D195, data!$G$5:$H$6326,2, FALSE) -> 84 | H195: =H164 -> 0.03225806452 | I195: =I164 -> 0.001040582726 | J195: =E196 -> 83.5 | K195: =E197 -> 79 | L195: 0 | M195: 0 | O195: 81.54452935 | P195: 3.955470652 | Q195: 15.64574808
B196: 188 | C196: 2010 | D196: =D195-1 -> 2010-08-30 | E196: =VLOOKUP($D196, data!$D$5:$E$6326,2, FALSE) -> 83.5 | F196: =VLOOKUP($D196, data!$G$5:$H$6326,2, FALSE) -> 83 | H196: =H165 -> 0.06451612903 | I196: 0.004162330905 | J196: =E197 -> 79 | K196: =E198 -> 72 | L196: 0 | M196: 0 | O196: 79.05021695 | P196: 4.449783047 | Q196: 19.80056916
B197: 189 | C197: 2010 | D197: 2010-08-29 | E197: =VLOOKUP($D197, data!$D$5:$E$6326,2, FALSE) -> 79 | F197: =VLOOKUP($D197, data!$G$5:$H$6326,2, FALSE) -> 82.5 | H197: =H166 -> 0.09677419355 | I197: 0.009365244537 | J197: 72 | K197: 70.5 | L197: 0 | M197: 0 | O197: 73.65216643 | P197: 5.347833574 | Q197: 28.59932393
B198: 190 | C198: 2010 | D198: 2010-08-28 | E198: =VLOOKUP($D198, data!$D$5:$E$6326,2, FALSE) -> 72 | F198: =VLOOKUP($D198, data!$G$5:$H$6326,2, FALSE) -> 76.5 | H198: =H167 -> 0.1290322581 | I198: 0.01664932362 | J198: 70.5 | K198: 75.5 | L198: 0 | M198: 0 | O198: 71.59203739 | P198: 0.4079626088 | Q198: 0.1664334902
B199: 191 | C199: 2010 | D199: 2010-08-27 | E199: =VLOOKUP($D199, data!$D$5:$E$6326,2, FALSE) -> 70.5 | F199: =VLOOKUP($D199, data!$G$5:$H$6326,2, FALSE) -> 72.5 | H199: =H168 -> 0.1612903226 | I199: 0.02601456816 | J199: 75.5 | K199: 68 | L199: 0 | M199: 0 | O199: 76.80830761 | P199: -6.308307615 | Q199: 39.79474496
B200: 192 | C200: 2010 | D200: 2010-08-26 | E200: =VLOOKUP($D200, data!$D$5:$E$6326,2, FALSE) -> 75.5 | F200: =VLOOKUP($D200, data!$G$5:$H$6326,2, FALSE) -> 69 | H200: =H169 -> 0.1935483871 | I200: 0.03746097815 | J200: 68 | K200: 68 | L200: 0 | M200: 0 | O200: 70.78206564 | P200: 4.717934355 | Q200: 22.25890458
B201: 193 | C201: 2010 | D201: 2010-08-25 | E201: =VLOOKUP($D201, data!$D$5:$E$6326,2, FALSE) -> 68 | F201: =VLOOKUP($D201, data!$G$5:$H$6326,2, FALSE) -> 70 | H201: =H170 -> 0.2258064516 | I201: 0.05098855359 | J201: 68 | K201: 68.5 | L201: 0 | M201: 0 | O201: 70.68627455 | P201: -2.686274555 | Q201: 7.216070984
B202: 194 | C202: 2010 | D202: 2010-08-24 | E202: =VLOOKUP($D202, data!$D$5:$E$6326,2, FALSE) -> 68 | F202: =VLOOKUP($D202, data!$G$5:$H$6326,2, FALSE) -> 74 | H202: =H171 -> 0.2580645161 | I202: 0.06659729448 | J202: 68.5 | K202: 76 | L202: 0 | M202: 0 | O202: =$O$7+SUMPRODUCT(H$7:M$7, H202:M202) -> 69.84158708 | P202: =E202-O202 -> -1.841587085 | Q202: =P202*P202 -> 3.391442991
B203: =B202+1 -> 195 | C203: 2010 | D203: 2010-08-23 | E203: =VLOOKUP($D203, data!$D$5:$E$6326,2, FALSE) -> 68.5 | F203: =VLOOKUP($D203, data!$G$5:$H$6326,2, FALSE) -> 72.5 | H203: =H172 -> 0.2903225806 | I203: 0.08428720083 | J203: 76 | K203: 73.5 | L203: 0 | M203: 0 | O203: 76.26087795 | P203: -7.760877952 | Q203: 60.23122659
... 332 more rows

Sheet Jul
D2: OLS Data | H2: Explanatory variables | O2: OLS fitted data | S2: Data projections | AF2: Statistics
E4: =AVERAGE(E9:E535) -> 78.17368121 | F4: =AVERAGE(F9:F535) -> 74.37474383 | H4: π | I4: =PI() -> 3.141592654 | Q4: =AVERAGE(Q9:Q535) -> 13.66943022
E5: =STDEV(E9:E535) -> 5.276201007 | F5: =STDEV(F9:F535) -> 5.901233702 | H5: p | I5: 1 | Q5: =SQRT(Q4) -> 3.697219255
C7: July | H7: ='ols A'!D26 -> 1.248842955 | I7: ='ols A'!D27 -> -1.350962968 | J7: ='ols A'!D28 -> 0.8100376412 | K7: ='ols A'!D29 -> -0.1474875152 | L7: ='ols A'!D30 -> 50.38766648 | M7: ='ols A'!D31 -> -11.23774086 | O7: ='ols A'!D25 -> 26.24386529 | P7: =SUM(P9:P535) -> 2.166018476e-09 | U7: =SUM(U9:U39) -> 408.6789878
B8: # | C8: Year | D8: Date | E8: EWR: Jul | F8: ORD | H8: Linear | I8: Quadratic | J8: EWR T[t-1] | K8: EWR T[t-2] | L8: Jul 1st | M8: Jul 2nd | O8: EWR: Jul, fitted | P8: res | Q8: res2 | S8: Date | T8: EWR: proj | U8: CDD: µ | V8: Ak | W8: Bk | X8: CDD: σ factor | Y8: CDD: σ | Z8: CDD: x=-μ/σ | AA8: CDD mean | AB8: CDD s2 | AC8: CDD stdev | AD8: CDD cum: σ factor | AF8: Statistics | AG8: Value
B9: 1 | C9: 2016 | D9: =DATE(C9, 7, 31) -> 2016-07-31 | E9: =VLOOKUP(D9, data!$D$5:$E$6326,2, FALSE) -> 76.01 | F9: =VLOOKUP(D9, data!$G$5:$H$6326,2, FALSE) -> 72.95 | H9: =B9/31 -> 0.03225806452 | I9: =H9*H9 -> 0.001040582726 | J9: =E10 -> 79.5 | K9: =E11 -> 78 | L9: 0 | M9: 0 | O9: =$O$7+SUMPRODUCT(H$7:M$7, H9:M9) -> 79.17671106 | P9: =E9-O9 -> -3.166711057 | Q9: =P9*P9 -> 10.02805892 | S9: 2017-07-31 | T9: =$O$7+SUMPRODUCT(H$7:I$7, H9:I9) + $J$7*T10+$K$7*T11 -> 78.03373857 | U9: =T9-65 -> 13.03373857 | V9: =V10*$J$7+W10 -> 1.36505116e-08 | W9: =V10*$K$7 -> -3.772474596e-09 | X9: =SQRT(SUMPRODUCT(V9:V$39, V9:V$39)) -> 1.427464444 | Y9: =X9*$AG$17 -> 5.28178507 | Z9: =-U9/Y9 -> -2.467676817 | AA9: =U9*(1-NORMDIST(Z9, 0, 1, TRUE)) + Y9*NORMDIST(Z9, 0, 1, FALSE) -> 13.04543382 | AB9: =(U9*U9+Y9*Y9)*(1-NORMDIST(Z9, 0, 1, TRUE)) + 2*U9*Y9*NORMDIST(Z9, 0, 1, FALSE) -> 199.0458823 | AC9: =SQRT(AB9-AA9*AA9) -> 5.372386688 | AD9: =SUM(V9:V$39) -> 2.963403077 | AF9: Number of years | AG9: 17
B10: =B9+1 -> 2 | C10: =C9 -> 2016 | D10: =D9-1 -> 2016-07-30 | E10: =VLOOKUP(D10, data!$D$5:$E$6326,2, FALSE) -> 79.5 | F10: =VLOOKUP(D10, data!$G$5:$H$6326,2, FALSE) -> 73.05 | H10: 0.06451612903 | I10: =H10*H10 -> 0.004162330905 | J10: =E11 -> 78 | K10: =E12 -> 84 | L10: 0 | M10: 0 | O10: =$O$7+SUMPRODUCT(H$7:M$7, H10:M10) -> 77.11279739 | P10: =E10-O10 -> 2.387202606 | Q10: =P10*P10 -> 5.69873628 | S10: =S9-1 -> 2017-07-30 | T10: 78.12790506 | U10: =T10-65 -> 13.12790506 | V10: 2.557826398e-08 | W10: -7.068845023e-09 | X10: =SQRT(SUMPRODUCT(V10:V$39, V10:V$39)) -> 1.427464444 | Y10: =X10*$AG$17 -> 5.28178507 | Z10: -2.485505352 | AA10: 13.13897573 | AB10: 201.4641372 | AC10: =SQRT(AB10-AA10*AA10) -> 5.369492907 | AD10: =SUM(V10:V$39) -> 2.963403063 | AF10: Cumulative projected CDD | AG10: =SUM(AA9:AA39) -> 408.982735
B11: =B10+1 -> 3 | C11: 2016 | D11: 2016-07-29 | E11: =VLOOKUP(D11, data!$D$5:$E$6326,2, FALSE) -> 78 | F11: =VLOOKUP(D11, data!$G$5:$H$6326,2, FALSE) -> 75.5 | H11: 0.09677419355 | I11: 0.009365244537 | J11: 84 | K11: 83 | L11: 0 | M11: 0 | O11: 82.15376707 | P11: -4.15376707 | Q11: 17.25378087 | S11: =S10-1 -> 2017-07-29 | T11: 78.21373971 | U11: 13.21373971 | V11: 4.792842984e-08 | W11: -1.324556828e-08 | X11: =SQRT(SUMPRODUCT(V11:V$39, V11:V$39)) -> 1.427464444 | Y11: 5.28178507 | Z11: -2.501756421 | AA11: 13.22426767 | AB11: 203.6848844 | AC11: 5.36690125 | AD11: =SUM(V11:V$39) -> 2.963403038 | AF11: Variance on Aug 1st | AG11: =SUMPRODUCT(L9:L535, Q9:Q535)/AG9 -> 12.9550173
B12: 4 | C12: 2016 | D12: 2016-07-28 | E12: =VLOOKUP(D12, data!$D$5:$E$6326,2, FALSE) -> 84 | F12: =VLOOKUP(D12, data!$G$5:$H$6326,2, FALSE) -> 77 | H12: 0.1290322581 | I12: 0.01664932362 | J12: 83 | K12: 82.5 | L12: 0 | M12: 0 | O12: 81.44791792 | P12: 2.552082078 | Q12: 6.513122934 | S12: 2017-07-28 | T12: 78.29124252 | U12: 13.29124252 | V12: 8.980806452e-08 | W12: -2.481948291e-08 | X12: =SQRT(SUMPRODUCT(V12:V$39, V12:V$39)) -> 1.427464444 | Y12: 5.28178507 | Z12: -2.516430021 | AA12: 13.30130139 | AB12: 205.7035484 | AC12: 5.364599684 | AD12: =SUM(V12:V$39) -> 2.96340299 | AF12: StDev on Jul 1st | AG12: =SQRT(AG11) -> 3.599307892
B13: 5 | C13: 2016 | D13: 2016-07-27 | E13: =VLOOKUP(D13, data!$D$5:$E$6326,2, FALSE) -> 83 | F13: =VLOOKUP(D13, data!$G$5:$H$6326,2, FALSE) -> 78.55 | H13: 0.1612903226 | I13: 0.02601456816 | J13: 82.5 | K13: 86 | L13: 0 | M13: 0 | O13: 80.55432596 | P13: 2.445674044 | Q13: 5.981321529 | S13: 2017-07-27 | T13: 78.36041346 | U13: 13.36041346 | V13: 1.682819246e-07 | W13: -4.650662876e-08 | X13: =SQRT(SUMPRODUCT(V13:V$39, V13:V$39)) -> 1.427464444 | Y13: 5.28178507 | Z13: -2.529526152 | AA13: 13.37006986 | AB13: 207.5159992 | AC13: 5.362576911 | AD13: =SUM(V13:V$39) -> 2.9634029 | AF13: AR(1) coefficient | AG13: =J7 -> 0.8100376412
B14: 6 | C14: 2016 | D14: 2016-07-26 | E14: =VLOOKUP(D14, data!$D$5:$E$6326,2, FALSE) -> 82.5 | F14: =VLOOKUP(D14, data!$G$5:$H$6326,2, FALSE) -> 78.5 | H14: 0.1935483871 | I14: 0.03746097815 | J14: 86 | K14: 84.56 | L14: 0 | M14: 0 | O14: 83.6266613 | P14: -1.126661303 | Q14: 1.269365691 | S14: 2017-07-26 | T14: 78.42125254 | U14: 13.42125254 | V14: 3.153258681e-07 | W14: -8.71438978e-08 | X14: =SQRT(SUMPRODUCT(V14:V$39, V14:V$39)) -> 1.427464444 | Y14: 5.28178507 | Z14: -2.541044811 | AA14: 13.43056715 | AB14: 209.1185523 | AC14: 5.360822547 | AD14: =SUM(V14:V$39) -> 2.963402732 | AF14: AR(2) coefficient | AG14: =K7 -> -0.1474875152
B15: 7 | C15: 2016 | D15: 2016-07-25 | E15: =VLOOKUP(D15, data!$D$5:$E$6326,2, FALSE) -> 86 | F15: =VLOOKUP(D15, data!$G$5:$H$6326,2, FALSE) -> 80.53 | H15: 0.2258064516 | I15: 0.05098855359 | J15: 84.56 | K15: 89.06 | L15: 0 | M15: 0 | O15: 81.81852328 | P15: 4.181476716 | Q15: 17.48474752 | S15: 2017-07-25 | T15: 78.47375973 | U15: 13.47375973 | V15: 5.908560986e-07 | W15: -1.632898123e-07 | X15: =SQRT(SUMPRODUCT(V15:V$39, V15:V$39)) -> 1.427464444 | Y15: 5.28178507 | Z15: -2.550985992 | AA15: 13.48278826 | AB15: 210.5079679 | AC15: 5.359327253 | AD15: =SUM(V15:V$39) -> 2.963402416 | AF15: AR(1) cumulative | AG15: =1/(1-AG13) -> 5.264200795
B16: 8 | C16: 2016 | D16: 2016-07-24 | E16: =VLOOKUP(D16, data!$D$5:$E$6326,2, FALSE) -> 84.56 | F16: =VLOOKUP(D16, data!$G$5:$H$6326,2, FALSE) -> 82.04 | H16: 0.2580645161 | I16: 0.06659729448 | J16: 89.06 | K16: 85 | L16: 0 | M16: 0 | O16: 86.08169041 | P16: -1.521690407 | Q16: 2.315541695 | S16: 2017-07-24 | T16: 78.51793496 | U16: 13.51793496 | V16: 1.107143287e-06 | W16: -3.059716379e-07 | X16: =SQRT(SUMPRODUCT(V16:V$39, V16:V$39)) -> 1.427464444 | Y16: 5.28178507 | Z16: -2.559349686 | AA16: 13.52672906 | AB16: 211.6814508 | AC16: 5.358082835 | AD16: =SUM(V16:V$39) -> 2.963401825 | AF16: Variance on days other than Jul 1st | AG16: =(SUM(Q9:Q533) - AG11*AG9) / (30*AG9) -> 13.69086381
B17: 9 | C17: 2016 | D17: 2016-07-23 | E17: =VLOOKUP(D17, data!$D$5:$E$6326,2, FALSE) -> 89.06 | F17: =VLOOKUP(D17, data!$G$5:$H$6326,2, FALSE) -> 80.5 | H17: 0.2903225806 | I17: 0.08428720083 | J17: 85 | K17: 80.5 | L17: 0 | M17: 0 | O17: 83.47301825 | P17: 5.58698175 | Q17: 31.21436507 | S17: 2017-07-23 | T17: 78.55377815 | U17: 13.55377815 | V17: 2.074559583e-06 | W17: -5.733280642e-07 | X17: =SQRT(SUMPRODUCT(V17:V$39, V17:V$39)) -> 1.427464444 | Y17: 5.28178507 | Z17: -2.566135875 | AA17: 13.56238614 | AB17: 212.6366486 | AC17: 5.357082317 | AD17: =SUM(V17:V$39) -> 2.963400718 | AF17: StDev on days other than Jul 1st | AG17: =SQRT(AG16) -> 3.700116729
B18: 10 | C18: 2016 | D18: 2016-07-22 | E18: =VLOOKUP(D18, data!$D$5:$E$6326,2, FALSE) -> 85 | F18: =VLOOKUP(D18, data!$G$5:$H$6326,2, FALSE) -> 80.98 | H18: 0.3225806452 | I18: 0.1040582726 | J18: 80.5 | K18: 76.01 | L18: 0 | M18: 0 | O18: 80.50364308 | P18: 4.496356921 | Q18: 20.21722556 | S18: 2017-07-22 | T18: 78.58128912 | U18: 13.58128912 | V18: 3.887298959e-06 | W18: -1.074298897e-06 | X18: =SQRT(SUMPRODUCT(V18:V$39, V18:V$39)) -> 1.427464444 | Y18: 5.28178507 | Z18: -2.571344524 | AA18: 13.5897567 | AB18: 213.3716509 | AC18: 5.356319987 | AD18: =SUM(V18:V$39) -> 2.963398644 | AF18: Cumulative CDD StDev | AG18: =AG17*SQRT(SUMPRODUCT(AD9:AD39, AD9:AD39)) -> 58.64448153
B19: 11 | C19: 2016 | D19: 2016-07-21 | E19: =VLOOKUP(D19, data!$D$5:$E$6326,2, FALSE) -> 80.5 | F19: =VLOOKUP(D19, data!$G$5:$H$6326,2, FALSE) -> 81.5 | H19: 0.3548387097 | I19: 0.1259105099 | J19: 76.01 | K19: 78.5 | L19: 0 | M19: 0 | O19: 76.51009385 | P19: 3.98990615 | Q19: 15.91935108 | S19: 2017-07-21 | T19: 78.60046751 | U19: 13.60046751 | V19: 7.283998891e-06 | W19: -2.013014321e-06 | X19: =SQRT(SUMPRODUCT(V19:V$39, V19:V$39)) -> 1.427464444 | Y19: 5.28178507 | Z19: -2.574975568 | AA19: 13.60883846 | AB19: 213.8849861 | AC19: 5.355791442 | AD19: =SUM(V19:V$39) -> 2.963394756
B20: 12 | C20: 2016 | D20: 2016-07-20 | E20: =VLOOKUP(D20, data!$D$5:$E$6326,2, FALSE) -> 76.01 | F20: =VLOOKUP(D20, data!$G$5:$H$6326,2, FALSE) -> 78.53 | H20: 0.3870967742 | I20: 0.1498439126 | J20: 78.5 | K20: 83.48 | L20: 0 | M20: 0 | O20: 77.80055187 | P20: -1.790551867 | Q20: 3.206075989 | S20: 2017-07-20 | T20: 78.6113127 | U20: 13.6113127 | V20: 1.364870999e-05 | W20: -3.771969952e-06 | X20: =SQRT(SUMPRODUCT(V20:V$39, V20:V$39)) -> 1.427464444 | Y20: 5.28178507 | Z20: -2.577028888 | AA20: 13.61962945 | AB20: 214.1756181 | AC20: 5.355493607 | AD20: =SUM(V20:V$39) -> 2.963387472
B21: 13 | C21: 2016 | D21: 2016-07-19 | E21: =VLOOKUP(D21, data!$D$5:$E$6326,2, FALSE) -> 78.5 | F21: =VLOOKUP(D21, data!$G$5:$H$6326,2, FALSE) -> 79.5 | H21: 0.4193548387 | I21: 0.1758584807 | J21: 83.48 | K21: 83 | L21: 0 | M21: 0 | O21: 81.91047387 | P21: -3.410473866 | Q21: 11.63133199 | S21: 2017-07-19 | T21: 78.6138235 | U21: 13.6138235 | V21: 2.557484237e-05 | W21: -7.067875002e-06 | X21: =SQRT(SUMPRODUCT(V21:V$39, V21:V$39)) -> 1.427464444 | Y21: 5.28178507 | Z21: -2.577504256 | AA21: 13.62212774 | AB21: 214.2429386 | AC21: 5.355424763 | AD21: =SUM(V21:V$39) -> 2.963373824
B22: 14 | C22: 2016 | D22: 2016-07-18 | E22: =VLOOKUP(D22, data!$D$5:$E$6326,2, FALSE) -> 83.48 | F22: =VLOOKUP(D22, data!$G$5:$H$6326,2, FALSE) -> 79.55 | H22: 0.4516129032 | I22: 0.2039542144 | J22: 83 | K22: 83 | L22: 0 | M22: 0 | O22: 81.52398476 | P22: 1.956015241 | Q22: 3.825995622 | S22: 2017-07-18 | T22: 78.60799765 | U22: 13.60799765 | V22: 4.792185287e-05 | W22: -1.324366229e-05 | X22: =SQRT(SUMPRODUCT(V22:V$39, V22:V$39)) -> 1.427464444 | Y22: 5.281785069 | Z22: -2.57640125 | AA22: 13.61633093 | AB22: 214.086754 | AC22: 5.355584564 | AD22: =SUM(V22:V$39) -> 2.963348249
B23: 15 | C23: 2016 | D23: 2016-07-17 | E23: =VLOOKUP(D23, data!$D$5:$E$6326,2, FALSE) -> 83 | F23: =VLOOKUP(D23, data!$G$5:$H$6326,2, FALSE) -> 72 | H23: 0.4838709677 | I23: 0.2341311134 | J23: 83 | K23: 86 | L23: 0 | M23: 0 | O23: 81.0810396 | P23: 1.918960403 | Q23: 3.682409027 | S23: 2017-07-17 | T23: 78.59383097 | U23: 13.59383097 | V23: 8.97951415e-05 | W23: -2.481559174e-05 | X23: =SQRT(SUMPRODUCT(V23:V$39, V23:V$39)) -> 1.427464443 | Y23: 5.281785066 | Z23: -2.573719075 | AA23: 13.60223524 | AB23: 213.7072619 | AC23: 5.355974068 | AD23: =SUM(V23:V$39) -> 2.963300327
B24: 16 | C24: 2016 | D24: 2016-07-16 | E24: =VLOOKUP(D24, data!$D$5:$E$6326,2, FALSE) -> 83 | F24: =VLOOKUP(D24, data!$G$5:$H$6326,2, FALSE) -> 67 | H24: 0.5161290323 | I24: 0.2663891779 | J24: 86 | K24: 83.5 | L24: 0 | M24: 0 | O24: 83.87657711 | P24: -0.8765771149 | Q24: 0.7683874384 | S24: 2017-07-16 | T24: 78.57131561 | U24: 13.57131561 | V24: 0.0001682555416 | W24: -4.649818052e-05 | X24: =SQRT(SUMPRODUCT(V24:V$39, V24:V$39)) -> 1.42746444 | Y24: 5.281785056 | Z24: -2.569456247 | AA24: 13.57983384 | AB24: 213.1050055 | AC24: 5.356595774 | AD24: =SUM(V24:V$39) -> 2.963210532
B25: 17 | C25: 2016 | D25: 2016-07-15 | E25: =VLOOKUP(D25, data!$D$5:$E$6326,2, FALSE) -> 86 | F25: =VLOOKUP(D25, data!$G$5:$H$6326,2, FALSE) -> 67.5 | H25: 0.5483870968 | I25: 0.3007284079 | J25: 83.5 | K25: 78.5 | L25: 0 | M25: 0 | O25: 82.58281482 | P25: 3.417185184 | Q25: 11.67715458 | S25: 2017-07-15 | T25: 78.54043682 | U25: 13.54043682 | V25: 0.0003152685871 | W25: -8.712388106e-05 | X25: =SQRT(SUMPRODUCT(V25:V$39, V25:V$39)) -> 1.42746443 | Y25: 5.281785019 | Z25: -2.563609986 | AA25: 13.54911365 | AB25: 212.2807909 | AC25: 5.357453704 | AD25: =SUM(V25:V$39) -> 2.963042276
B26: 18 | C26: 2016 | D26: 2016-07-14 | E26: =VLOOKUP(D26, data!$D$5:$E$6326,2, FALSE) -> 83.5 | F26: =VLOOKUP(D26, data!$G$5:$H$6326,2, FALSE) -> 77.5 | H26: 0.5806451613 | I26: 0.3371488033 | J26: 78.5 | K26: 75.5 | L26: 0 | M26: 0 | O26: 78.96617181 | P26: 4.533828193 | Q26: 20.55559809 | S26: 2017-07-14 | T26: 78.50116702 | U26: 13.50116702 | V26: 0.0005907203804 | W26: -0.0001632371564 | X26: =SQRT(SUMPRODUCT(V26:V$39, V26:V$39)) -> 1.427464396 | Y26: 5.28178489 | Z26: -2.5561751 | AA26: 13.51004944 | AB26: 211.2355318 | AC26: 5.358553524 | AD26: =SUM(V26:V$39) -> 2.962727008
B27: 19 | C27: 2016 | D27: 2016-07-13 | E27: =VLOOKUP(D27, data!$D$5:$E$6326,2, FALSE) -> 78.5 | F27: =VLOOKUP(D27, data!$G$5:$H$6326,2, FALSE) -> 76 | H27: 0.6129032258 | I27: 0.3756503642 | J27: 75.5 | K27: 74.5 | L27: 0 | M27: 0 | O27: 76.67181747 | P27: 1.828182528 | Q27: 3.342251356 | S27: 2017-07-13 | T27: 78.45345452 | U27: 13.45345452 | V27: 0.001106786268 | W27: -0.0003058181573 | X27: =SQRT(SUMPRODUCT(V27:V$39, V27:V$39)) -> 1.427464273 | Y27: 5.281784438 | Z27: -2.547141914 | AA27: 13.46259271 | AB27: 209.9699598 | AC27: 5.359902739 | AD27: =SUM(V27:V$39) -> 2.962136287
B28: 20 | C28: 2016 | D28: 2016-07-12 | E28: =VLOOKUP(D28, data!$D$5:$E$6326,2, FALSE) -> 75.5 | F28: =VLOOKUP(D28, data!$G$5:$H$6326,2, FALSE) -> 80.95 | H28: 0.6451612903 | I28: 0.4162330905 | J28: 74.5 | K28: 75.5 | L28: 0 | M28: 0 | O28: 75.69975181 | P28: -0.1997518118 | Q28: 0.03990078631 | S28: 2017-07-12 | T28: 78.3972025 | U28: 13.3972025 | V28: 0.002073518948 | W28: -0.00057284213 | X28: =SQRT(SUMPRODUCT(V28:V$39, V28:V$39)) -> 1.427463844 | Y28: 5.28178285 | Z28: -2.536492483 | AA28: 13.40665084 | AB28: 208.4840853 | AC28: 5.361510856 | AD28: =SUM(V28:V$39) -> 2.961029501
B29: 21 | C29: 2016 | D29: 2016-07-11 | E29: =VLOOKUP(D29, data!$D$5:$E$6326,2, FALSE) -> 74.5 | F29: =VLOOKUP(D29, data!$G$5:$H$6326,2, FALSE) -> 79.5 | H29: 0.6774193548 | I29: 0.4588969823 | J29: 75.5 | K29: 68.55 | L29: 0 | M29: 0 | O29: 77.5174756 | P29: -3.017475602 | Q29: 9.10515901 | S29: 2017-07-11 | T29: 78.33222963 | U29: 13.33222963 | V29: 0.003884004211 | W29: -0.001072670662 | X29: =SQRT(SUMPRODUCT(V29:V$39, V29:V$39)) -> 1.427462338 | Y29: 5.281777278 | Z29: -2.524193832 | AA29: 13.34204808 | AB29: 206.7761886 | AC29: 5.363389009 | AD29: =SUM(V29:V$39) -> 2.958955982
B30: 22 | C30: 2016 | D30: 2016-07-10 | E30: =VLOOKUP(D30, data!$D$5:$E$6326,2, FALSE) -> 75.5 | F30: =VLOOKUP(D30, data!$G$5:$H$6326,2, FALSE) -> 71.06 | H30: 0.7096774194 | I30: 0.5036420395 | J30: 68.55 | K30: 79.5 | L30: 0 | M30: 0 | O30: 70.25256205 | P30: 5.247437954 | Q30: 27.53560508 | S30: 2017-07-10 | T30: 78.2581966 | U30: 13.2581966 | V30: 0.007272959074 | W30: -0.002007366402 | X30: =SQRT(SUMPRODUCT(V30:V$39, V30:V$39)) -> 1.427457054 | Y30: 5.281757726 | Z30: -2.510186435 | AA30: 13.26845263 | AB30: 204.8409268 | AC30: 5.365546708 | AD30: =SUM(V30:V$39) -> 2.955071978
B31: 23 | C31: 2016 | D31: 2016-07-09 | E31: =VLOOKUP(D31, data!$D$5:$E$6326,2, FALSE) -> 68.55 | F31: =VLOOKUP(D31, data!$G$5:$H$6326,2, FALSE) -> 72 | H31: 0.7419354839 | I31: 0.5504682622 | J31: 79.5 | K31: 86 | L31: 0 | M31: 0 | O31: 78.14083013 | P31: -9.590830133 | Q31: 91.98402263 | S31: 2017-07-09 | T31: 78.17446915 | U31: 13.17446915 | V31: 0.01361041576 | W31: -0.003751990009 | X31: =SQRT(SUMPRODUCT(V31:V$39, V31:V$39)) -> 1.427438526 | Y31: 5.28168917 | Z31: -2.494366618 | AA31: 13.18524062 | AB31: 202.6657448 | AC31: 5.367976769 | AD31: =SUM(V31:V$39) -> 2.947799019
B32: 24 | C32: 2016 | D32: 2016-07-08 | E32: =VLOOKUP(D32, data!$D$5:$E$6326,2, FALSE) -> 79.5 | F32: =VLOOKUP(D32, data!$G$5:$H$6326,2, FALSE) -> 77 | H32: 0.7741935484 | I32: 0.5993756504 | J32: 86 | K32: 84.5 | L32: 0 | M32: 0 | O32: 83.60151926 | P32: -4.10151926 | Q32: 16.82246024 | S32: 2017-07-08 | T32: 78.07986446 | U32: 13.07986446 | V32: 0.02543937366 | W32: -0.006996434469 | X32: =SQRT(SUMPRODUCT(V32:V$39, V32:V$39)) -> 1.427373638 | Y32: 5.281449076 | Z32: -2.476567373 | AA32: 13.09124363 | AB32: 200.2239551 | AC32: 5.370595443 | AD32: =SUM(V32:V$39) -> 2.934188603
B33: 25 | C33: 2016 | D33: 2016-07-07 | E33: =VLOOKUP(D33, data!$D$5:$E$6326,2, FALSE) -> 86 | F33: =VLOOKUP(D33, data!$G$5:$H$6326,2, FALSE) -> 77 | H33: 0.8064516129 | I33: 0.650364204 | J33: 84.5 | K33: 79.5 | L33: 0 | M33: 0 | O33: 83.09530198 | P33: 2.904698017 | Q33: 8.437270572 | S33: 2017-07-07 | T33: 77.97218653 | U33: 12.97218653 | V33: 0.04743746927 | W33: -0.01298676206 | X33: =SQRT(SUMPRODUCT(V33:V$39, V33:V$39)) -> 1.427146923 | Y33: 5.280610206 | Z33: -2.456569606 | AA33: 12.98428425 | AB33: 197.4609843 | AC33: 5.373020281 | AD33: =SUM(V33:V$39) -> 2.908749229
B34: 26 | C34: 2016 | D34: 2016-07-06 | E34: =VLOOKUP(D34, data!$D$5:$E$6326,2, FALSE) -> 84.5 | F34: =VLOOKUP(D34, data!$G$5:$H$6326,2, FALSE) -> 77.45 | H34: 0.8387096774 | I34: 0.703433923 | J34: 79.5 | K34: 73 | L34: 0 | M34: 0 | O34: 79.97237266 | P34: 4.527627343 | Q34: 20.49940936 | S34: 2017-07-06 | T34: 77.84739428 | U34: 12.84739428 | V34: 0.08805329754 | W34: -0.02388901616 | X34: =SQRT(SUMPRODUCT(V34:V$39, V34:V$39)) -> 1.42635831 | Y34: 5.277692243 | Z34: -2.434282578 | AA34: 12.86033632 | AB34: 194.2657335 | AC34: 5.373777362 | AD34: =SUM(V34:V$39) -> 2.86131176
B35: 27 | C35: 2016 | D35: 2016-07-05 | E35: =VLOOKUP(D35, data!$D$5:$E$6326,2, FALSE) -> 79.5 | F35: =VLOOKUP(D35, data!$G$5:$H$6326,2, FALSE) -> 76.5 | H35: 0.8709677419 | I35: 0.7585848075 | J35: 73 | K35: 72.95 | L35: 0 | M35: 0 | O35: 74.68028082 | P35: 4.819719182 | Q35: 23.22969299 | S35: 2017-07-05 | T35: 77.69818242 | U35: 12.69818242 | V35: 0.1619731415 | W35: -0.04315104395 | X35: =SQRT(SUMPRODUCT(V35:V$39, V35:V$39)) -> 1.423637821 | Y35: 5.267626116 | Z35: -2.410608145 | AA35: 12.71206121 | AB35: 190.4072173 | AC35: 5.367561563 | AD35: =SUM(V35:V$39) -> 2.773258463
B36: 28 | C36: 2016 | D36: 2016-07-04 | E36: =VLOOKUP(D36, data!$D$5:$E$6326,2, FALSE) -> 73 | F36: =VLOOKUP(D36, data!$G$5:$H$6326,2, FALSE) -> 72.5 | H36: 0.9032258065 | I36: 0.8158168574 | J36: 72.95 | K36: 73 | L36: 0 | M36: 0 | O36: 74.59537144 | P36: -1.595371437 | Q36: 2.545210022 | S36: 2017-07-04 | T36: 77.5118281 | U36: 12.5118281 | V36: 0.2925742149 | W36: -0.07502298539 | X36: =SQRT(SUMPRODUCT(V36:V$39, V36:V$39)) -> 1.414393632 | Y36: 5.233421538 | Z36: -2.390754883 | AA36: 12.526467 | AB36: 185.3866716 | AC36: 5.336131201 | AD36: =SUM(V36:V$39) -> 2.611285321
B37: 29 | C37: 2016 | D37: 2016-07-03 | E37: =VLOOKUP(D37, data!$D$5:$E$6326,2, FALSE) -> 72.95 | F37: =VLOOKUP(D37, data!$G$5:$H$6326,2, FALSE) -> 66.02 | H37: 0.935483871 | I37: 0.8751300728 | J37: 73 | K37: 75 | L37: 0 | M37: 0 | O37: 74.30105359 | P37: -1.351053588 | Q37: 1.825345797 | S37: 2017-07-03 | T37: =$O$7+SUMPRODUCT(H$7:I$7, H37:I37) + $J$7*T38+$K$7*T39 -> 77.26798574 | U37: 12.26798574 | V37: 0.508673465 | W37: -0.1194704389 | X37: =SQRT(SUMPRODUCT(V37:V$39, V37:V$39)) -> 1.383802614 | Y37: 5.120231201 | Z37: -2.39598277 | AA37: 12.28208459 | AB37: 178.0962507 | AC37: 5.219832266 | AD37: =SUM(V37:V$39) -> 2.318711106
B38: 30 | C38: 2016 | D38: 2016-07-02 | E38: =VLOOKUP(D38, data!$D$5:$E$6326,2, FALSE) -> 73 | F38: =VLOOKUP(D38, data!$G$5:$H$6326,2, FALSE) -> 64.94 | H38: 0.9677419355 | I38: 0.9365244537 | J38: 75 | K38: 0 | L38: 0 | M38: 1 | O38: 75.70229537 | P38: -2.702295372 | Q38: 7.302400279 | S38: 2017-07-02 | T38: =O7 + M7 + SUMPRODUCT(H7:I7, H38:I38) + J7*T39 -> 76.94117647 | U38: 11.94117647 | V38: =J7 -> 0.8100376412 | W38: =K7 -> -0.1474875152 | X38: =SQRT(SUMPRODUCT(V38:V$39, V38:V$39)) -> 1.286919182 | Y38: 4.761751193 | Z38: -2.507727932 | AA38: 11.95049364 | AB38: 166.2170453 | AC38: 4.837638579 | AD38: =SUM(V38:V$39) -> 1.810037641
B39: 31 | C39: 2016 | D39: 2016-07-01 | E39: =VLOOKUP(D39, data!$D$5:$E$6326,2, FALSE) -> 75 | F39: =VLOOKUP(D39, data!$G$5:$H$6326,2, FALSE) -> 65.48 | H39: 1 | I39: 1 | J39: 0 | K39: 0 | L39: 1 | M39: 0 | O39: 76.52941176 | P39: -1.529411765 | Q39: 2.339100346 | S39: 2017-07-01 | T39: =O7 + L7 + SUMPRODUCT(H7:I7, H39:I39) -> 76.52941176 | U39: 11.52941176 | V39: 1 | X39: =SQRT(SUMPRODUCT(V39:V$39, V39:V$39)) -> 1 | Y39: 3.700116729 | Z39: -3.11595893 | AA39: 11.53034499 | AB39: 146.7490274 | AC39: 3.714858229 | AD39: =SUM(V39:V$39) -> 1
B40: 32 | C40: =C9-1 -> 2015 | D40: =DATE(C40, 7, 31) -> 2015-07-31 | E40: =VLOOKUP(D40, data!$D$5:$E$6326,2, FALSE) -> 83 | F40: =VLOOKUP(D40, data!$G$5:$H$6326,2, FALSE) -> 77 | H40: =H9 -> 0.03225806452 | I40: =I9 -> 0.001040582726 | J40: =E41 -> 83 | K40: =E42 -> 85.5 | L40: 0 | M40: 0 | O40: 80.90568644 | P40: 2.094313563 | Q40: 4.386149299
B41: 33 | C41: 2015 | D41: =D40-1 -> 2015-07-30 | E41: =VLOOKUP(D41, data!$D$5:$E$6326,2, FALSE) -> 83 | F41: =VLOOKUP(D41, data!$G$5:$H$6326,2, FALSE) -> 76.5 | H41: =H10 -> 0.06451612903 | I41: 0.004162330905 | J41: =E42 -> 85.5 | K41: =E43 -> 83 | L41: 0 | M41: 0 | O41: 83.33556722 | P41: -0.3355672187 | Q41: 0.1126053583
B42: 34 | C42: 2015 | D42: 2015-07-29 | E42: =VLOOKUP(D42, data!$D$5:$E$6326,2, FALSE) -> 85.5 | F42: =VLOOKUP(D42, data!$G$5:$H$6326,2, FALSE) -> 79 | H42: 0.09677419355 | I42: 0.009365244537 | J42: 83 | K42: 79.5 | L42: 0 | M42: 0 | O42: 81.85993573 | P42: 3.640064268 | Q42: 13.25006788
B43: 35 | C43: 2015 | D43: 2015-07-28 | E43: =VLOOKUP(D43, data!$D$5:$E$6326,2, FALSE) -> 83 | F43: =VLOOKUP(D43, data!$G$5:$H$6326,2, FALSE) -> 79 | H43: 0.1290322581 | I43: 0.01664932362 | J43: 79.5 | K43: 82 | L43: 0 | M43: 0 | O43: 78.68652994 | P43: 4.313470065 | Q43: 18.606024
B44: 36 | C44: 2015 | D44: 2015-07-27 | E44: =VLOOKUP(D44, data!$D$5:$E$6326,2, FALSE) -> 79.5 | F44: =VLOOKUP(D44, data!$G$5:$H$6326,2, FALSE) -> 77.5 | H44: 0.1612903226 | I44: 0.02601456816 | J44: 82 | K44: 76 | L44: 0 | M44: 0 | O44: 81.62418229 | P44: -2.124182287 | Q44: 4.512150389
B45: 37 | C45: 2015 | D45: 2015-07-26 | E45: =VLOOKUP(D45, data!$D$5:$E$6326,2, FALSE) -> 82 | F45: =VLOOKUP(D45, data!$G$5:$H$6326,2, FALSE) -> 72 | H45: 0.1935483871 | I45: 0.03746097815 | J45: 76 | K45: 78 | L45: 0 | M45: 0 | O45: 76.49380299 | P45: 5.50619701 | Q45: 30.31820551
B46: 38 | C46: 2015 | D46: 2015-07-25 | E46: =VLOOKUP(D46, data!$D$5:$E$6326,2, FALSE) -> 76 | F46: =VLOOKUP(D46, data!$G$5:$H$6326,2, FALSE) -> 80 | H46: 0.2258064516 | I46: 0.05098855359 | J46: 78 | K46: 77 | L46: 0 | M46: 0 | O46: 78.28337579 | P46: -2.283375791 | Q46: 5.213805002
B47: 39 | C47: 2015 | D47: 2015-07-24 | E47: =VLOOKUP(D47, data!$D$5:$E$6326,2, FALSE) -> 78 | F47: =VLOOKUP(D47, data!$G$5:$H$6326,2, FALSE) -> 74 | H47: 0.2580645161 | I47: 0.06659729448 | J47: 77 | K47: 77.5 | L47: 0 | M47: 0 | O47: 77.41879282 | P47: 0.5812071822 | Q47: 0.3378017887
B48: 40 | C48: 2015 | D48: 2015-07-23 | E48: =VLOOKUP(D48, data!$D$5:$E$6326,2, FALSE) -> 77 | F48: =VLOOKUP(D48, data!$G$5:$H$6326,2, FALSE) -> 74 | H48: 0.2903225806 | I48: 0.08428720083 | J48: 77.5 | K48: 83.5 | L48: 0 | M48: 0 | O48: 76.9552734 | P48: 0.04472660437 | Q48: 0.002000469139
B49: 41 | C49: 2015 | D49: 2015-07-22 | E49: =VLOOKUP(D49, data!$D$5:$E$6326,2, FALSE) -> 77.5 | F49: =VLOOKUP(D49, data!$G$5:$H$6326,2, FALSE) -> 73.5 | H49: 0.3225806452 | I49: 0.1040582726 | J49: 83.5 | K49: 88.5 | L49: 0 | M49: 0 | O49: 81.09163694 | P49: -3.591636938 | Q49: 12.89985589
B50: 42 | C50: 2015 | D50: 2015-07-21 | E50: =VLOOKUP(D50, data!$D$5:$E$6326,2, FALSE) -> 83.5 | F50: =VLOOKUP(D50, data!$G$5:$H$6326,2, FALSE) -> 73.5 | H50: 0.3548387097 | I50: 0.1259105099 | J50: 88.5 | K50: 86 | L50: 0 | M50: 0 | O50: 85.52130763 | P50: -2.021307625 | Q50: 4.085684516
B51: 43 | C51: 2015 | D51: 2015-07-20 | E51: =VLOOKUP(D51, data!$D$5:$E$6326,2, FALSE) -> 88.5 | F51: =VLOOKUP(D51, data!$G$5:$H$6326,2, FALSE) -> 74 | H51: 0.3870967742 | I51: 0.1498439126 | J51: 86 | K51: 80.5 | L51: 0 | M51: 0 | O51: 84.31534697 | P51: 4.184653028 | Q51: 17.51132097
B52: 44 | C52: 2015 | D52: 2015-07-19 | E52: =VLOOKUP(D52, data!$D$5:$E$6326,2, FALSE) -> 86 | F52: =VLOOKUP(D52, data!$G$5:$H$6326,2, FALSE) -> 75 | H52: 0.4193548387 | I52: 0.1758584807 | J52: 80.5 | K52: 72 | L52: 0 | M52: 0 | O52: 81.11892436 | P52: 4.881075638 | Q52: 23.82489938
B53: 45 | C53: 2015 | D53: 2015-07-18 | E53: =VLOOKUP(D53, data!$D$5:$E$6326,2, FALSE) -> 80.5 | F53: =VLOOKUP(D53, data!$G$5:$H$6326,2, FALSE) -> 81 | H53: 0.4516129032 | I53: 0.2039542144 | J53: 72 | K53: 72 | L53: 0 | M53: 0 | O53: 74.23593337 | P53: 6.264066627 | Q53: 39.23853071
B54: 46 | C54: 2015 | D54: 2015-07-17 | E54: =VLOOKUP(D54, data!$D$5:$E$6326,2, FALSE) -> 72 | F54: =VLOOKUP(D54, data!$G$5:$H$6326,2, FALSE) -> 81.5 | H54: 0.4838709677 | I54: 0.2341311134 | J54: 72 | K54: 77.5 | L54: 0 | M54: 0 | O54: 73.42426942 | P54: -1.424269423 | Q54: 2.028543389
B55: 47 | C55: 2015 | D55: 2015-07-16 | E55: =VLOOKUP(D55, data!$D$5:$E$6326,2, FALSE) -> 72 | F55: =VLOOKUP(D55, data!$G$5:$H$6326,2, FALSE) -> 66.5 | H55: 0.5161290323 | I55: 0.2663891779 | J55: 77.5 | K55: 77 | L55: 0 | M55: 0 | O55: 77.94992601 | P55: -5.949926013 | Q55: 35.40161956
B56: 48 | C56: 2015 | D56: 2015-07-15 | E56: =VLOOKUP(D56, data!$D$5:$E$6326,2, FALSE) -> 77.5 | F56: =VLOOKUP(D56, data!$G$5:$H$6326,2, FALSE) -> 67 | H56: 0.5483870968 | I56: 0.3007284079 | J56: 77 | K56: 78.5 | L56: 0 | M56: 0 | O56: 77.31757015 | P56: 0.1824298517 | Q56: 0.03328065078
B57: 49 | C57: 2015 | D57: 2015-07-14 | E57: =VLOOKUP(D57, data!$D$5:$E$6326,2, FALSE) -> 77 | F57: =VLOOKUP(D57, data!$G$5:$H$6326,2, FALSE) -> 72 | H57: =H26 -> 0.5806451613 | I57: 0.3371488033 | J57: 78.5 | K57: 79.5 | L57: 0 | M57: 0 | O57: 78.37622175 | P57: -1.376221746 | Q57: 1.893986295
B58: 50 | C58: 2015 | D58: 2015-07-13 | E58: =VLOOKUP(D58, data!$D$5:$E$6326,2, FALSE) -> 78.5 | F58: =VLOOKUP(D58, data!$G$5:$H$6326,2, FALSE) -> 77 | H58: 0.6129032258 | I58: 0.3756503642 | J58: 79.5 | K58: 77 | L58: 0 | M58: 0 | O58: 79.54324925 | P58: -1.043249249 | Q58: 1.088368995
B59: 51 | C59: 2015 | D59: 2015-07-12 | E59: =VLOOKUP(D59, data!$D$5:$E$6326,2, FALSE) -> 79.5 | F59: =VLOOKUP(D59, data!$G$5:$H$6326,2, FALSE) -> 76 | H59: 0.6451612903 | I59: 0.4162330905 | J59: 77 | K59: 78.5 | L59: 0 | M59: 0 | O59: 77.28238337 | P59: 2.217616631 | Q59: 4.917823521
B60: 52 | C60: 2015 | D60: 2015-07-11 | E60: =VLOOKUP(D60, data!$D$5:$E$6326,2, FALSE) -> 77 | F60: =VLOOKUP(D60, data!$G$5:$H$6326,2, FALSE) -> 69.5 | H60: 0.6774193548 | I60: 0.4588969823 | J60: 78.5 | K60: 74 | L60: 0 | M60: 0 | O60: 79.14378157 | P60: -2.143781568 | Q60: 4.595799412
B61: 53 | C61: 2015 | D61: 2015-07-10 | E61: =VLOOKUP(D61, data!$D$5:$E$6326,2, FALSE) -> 78.5 | F61: =VLOOKUP(D61, data!$G$5:$H$6326,2, FALSE) -> 71 | H61: 0.7096774194 | I61: 0.5036420395 | J61: 74 | K61: 83.5 | L61: 0 | M61: 0 | O61: 74.07731713 | P61: 4.42268287 | Q61: 19.56012377
B62: 54 | C62: 2015 | D62: 2015-07-09 | E62: =VLOOKUP(D62, data!$D$5:$E$6326,2, FALSE) -> 74 | F62: =VLOOKUP(D62, data!$G$5:$H$6326,2, FALSE) -> 67.5 | H62: 0.7419354839 | I62: 0.5504682622 | J62: 83.5 | K62: 82.5 | L62: 0 | M62: 0 | O62: 81.897187 | P62: -7.897187001 | Q62: 62.36556252
B63: 55 | C63: 2015 | D63: 2015-07-08 | E63: =VLOOKUP(D63, data!$D$5:$E$6326,2, FALSE) -> 83.5 | F63: =VLOOKUP(D63, data!$G$5:$H$6326,2, FALSE) -> 60.5 | H63: 0.7741935484 | I63: 0.5993756504 | J63: 82.5 | K63: 76.5 | L63: 0 | M63: 0 | O63: 81.94628764 | P63: 1.553712363 | Q63: 2.414022108
B64: 56 | C64: 2015 | D64: 2015-07-07 | E64: =VLOOKUP(D64, data!$D$5:$E$6326,2, FALSE) -> 82.5 | F64: =VLOOKUP(D64, data!$G$5:$H$6326,2, FALSE) -> 63 | H64: 0.8064516129 | I64: 0.650364204 | J64: 76.5 | K64: 76.5 | L64: 0 | M64: 0 | O64: 77.0574634 | P64: 5.442536602 | Q64: 29.62120466
B65: 57 | C65: 2015 | D65: 2015-07-06 | E65: =VLOOKUP(D65, data!$D$5:$E$6326,2, FALSE) -> 76.5 | F65: =VLOOKUP(D65, data!$G$5:$H$6326,2, FALSE) -> 74.5 | H65: 0.8387096774 | I65: 0.703433923 | J65: 76.5 | K65: 74.5 | L65: 0 | M65: 0 | O65: 77.32102846 | P65: -0.8210284601 | Q65: 0.6740877323
B66: 58 | C66: 2015 | D66: 2015-07-05 | E66: =VLOOKUP(D66, data!$D$5:$E$6326,2, FALSE) -> 76.5 | F66: =VLOOKUP(D66, data!$G$5:$H$6326,2, FALSE) -> 71.5 | H66: 0.8709677419 | I66: 0.7585848075 | J66: 74.5 | K66: 74 | L66: 0 | M66: 0 | O66: 75.74047539 | P66: 0.7595246107 | Q66: 0.5768776343
B67: 59 | C67: 2015 | D67: 2015-07-04 | E67: =VLOOKUP(D67, data!$D$5:$E$6326,2, FALSE) -> 74.5 | F67: =VLOOKUP(D67, data!$G$5:$H$6326,2, FALSE) -> 70 | H67: 0.9032258065 | I67: 0.8158168574 | J67: 74 | K67: 74.5 | L67: 0 | M67: 0 | O67: 75.22467969 | P67: -0.7246796876 | Q67: 0.5251606496
B68: 60 | C68: 2015 | D68: 2015-07-03 | E68: =VLOOKUP(D68, data!$D$5:$E$6326,2, FALSE) -> 74 | F68: =VLOOKUP(D68, data!$G$5:$H$6326,2, FALSE) -> 66 | H68: 0.935483871 | I68: 0.8751300728 | J68: 74.5 | K68: 76.5 | L68: 0 | M68: 0 | O68: 75.29487878 | P68: -1.294878777 | Q68: 1.676711047
B69: 61 | C69: 2015 | D69: 2015-07-02 | E69: =VLOOKUP(D69, data!$D$5:$E$6326,2, FALSE) -> 74.5 | F69: =VLOOKUP(D69, data!$G$5:$H$6326,2, FALSE) -> 61 | H69: 0.9677419355 | I69: 0.9365244537 | J69: 76.5 | K69: 0 | L69: 0 | M69: 1 | O69: 76.91735183 | P69: -2.417351834 | Q69: 5.84358989
B70: 62 | C70: 2015 | D70: 2015-07-01 | E70: =VLOOKUP(D70, data!$D$5:$E$6326,2, FALSE) -> 76.5 | F70: =VLOOKUP(D70, data!$G$5:$H$6326,2, FALSE) -> 61.5 | H70: 1 | I70: 1 | J70: 0 | K70: 0 | L70: 1 | M70: 0 | O70: 76.52941176 | P70: -0.0294117647 | Q70: 0.0008650519028
B71: 63 | C71: 2014 | D71: =DATE(C71, 7, 31) -> 2014-07-31 | E71: =VLOOKUP(D71, data!$D$5:$E$6326,2, FALSE) -> 74.5 | F71: =VLOOKUP(D71, data!$G$5:$H$6326,2, FALSE) -> 71.5 | H71: =H40 -> 0.03225806452 | I71: =I40 -> 0.001040582726 | J71: =E72 -> 72.5 | K71: =E73 -> 70.5 | L71: 0 | M71: 0 | O71: 74.61260393 | P71: -0.112603932 | Q71: 0.01267964549
B72: 64 | C72: =C41-1 -> 2014 | D72: =D71-1 -> 2014-07-30 | E72: =VLOOKUP(D72, data!$D$5:$E$6326,2, FALSE) -> 72.5 | F72: =VLOOKUP(D72, data!$G$5:$H$6326,2, FALSE) -> 69 | H72: =H41 -> 0.06451612903 | I72: 0.004162330905 | J72: =E73 -> 70.5 | K72: =E74 -> 76 | L72: 0 | M72: 0 | O72: 72.21741521 | P72: 0.2825847935 | Q72: 0.0798541655
B73: 65 | C73: 2014 | D73: 2014-07-29 | E73: =VLOOKUP(D73, data!$D$5:$E$6326,2, FALSE) -> 70.5 | F73: =VLOOKUP(D73, data!$G$5:$H$6326,2, FALSE) -> 69.5 | H73: 0.09677419355 | I73: 0.009365244537 | J73: 76 | K73: 79.5 | L73: 0 | M73: 0 | O73: 76.18967224 | P73: -5.689672243 | Q73: 32.37237023
B74: 66 | C74: 2014 | D74: 2014-07-28 | E74: =VLOOKUP(D74, data!$D$5:$E$6326,2, FALSE) -> 76 | F74: =VLOOKUP(D74, data!$G$5:$H$6326,2, FALSE) -> 66 | H74: 0.1290322581 | I74: 0.01664932362 | J74: 79.5 | K74: 74 | L74: 0 | M74: 0 | O74: =$O$7+SUMPRODUCT(H$7:M$7, H74:M74) -> 79.86643006 | P74: =E74-O74 -> -3.866430056 | Q74: =P74*P74 -> 14.94928138
B75: =B74+1 -> 67 | C75: 2014 | D75: 2014-07-27 | E75: =VLOOKUP(D75, data!$D$5:$E$6326,2, FALSE) -> 79.5 | F75: =VLOOKUP(D75, data!$G$5:$H$6326,2, FALSE) -> 76 | H75: 0.1612903226 | I75: 0.02601456816 | J75: 74 | K75: 75.5 | L75: 0 | M75: 0 | O75: 75.21762491 | P75: 4.282375085 | Q75: 18.33873637
B76: 68 | C76: 2014 | D76: 2014-07-26 | E76: =VLOOKUP(D76, data!$D$5:$E$6326,2, FALSE) -> 74 | F76: =VLOOKUP(D76, data!$G$5:$H$6326,2, FALSE) -> 76 | H76: 0.1935483871 | I76: 0.03746097815 | J76: 75.5 | K76: 77 | L76: 0 | M76: 0 | O76: 76.23627168 | P76: -2.236271685 | Q76: 5.000911048
B77: 69 | C77: 2014 | D77: 2014-07-25 | E77: =VLOOKUP(D77, data!$D$5:$E$6326,2, FALSE) -> 75.5 | F77: =VLOOKUP(D77, data!$G$5:$H$6326,2, FALSE) -> 65 | H77: 0.2258064516 | I77: 0.05098855359 | J77: 77 | K77: 81.5 | L77: 0 | M77: 0 | O77: 76.80964433 | P77: -1.309644331 | Q77: 1.715168275
B78: 70 | C78: 2014 | D78: 2014-07-24 | E78: =VLOOKUP(D78, data!$D$5:$E$6326,2, FALSE) -> 77 | F78: =VLOOKUP(D78, data!$G$5:$H$6326,2, FALSE) -> 66 | H78: 0.2580645161 | I78: 0.06659729448 | J78: 81.5 | K78: 78.5 | L78: 0 | M78: 0 | O78: 80.91647469 | P78: -3.916474688 | Q78: 15.33877398
B79: 71 | C79: 2014 | D79: 2014-07-23 | E79: =VLOOKUP(D79, data!$D$5:$E$6326,2, FALSE) -> 81.5 | F79: =VLOOKUP(D79, data!$G$5:$H$6326,2, FALSE) -> 67 | H79: 0.2903225806 | I79: 0.08428720083 | J79: 78.5 | K79: 75.5 | L79: 0 | M79: 0 | O79: 78.94521116 | P79: 2.554788842 | Q79: 6.526946026
B80: 72 | C80: 2014 | D80: 2014-07-22 | E80: =VLOOKUP(D80, data!$D$5:$E$6326,2, FALSE) -> 78.5 | F80: =VLOOKUP(D80, data!$G$5:$H$6326,2, FALSE) -> 79.5 | H80: 0.3225806452 | I80: 0.1040582726 | J80: 75.5 | K80: 73 | L80: 0 | M80: 0 | O80: 76.89739229 | P80: 1.602607707 | Q80: 2.568351462
B81: 73 | C81: 2014 | D81: 2014-07-21 | E81: =VLOOKUP(D81, data!$D$5:$E$6326,2, FALSE) -> 75.5 | F81: =VLOOKUP(D81, data!$G$5:$H$6326,2, FALSE) -> 74.5 | H81: 0.3548387097 | I81: 0.1259105099 | J81: 73 | K81: 73 | L81: 0 | M81: 0 | O81: 74.88306188 | P81: 0.6169381165 | Q81: 0.3806126396
B82: 74 | C82: 2014 | D82: 2014-07-20 | E82: =VLOOKUP(D82, data!$D$5:$E$6326,2, FALSE) -> 73 | F82: =VLOOKUP(D82, data!$G$5:$H$6326,2, FALSE) -> 71 | H82: 0.3870967742 | I82: 0.1498439126 | J82: 73 | K82: 73.5 | L82: 0 | M82: 0 | O82: 74.81727024 | P82: -1.817270242 | Q82: 3.302471132
B83: 75 | C83: 2014 | D83: 2014-07-19 | E83: =VLOOKUP(D83, data!$D$5:$E$6326,2, FALSE) -> 73 | F83: =VLOOKUP(D83, data!$G$5:$H$6326,2, FALSE) -> 68.5 | H83: 0.4193548387 | I83: 0.1758584807 | J83: 73.5 | K83: 74.5 | L83: 0 | M83: 0 | O83: 75.07994209 | P83: -2.079942086 | Q83: 4.32615908
B84: 76 | C84: 2014 | D84: 2014-07-18 | E84: =VLOOKUP(D84, data!$D$5:$E$6326,2, FALSE) -> 73.5 | F84: =VLOOKUP(D84, data!$G$5:$H$6326,2, FALSE) -> 69 | H84: 0.4516129032 | I84: 0.2039542144 | J84: 74.5 | K84: 77 | L84: 0 | M84: 0 | O84: 75.5235899 | P84: -2.0235899 | Q84: 4.094916083
B85: 77 | C85: 2014 | D85: 2014-07-17 | E85: =VLOOKUP(D85, data!$D$5:$E$6326,2, FALSE) -> 74.5 | F85: =VLOOKUP(D85, data!$G$5:$H$6326,2, FALSE) -> 66 | H85: 0.4838709677 | I85: 0.2341311134 | J85: 77 | K85: 80 | L85: 0 | M85: 0 | O85: 77.10573884 | P85: -2.605738841 | Q85: 6.789874907
B86: 78 | C86: 2014 | D86: 2014-07-16 | E86: =VLOOKUP(D86, data!$D$5:$E$6326,2, FALSE) -> 77 | F86: =VLOOKUP(D86, data!$G$5:$H$6326,2, FALSE) -> 63.5 | H86: 0.5161290323 | I86: 0.2663891779 | J86: 80 | K86: 78.5 | L86: 0 | M86: 0 | O86: 79.75378884 | P86: -2.753788843 | Q86: 7.583352994
B87: 79 | C87: 2014 | D87: 2014-07-15 | E87: =VLOOKUP(D87, data!$D$5:$E$6326,2, FALSE) -> 80 | F87: =VLOOKUP(D87, data!$G$5:$H$6326,2, FALSE) -> 62.5 | H87: 0.5483870968 | I87: 0.3007284079 | J87: 78.5 | K87: 78.5 | L87: 0 | M87: 0 | O87: 78.53262661 | P87: 1.46737339 | Q87: 2.153184665
B88: 80 | C88: 2014 | D88: 2014-07-14 | E88: =VLOOKUP(D88, data!$D$5:$E$6326,2, FALSE) -> 78.5 | F88: =VLOOKUP(D88, data!$G$5:$H$6326,2, FALSE) -> 70.5 | H88: =H57 -> 0.5806451613 | I88: 0.3371488033 | J88: 78.5 | K88: 77 | L88: 0 | M88: 0 | O88: 78.74494053 | P88: -0.244940534 | Q88: 0.05999586522
B89: 81 | C89: 2014 | D89: 2014-07-13 | E89: =VLOOKUP(D89, data!$D$5:$E$6326,2, FALSE) -> 78.5 | F89: =VLOOKUP(D89, data!$G$5:$H$6326,2, FALSE) -> 76.5 | H89: 0.6129032258 | I89: 0.3756503642 | J89: 77 | K89: 78 | L89: 0 | M89: 0 | O89: 77.37066763 | P89: 1.129332369 | Q89: 1.2753916
B90: 82 | C90: 2014 | D90: 2014-07-12 | E90: =VLOOKUP(D90, data!$D$5:$E$6326,2, FALSE) -> 77 | F90: =VLOOKUP(D90, data!$G$5:$H$6326,2, FALSE) -> 75 | H90: 0.6451612903 | I90: 0.4162330905 | J90: 78 | K90: 78 | L90: 0 | M90: 0 | O90: 78.16616477 | P90: -1.166164768 | Q90: 1.359940266
B91: 83 | C91: 2014 | D91: 2014-07-11 | E91: =VLOOKUP(D91, data!$D$5:$E$6326,2, FALSE) -> 78 | F91: =VLOOKUP(D91, data!$G$5:$H$6326,2, FALSE) -> 70.5 | H91: 0.6774193548 | I91: 0.4588969823 | J91: 78 | K91: 80.5 | L91: 0 | M91: 0 | O91: 77.7800939 | P91: 0.219906101 | Q91: 0.04835869326
B92: 84 | C92: 2014 | D92: 2014-07-10 | E92: =VLOOKUP(D92, data!$D$5:$E$6326,2, FALSE) -> 78 | F92: =VLOOKUP(D92, data!$G$5:$H$6326,2, FALSE) -> 69.5 | H92: 0.7096774194 | I92: 0.5036420395 | J92: 80.5 | K92: 83.5 | L92: 0 | M92: 0 | O92: 79.3425618 | P92: -1.342561798 | Q92: 1.802472181
B93: 85 | C93: 2014 | D93: 2014-07-09 | E93: =VLOOKUP(D93, data!$D$5:$E$6326,2, FALSE) -> 80.5 | F93: =VLOOKUP(D93, data!$G$5:$H$6326,2, FALSE) -> 71 | H93: 0.7419354839 | I93: 0.5504682622 | J93: 83.5 | K93: 82.5 | L93: 0 | M93: 0 | O93: 81.897187 | P93: -1.397187001 | Q93: 1.952131514
B94: 86 | C94: 2014 | D94: 2014-07-08 | E94: =VLOOKUP(D94, data!$D$5:$E$6326,2, FALSE) -> 83.5 | F94: =VLOOKUP(D94, data!$G$5:$H$6326,2, FALSE) -> 73.5 | H94: 0.7741935484 | I94: 0.5993756504 | J94: 82.5 | K94: 74.5 | L94: 0 | M94: 0 | O94: 82.24126267 | P94: 1.258737333 | Q94: 1.584419673
B95: 87 | C95: 2014 | D95: 2014-07-07 | E95: =VLOOKUP(D95, data!$D$5:$E$6326,2, FALSE) -> 82.5 | F95: =VLOOKUP(D95, data!$G$5:$H$6326,2, FALSE) -> 79.5 | H95: 0.8064516129 | I95: 0.650364204 | J95: 74.5 | K95: 73 | L95: 0 | M95: 0 | O95: 75.95359442 | P95: 6.546405581 | Q95: 42.85542603
B96: 88 | C96: 2014 | D96: 2014-07-06 | E96: =VLOOKUP(D96, data!$D$5:$E$6326,2, FALSE) -> 74.5 | F96: =VLOOKUP(D96, data!$G$5:$H$6326,2, FALSE) -> 75 | H96: 0.8387096774 | I96: 0.703433923 | J96: 73 | K96: 71 | L96: 0 | M96: 0 | O96: 75.00210302 | P96: -0.5021030189 | Q96: 0.2521074416
B97: 89 | C97: 2014 | D97: 2014-07-05 | E97: =VLOOKUP(D97, data!$D$5:$E$6326,2, FALSE) -> 73 | F97: =VLOOKUP(D97, data!$G$5:$H$6326,2, FALSE) -> 68.5 | H97: 0.8709677419 | I97: 0.7585848075 | J97: 71 | K97: 79 | L97: 0 | M97: 0 | O97: 72.16790607 | P97: 0.8320939309 | Q97: 0.6923803098
B98: 90 | C98: 2014 | D98: 2014-07-04 | E98: =VLOOKUP(D98, data!$D$5:$E$6326,2, FALSE) -> 71 | F98: =VLOOKUP(D98, data!$G$5:$H$6326,2, FALSE) -> 68.5 | H98: 0.9032258065 | I98: 0.8158168574 | J98: 79 | K98: 84.5 | L98: 0 | M98: 0 | O98: 77.79999274 | P98: -6.799992742 | Q98: 46.23990129
B99: 91 | C99: 2014 | D99: 2014-07-03 | E99: =VLOOKUP(D99, data!$D$5:$E$6326,2, FALSE) -> 79 | F99: =VLOOKUP(D99, data!$G$5:$H$6326,2, FALSE) -> 66 | H99: 0.935483871 | I99: 0.8751300728 | J99: 84.5 | K99: 83 | L99: 0 | M99: 0 | O99: 82.43658634 | P99: -3.436586341 | Q99: 11.81012568
B100: 92 | C100: 2014 | D100: 2014-07-02 | E100: =VLOOKUP(D100, data!$D$5:$E$6326,2, FALSE) -> 84.5 | F100: =VLOOKUP(D100, data!$G$5:$H$6326,2, FALSE) -> 63 | H100: 0.9677419355 | I100: 0.9365244537 | J100: 83 | K100: 0 | L100: 0 | M100: 1 | O100: 82.1825965 | P100: 2.317403498 | Q100: 5.370358972
B101: 93 | C101: 2014 | D101: 2014-07-01 | E101: =VLOOKUP(D101, data!$D$5:$E$6326,2, FALSE) -> 83 | F101: =VLOOKUP(D101, data!$G$5:$H$6326,2, FALSE) -> 73.5 | H101: 1 | I101: 1 | J101: 0 | K101: 0 | L101: 1 | M101: 0 | O101: 76.52941176 | P101: 6.470588235 | Q101: 41.86851211
B102: 94 | C102: 2013 | D102: =DATE(C102, 7, 31) -> 2013-07-31 | E102: =VLOOKUP(D102, data!$D$5:$E$6326,2, FALSE) -> 74.47 | F102: =VLOOKUP(D102, data!$G$5:$H$6326,2, FALSE) -> 68.45 | H102: =H71 -> 0.03225806452 | I102: =I71 -> 0.001040582726 | J102: =E103 -> 74 | K102: =E104 -> 78.5 | L102: 0 | M102: 0 | O102: 74.64776027 | P102: -0.1777602725 | Q102: 0.03159871447
B103: 95 | C103: 2013 | D103: =D102-1 -> 2013-07-30 | E103: =VLOOKUP(D103, data!$D$5:$E$6326,2, FALSE) -> 74 | F103: =VLOOKUP(D103, data!$G$5:$H$6326,2, FALSE) -> 65.45 | H103: =H72 -> 0.06451612903 | I103: 0.004162330905 | J103: =E104 -> 78.5 | K103: =E105 -> 74.5 | L103: 0 | M103: 0 | O103: 78.91894761 | P103: -4.918947609 | Q103: 24.19604558
B104: 96 | C104: =C73-1 -> 2013 | D104: 2013-07-29 | E104: =VLOOKUP(D104, data!$D$5:$E$6326,2, FALSE) -> 78.5 | F104: =VLOOKUP(D104, data!$G$5:$H$6326,2, FALSE) -> 66.5 | H104: 0.09677419355 | I104: 0.009365244537 | J104: 74.5 | K104: 75.5 | L104: 0 | M104: 0 | O104: 75.56456584 | P104: 2.935434158 | Q104: 8.616773696
B105: 97 | C105: 2013 | D105: 2013-07-28 | E105: =VLOOKUP(D105, data!$D$5:$E$6326,2, FALSE) -> 74.5 | F105: =VLOOKUP(D105, data!$G$5:$H$6326,2, FALSE) -> 61.52 | H105: 0.1290322581 | I105: 0.01664932362 | J105: 75.5 | K105: 75.45 | L105: 0 | M105: 0 | O105: 76.41242259 | P105: -1.912422594 | Q105: 3.65736018
B106: 98 | C106: 2013 | D106: 2013-07-27 | E106: =VLOOKUP(D106, data!$D$5:$E$6326,2, FALSE) -> 75.5 | F106: =VLOOKUP(D106, data!$G$5:$H$6326,2, FALSE) -> 60 | H106: 0.1612903226 | I106: 0.02601456816 | J106: 75.45 | K106: 66 | L106: 0 | M106: 0 | O106: 77.79331089 | P106: -2.293310889 | Q106: 5.259274833
B107: 99 | C107: 2013 | D107: 2013-07-26 | E107: =VLOOKUP(D107, data!$D$5:$E$6326,2, FALSE) -> 75.45 | F107: =VLOOKUP(D107, data!$G$5:$H$6326,2, FALSE) -> 66 | H107: 0.1935483871 | I107: 0.03746097815 | J107: 66 | K107: 76 | L107: 0 | M107: 0 | O107: 68.68840161 | P107: 6.761598392 | Q107: 45.71921281
B108: 100 | C108: 2013 | D108: 2013-07-25 | E108: =VLOOKUP(D108, data!$D$5:$E$6326,2, FALSE) -> 66 | F108: =VLOOKUP(D108, data!$G$5:$H$6326,2, FALSE) -> 69 | H108: 0.2258064516 | I108: 0.05098855359 | J108: 76 | K108: 82 | L108: 0 | M108: 0 | O108: 75.92586293 | P108: -9.925862933 | Q108: 98.52275496
B109: 101 | C109: 2013 | D109: 2013-07-24 | E109: =VLOOKUP(D109, data!$D$5:$E$6326,2, FALSE) -> 76 | F109: =VLOOKUP(D109, data!$G$5:$H$6326,2, FALSE) -> 66.04 | H109: 0.2580645161 | I109: 0.06659729448 | J109: 82 | K109: 81 | L109: 0 | M109: 0 | O109: 80.95277472 | P109: -4.952774721 | Q109: 24.52997744
B110: 102 | C110: 2013 | D110: 2013-07-23 | E110: =VLOOKUP(D110, data!$D$5:$E$6326,2, FALSE) -> 82 | F110: =VLOOKUP(D110, data!$G$5:$H$6326,2, FALSE) -> 70.5 | H110: 0.2903225806 | I110: 0.08428720083 | J110: 81 | K110: 82.5 | L110: 0 | M110: 0 | O110: 79.93789266 | P110: 2.062107345 | Q110: 4.252286702
B111: 103 | C111: 2013 | D111: 2013-07-22 | E111: =VLOOKUP(D111, data!$D$5:$E$6326,2, FALSE) -> 81 | F111: =VLOOKUP(D111, data!$G$5:$H$6326,2, FALSE) -> 79 | H111: 0.3225806452 | I111: 0.1040582726 | J111: 82.5 | K111: 87 | L111: 0 | M111: 0 | O111: 80.50283057 | P111: 0.4971694306 | Q111: 0.2471774427
B112: 104 | C112: 2013 | D112: 2013-07-21 | E112: =VLOOKUP(D112, data!$D$5:$E$6326,2, FALSE) -> 82.5 | F112: =VLOOKUP(D112, data!$G$5:$H$6326,2, FALSE) -> 78 | H112: 0.3548387097 | I112: 0.1259105099 | J112: 87 | K112: 91 | L112: 0 | M112: 0 | O112: 83.56881359 | P112: -1.068813588 | Q112: 1.142362485
B113: 105 | C113: 2013 | D113: 2013-07-20 | E113: =VLOOKUP(D113, data!$D$5:$E$6326,2, FALSE) -> 87 | F113: =VLOOKUP(D113, data!$G$5:$H$6326,2, FALSE) -> 80 | H113: 0.3870967742 | I113: 0.1498439126 | J113: 91 | K113: 90.05 | L113: 0 | M113: 0 | O113: 86.95702941 | P113: 0.04297059221 | Q113: 0.001846471795
B114: 106 | C114: 2013 | D114: 2013-07-19 | E114: =VLOOKUP(D114, data!$D$5:$E$6326,2, FALSE) -> 91 | F114: =VLOOKUP(D114, data!$G$5:$H$6326,2, FALSE) -> 83.5 | H114: 0.4193548387 | I114: 0.1758584807 | J114: 90.05 | K114: 86.45 | L114: 0 | M114: 0 | O114: 86.72358924 | P114: 4.276410758 | Q114: 18.28768897
B115: 107 | C115: 2013 | D115: 2013-07-18 | E115: =VLOOKUP(D115, data!$D$5:$E$6326,2, FALSE) -> 90.05 | F115: =VLOOKUP(D115, data!$G$5:$H$6326,2, FALSE) -> 86 | H115: 0.4516129032 | I115: 0.2039542144 | J115: 86.45 | K115: 87 | L115: 0 | M115: 0 | O115: 83.72866456 | P115: 6.321335439 | Q115: 39.95928173
B116: 108 | C116: 2013 | D116: 2013-07-17 | E116: =VLOOKUP(D116, data!$D$5:$E$6326,2, FALSE) -> 86.45 | F116: =VLOOKUP(D116, data!$G$5:$H$6326,2, FALSE) -> 84.9 | H116: 0.4838709677 | I116: 0.2341311134 | J116: 87 | K116: 87 | L116: 0 | M116: 0 | O116: 84.17370265 | P116: 2.276297353 | Q116: 5.181529639
B117: 109 | C117: 2013 | D117: 2013-07-16 | E117: =VLOOKUP(D117, data!$D$5:$E$6326,2, FALSE) -> 87 | F117: =VLOOKUP(D117, data!$G$5:$H$6326,2, FALSE) -> 82.5 | H117: 0.5161290323 | I117: 0.2663891779 | J117: 87 | K117: 84.5 | L117: 0 | M117: 0 | O117: 84.53912724 | P117: 2.460872759 | Q117: 6.055894736
B118: 110 | C118: 2013 | D118: 2013-07-15 | E118: =VLOOKUP(D118, data!$D$5:$E$6326,2, FALSE) -> 87 | F118: =VLOOKUP(D118, data!$G$5:$H$6326,2, FALSE) -> 80.1 | H118: 0.5483870968 | I118: 0.3007284079 | J118: 84.5 | K118: 76 | L118: 0 | M118: 0 | O118: 83.76157125 | P118: 3.238428755 | Q118: 10.4874208
B119: 111 | C119: 2013 | D119: 2013-07-14 | E119: =VLOOKUP(D119, data!$D$5:$E$6326,2, FALSE) -> 84.5 | F119: =VLOOKUP(D119, data!$G$5:$H$6326,2, FALSE) -> 80 | H119: =H88 -> 0.5806451613 | I119: 0.3371488033 | J119: 76 | K119: 74.5 | L119: 0 | M119: 0 | O119: 77.08856522 | P119: 7.411434781 | Q119: 54.92936551
B120: 112 | C120: 2013 | D120: 2013-07-13 | E120: =VLOOKUP(D120, data!$D$5:$E$6326,2, FALSE) -> 76 | F120: =VLOOKUP(D120, data!$G$5:$H$6326,2, FALSE) -> 73 | H120: 0.6129032258 | I120: 0.3756503642 | J120: 74.5 | K120: 81.5 | L120: 0 | M120: 0 | O120: 74.82936722 | P120: 1.170632775 | Q120: 1.370381095
B121: 113 | C121: 2013 | D121: 2013-07-12 | E121: =VLOOKUP(D121, data!$D$5:$E$6326,2, FALSE) -> 74.5 | F121: =VLOOKUP(D121, data!$G$5:$H$6326,2, FALSE) -> 70.5 | H121: 0.6451612903 | I121: 0.4162330905 | J121: 81.5 | K121: 82 | L121: 0 | M121: 0 | O121: 80.41134645 | P121: -5.911346452 | Q121: 34.94401687
B122: 114 | C122: 2013 | D122: 2013-07-11 | E122: =VLOOKUP(D122, data!$D$5:$E$6326,2, FALSE) -> 81.5 | F122: =VLOOKUP(D122, data!$G$5:$H$6326,2, FALSE) -> 72.5 | H122: 0.6774193548 | I122: 0.4588969823 | J122: 82 | K122: 81.5 | L122: 0 | M122: 0 | O122: 80.87275695 | P122: 0.6272430513 | Q122: 0.3934338454
B123: 115 | C123: 2013 | D123: 2013-07-10 | E123: =VLOOKUP(D123, data!$D$5:$E$6326,2, FALSE) -> 82 | F123: =VLOOKUP(D123, data!$G$5:$H$6326,2, FALSE) -> 75.5 | H123: 0.7096774194 | I123: 0.5036420395 | J123: 81.5 | K123: 82 | L123: 0 | M123: 0 | O123: 80.37383071 | P123: 1.626169288 | Q123: 2.644426554
B124: 116 | C124: 2013 | D124: 2013-07-09 | E124: =VLOOKUP(D124, data!$D$5:$E$6326,2, FALSE) -> 81.5 | F124: =VLOOKUP(D124, data!$G$5:$H$6326,2, FALSE) -> 79 | H124: 0.7419354839 | I124: 0.5504682622 | J124: 82 | K124: 86.5 | L124: 0 | M124: 0 | O124: 80.09218048 | P124: 1.407819522 | Q124: 1.981955806
B125: 117 | C125: 2013 | D125: 2013-07-08 | E125: =VLOOKUP(D125, data!$D$5:$E$6326,2, FALSE) -> 82 | F125: =VLOOKUP(D125, data!$G$5:$H$6326,2, FALSE) -> 78 | H125: 0.7741935484 | I125: 0.5993756504 | J125: 86.5 | K125: 86 | L125: 0 | M125: 0 | O125: 83.78530681 | P125: -1.785306808 | Q125: 3.187320397
B126: 118 | C126: 2013 | D126: 2013-07-07 | E126: =VLOOKUP(D126, data!$D$5:$E$6326,2, FALSE) -> 86.5 | F126: =VLOOKUP(D126, data!$G$5:$H$6326,2, FALSE) -> 79 | H126: 0.8064516129 | I126: 0.650364204 | J126: 86 | K126: 84 | L126: 0 | M126: 0 | O126: 83.64666463 | P126: 2.853335374 | Q126: 8.141522756
B127: 119 | C127: 2013 | D127: 2013-07-06 | E127: =VLOOKUP(D127, data!$D$5:$E$6326,2, FALSE) -> 86 | F127: =VLOOKUP(D127, data!$G$5:$H$6326,2, FALSE) -> 74 | H127: 0.8387096774 | I127: 0.703433923 | J127: 84 | K127: 83.5 | L127: 0 | M127: 0 | O127: 82.06892313 | P127: 3.931076867 | Q127: 15.45336534
B128: 120 | C128: 2013 | D128: 2013-07-05 | E128: =VLOOKUP(D128, data!$D$5:$E$6326,2, FALSE) -> 84 | F128: =VLOOKUP(D128, data!$G$5:$H$6326,2, FALSE) -> 73 | H128: 0.8709677419 | I128: 0.7585848075 | J128: 83.5 | K128: 80.5 | L128: 0 | M128: 0 | O128: 82.07214531 | P128: 1.927854688 | Q128: 3.716623699
B129: 121 | C129: 2013 | D129: 2013-07-04 | E129: =VLOOKUP(D129, data!$D$5:$E$6326,2, FALSE) -> 83.5 | F129: =VLOOKUP(D129, data!$G$5:$H$6326,2, FALSE) -> 69.45 | H129: 0.9032258065 | I129: 0.8158168574 | J129: 80.5 | K129: 80 | L129: 0 | M129: 0 | O129: 79.67874302 | P129: 3.821256978 | Q129: 14.60200489
B130: 122 | C130: 2013 | D130: 2013-07-03 | E130: =VLOOKUP(D130, data!$D$5:$E$6326,2, FALSE) -> 80.5 | F130: =VLOOKUP(D130, data!$G$5:$H$6326,2, FALSE) -> 65.5 | H130: 0.935483871 | I130: 0.8751300728 | J130: 80 | K130: 76 | L130: 0 | M130: 0 | O130: 79.82382956 | P130: 0.6761704387 | Q130: 0.4572064621
B131: 123 | C131: 2013 | D131: 2013-07-02 | E131: =VLOOKUP(D131, data!$D$5:$E$6326,2, FALSE) -> 80 | F131: =VLOOKUP(D131, data!$G$5:$H$6326,2, FALSE) -> 64 | H131: 0.9677419355 | I131: 0.9365244537 | J131: 76 | K131: 0 | L131: 0 | M131: 1 | O131: 76.51233301 | P131: 3.487666987 | Q131: 12.16382101
B132: 124 | C132: 2013 | D132: 2013-07-01 | E132: =VLOOKUP(D132, data!$D$5:$E$6326,2, FALSE) -> 76 | F132: =VLOOKUP(D132, data!$G$5:$H$6326,2, FALSE) -> 67 | H132: 1 | I132: 1 | J132: 0 | K132: 0 | L132: 1 | M132: 0 | O132: 76.52941176 | P132: -0.5294117647 | Q132: 0.2802768166
B133: 125 | C133: 2012 | D133: =DATE(C133, 7, 31) -> 2012-07-31 | E133: =VLOOKUP(D133, data!$D$5:$E$6326,2, FALSE) -> 77 | F133: =VLOOKUP(D133, data!$G$5:$H$6326,2, FALSE) -> 76.5 | H133: =H102 -> 0.03225806452 | I133: =I102 -> 0.001040582726 | J133: =E134 -> 77 | K133: =E135 -> 75.5 | L133: 0 | M133: 0 | O133: 77.52033574 | P133: -0.5203357416 | Q133: 0.270749284
B134: 126 | C134: 2012 | D134: =D133-1 -> 2012-07-30 | E134: =VLOOKUP(D134, data!$D$5:$E$6326,2, FALSE) -> 77 | F134: =VLOOKUP(D134, data!$G$5:$H$6326,2, FALSE) -> 80.5 | H134: =H103 -> 0.06451612903 | I134: 0.004162330905 | J134: =E135 -> 75.5 | K134: =E136 -> 76.5 | L134: 0 | M134: 0 | O134: 76.19385966 | P134: 0.8061403449 | Q134: 0.6498622557
B135: 127 | C135: 2012 | D135: 2012-07-29 | E135: =VLOOKUP(D135, data!$D$5:$E$6326,2, FALSE) -> 75.5 | F135: =VLOOKUP(D135, data!$G$5:$H$6326,2, FALSE) -> 74 | H135: 0.09677419355 | I135: 0.009365244537 | J135: 76.5 | K135: 81 | L135: 0 | M135: 0 | O135: 76.37345979 | P135: -0.873459791 | Q135: 0.7629320065
B136: 128 | C136: =C105-1 -> 2012 | D136: 2012-07-28 | E136: =VLOOKUP(D136, data!$D$5:$E$6326,2, FALSE) -> 76.5 | F136: =VLOOKUP(D136, data!$G$5:$H$6326,2, FALSE) -> 74.5 | H136: 0.1290322581 | I136: 0.01664932362 | J136: 81 | K136: 82 | L136: 0 | M136: 0 | O136: 79.9015864 | P136: -3.401586397 | Q136: 11.57079002
B137: 129 | C137: 2012 | D137: 2012-07-27 | E137: =VLOOKUP(D137, data!$D$5:$E$6326,2, FALSE) -> 81 | F137: =VLOOKUP(D137, data!$G$5:$H$6326,2, FALSE) -> 76 | H137: 0.1612903226 | I137: 0.02601456816 | J137: 82 | K137: 79 | L137: 0 | M137: 0 | O137: 81.18171974 | P137: -0.1817197417 | Q137: 0.03302206452
B138: 130 | C138: 2012 | D138: 2012-07-26 | E138: =VLOOKUP(D138, data!$D$5:$E$6326,2, FALSE) -> 82 | F138: =VLOOKUP(D138, data!$G$5:$H$6326,2, FALSE) -> 79 | H138: 0.1935483871 | I138: 0.03746097815 | J138: 79 | K138: 85.5 | L138: 0 | M138: 0 | O138: =$O$7+SUMPRODUCT(H$7:M$7, H138:M138) -> 77.81775955 | P138: =E138-O138 -> 4.18224045 | Q138: =P138*P138 -> 17.49113518
B139: =B138+1 -> 131 | C139: 2012 | D139: 2012-07-25 | E139: =VLOOKUP(D139, data!$D$5:$E$6326,2, FALSE) -> 79 | F139: =VLOOKUP(D139, data!$G$5:$H$6326,2, FALSE) -> 84.5 | H139: 0.2258064516 | I139: 0.05098855359 | J139: 85.5 | K139: 80.5 | L139: 0 | M139: 0 | O139: 83.8424518 | P139: -4.842451797 | Q139: 23.44933941
B140: 132 | C140: 2012 | D140: 2012-07-24 | E140: =VLOOKUP(D140, data!$D$5:$E$6326,2, FALSE) -> 85.5 | F140: =VLOOKUP(D140, data!$G$5:$H$6326,2, FALSE) -> 76.5 | H140: 0.2580645161 | I140: 0.06659729448 | J140: 80.5 | K140: 75 | L140: 0 | M140: 0 | O140: 80.62264335 | P140: 4.87735665 | Q140: 23.78860789
B141: 133 | C141: 2012 | D141: 2012-07-23 | E141: =VLOOKUP(D141, data!$D$5:$E$6326,2, FALSE) -> 80.5 | F141: =VLOOKUP(D141, data!$G$5:$H$6326,2, FALSE) -> 89 | H141: 0.2903225806 | I141: 0.08428720083 | J141: 75 | K141: 71.5 | L141: 0 | M141: 0 | O141: 76.70002947 | P141: 3.799970525 | Q141: 14.43977599
B142: 134 | C142: 2012 | D142: 2012-07-22 | E142: =VLOOKUP(D142, data!$D$5:$E$6326,2, FALSE) -> 75 | F142: =VLOOKUP(D142, data!$G$5:$H$6326,2, FALSE) -> 78.5 | H142: 0.3225806452 | I142: 0.1040582726 | J142: 71.5 | K142: 68.5 | L142: 0 | M142: 0 | O142: 74.32093555 | P142: 0.6790644534 | Q142: 0.4611285319
B143: 135 | C143: 2012 | D143: 2012-07-21 | E143: =VLOOKUP(D143, data!$D$5:$E$6326,2, FALSE) -> 71.5 | F143: =VLOOKUP(D143, data!$G$5:$H$6326,2, FALSE) -> 76 | H143: 0.3548387097 | I143: 0.1259105099 | J143: 68.5 | K143: 74.5 | L143: 0 | M143: 0 | O143: 71.01666123 | P143: 0.4833387748 | Q143: 0.2336163712
B144: 136 | C144: 2012 | D144: 2012-07-20 | E144: =VLOOKUP(D144, data!$D$5:$E$6326,2, FALSE) -> 68.5 | F144: =VLOOKUP(D144, data!$G$5:$H$6326,2, FALSE) -> 74.5 | H144: 0.3870967742 | I144: 0.1498439126 | J144: 74.5 | K144: 89 | L144: 0 | M144: 0 | O144: 73.74627022 | P144: -5.246270219 | Q144: 27.52335121
B145: 137 | C145: 2012 | D145: 2012-07-19 | E145: =VLOOKUP(D145, data!$D$5:$E$6326,2, FALSE) -> 74.5 | F145: =VLOOKUP(D145, data!$G$5:$H$6326,2, FALSE) -> 77 | H145: 0.4193548387 | I145: 0.1758584807 | J145: 89 | K145: 87 | L145: 0 | M145: 0 | O145: 85.79193159 | P145: -11.29193159 | Q145: 127.5077189
B146: 138 | C146: 2012 | D146: 2012-07-18 | E146: =VLOOKUP(D146, data!$D$5:$E$6326,2, FALSE) -> 89 | F146: =VLOOKUP(D146, data!$G$5:$H$6326,2, FALSE) -> 83 | H146: 0.4516129032 | I146: 0.2039542144 | J146: 87 | K146: 83 | L146: 0 | M146: 0 | O146: 84.76413532 | P146: 4.235864676 | Q146: 17.94254955
B147: 139 | C147: 2012 | D147: 2012-07-17 | E147: =VLOOKUP(D147, data!$D$5:$E$6326,2, FALSE) -> 87 | F147: =VLOOKUP(D147, data!$G$5:$H$6326,2, FALSE) -> 89 | H147: 0.4838709677 | I147: 0.2341311134 | J147: 83 | K147: 82.5 | L147: 0 | M147: 0 | O147: 81.5972459 | P147: 5.4027541 | Q147: 29.18975186
B148: 140 | C148: 2012 | D148: 2012-07-16 | E148: =VLOOKUP(D148, data!$D$5:$E$6326,2, FALSE) -> 83 | F148: =VLOOKUP(D148, data!$G$5:$H$6326,2, FALSE) -> 84.5 | H148: 0.5161290323 | I148: 0.2663891779 | J148: 82.5 | K148: 80 | L148: 0 | M148: 0 | O148: 81.55765167 | P148: 1.442348326 | Q148: 2.080368694
B149: 141 | C149: 2012 | D149: 2012-07-15 | E149: =VLOOKUP(D149, data!$D$5:$E$6326,2, FALSE) -> 82.5 | F149: =VLOOKUP(D149, data!$G$5:$H$6326,2, FALSE) -> 83 | H149: 0.5483870968 | I149: 0.3007284079 | J149: 80 | K149: 81 | L149: 0 | M149: 0 | O149: 79.37896428 | P149: 3.121035716 | Q149: 9.74086394
B150: 142 | C150: 2012 | D150: 2012-07-14 | E150: =VLOOKUP(D150, data!$D$5:$E$6326,2, FALSE) -> 80 | F150: =VLOOKUP(D150, data!$G$5:$H$6326,2, FALSE) -> 80 | H150: =H119 -> 0.5806451613 | I150: 0.3371488033 | J150: 81 | K150: 80 | L150: 0 | M150: 0 | O150: 80.32757209 | P150: -0.3275720916 | Q150: 0.1073034752
B151: 143 | C151: 2012 | D151: 2012-07-13 | E151: =VLOOKUP(D151, data!$D$5:$E$6326,2, FALSE) -> 81 | F151: =VLOOKUP(D151, data!$G$5:$H$6326,2, FALSE) -> 81.5 | H151: 0.6129032258 | I151: 0.3756503642 | J151: 80 | K151: 79.5 | L151: 0 | M151: 0 | O151: 79.57954928 | P151: 1.420450718 | Q151: 2.017680243
B152: 144 | C152: 2012 | D152: 2012-07-12 | E152: =VLOOKUP(D152, data!$D$5:$E$6326,2, FALSE) -> 80 | F152: =VLOOKUP(D152, data!$G$5:$H$6326,2, FALSE) -> 78.5 | H152: 0.6451612903 | I152: 0.4162330905 | J152: 79.5 | K152: 79 | L152: 0 | M152: 0 | O152: 79.23373371 | P152: 0.7662662852 | Q152: 0.5871640198
B153: 145 | C153: 2012 | D153: 2012-07-11 | E153: =VLOOKUP(D153, data!$D$5:$E$6326,2, FALSE) -> 79.5 | F153: =VLOOKUP(D153, data!$G$5:$H$6326,2, FALSE) -> 75.5 | H153: 0.6774193548 | I153: 0.4588969823 | J153: 79 | K153: 80 | L153: 0 | M153: 0 | O153: 78.6638753 | P153: 0.8361247022 | Q153: 0.6991045176
B154: 146 | C154: 2012 | D154: 2012-07-10 | E154: =VLOOKUP(D154, data!$D$5:$E$6326,2, FALSE) -> 79 | F154: =VLOOKUP(D154, data!$G$5:$H$6326,2, FALSE) -> 75 | H154: 0.7096774194 | I154: 0.5036420395 | J154: 80 | K154: 86.5 | L154: 0 | M154: 0 | O154: 78.49508043 | P154: 0.5049195683 | Q154: 0.2549437704
B155: 147 | C155: 2012 | D155: 2012-07-09 | E155: =VLOOKUP(D155, data!$D$5:$E$6326,2, FALSE) -> 80 | F155: =VLOOKUP(D155, data!$G$5:$H$6326,2, FALSE) -> 78.5 | H155: 0.7419354839 | I155: 0.5504682622 | J155: 86.5 | K155: 89.5 | L155: 0 | M155: 0 | O155: 83.29488732 | P155: -3.294887318 | Q155: 10.85628244
B156: 148 | C156: 2012 | D156: 2012-07-08 | E156: =VLOOKUP(D156, data!$D$5:$E$6326,2, FALSE) -> 86.5 | F156: =VLOOKUP(D156, data!$G$5:$H$6326,2, FALSE) -> 76.5 | H156: 0.7741935484 | I156: 0.5993756504 | J156: 89.5 | K156: 84 | L156: 0 | M156: 0 | O156: 86.51039476 | P156: -0.01039476152 | Q156: 0.000108051067
B157: 149 | C157: 2012 | D157: 2012-07-07 | E157: =VLOOKUP(D157, data!$D$5:$E$6326,2, FALSE) -> 89.5 | F157: =VLOOKUP(D157, data!$G$5:$H$6326,2, FALSE) -> 85.5 | H157: 0.8064516129 | I157: 0.650364204 | J157: 84 | K157: 87 | L157: 0 | M157: 0 | O157: 81.5841268 | P157: 7.915873202 | Q157: 62.66104855
B158: 150 | C158: 2012 | D158: 2012-07-06 | E158: =VLOOKUP(D158, data!$D$5:$E$6326,2, FALSE) -> 84 | F158: =VLOOKUP(D158, data!$G$5:$H$6326,2, FALSE) -> 92.5 | H158: 0.8387096774 | I158: 0.703433923 | J158: 87 | K158: 85 | L158: 0 | M158: 0 | O158: 84.27780478 | P158: -0.2778047837 | Q158: 0.07717549785
B159: 151 | C159: 2012 | D159: 2012-07-05 | E159: =VLOOKUP(D159, data!$D$5:$E$6326,2, FALSE) -> 87 | F159: =VLOOKUP(D159, data!$G$5:$H$6326,2, FALSE) -> 91 | H159: 0.8709677419 | I159: 0.7585848075 | J159: 85 | K159: 82.5 | L159: 0 | M159: 0 | O159: 82.99222674 | P159: 4.007773257 | Q159: 16.06224648
B160: 152 | C160: 2012 | D160: 2012-07-04 | E160: =VLOOKUP(D160, data!$D$5:$E$6326,2, FALSE) -> 85 | F160: =VLOOKUP(D160, data!$G$5:$H$6326,2, FALSE) -> 90.5 | H160: 0.9032258065 | I160: 0.8158168574 | J160: 82.5 | K160: 81 | L160: 0 | M160: 0 | O160: 81.15133079 | P160: 3.848669211 | Q160: 14.81225469
B161: 153 | C161: 2012 | D161: 2012-07-03 | E161: =VLOOKUP(D161, data!$D$5:$E$6326,2, FALSE) -> 82.5 | F161: =VLOOKUP(D161, data!$G$5:$H$6326,2, FALSE) -> 86.5 | H161: 0.935483871 | I161: 0.8751300728 | J161: 81 | K161: 85 | L161: 0 | M161: 0 | O161: 79.30647957 | P161: 3.193520434 | Q161: 10.19857276
B162: 154 | C162: 2012 | D162: 2012-07-02 | E162: =VLOOKUP(D162, data!$D$5:$E$6326,2, FALSE) -> 81 | F162: =VLOOKUP(D162, data!$G$5:$H$6326,2, FALSE) -> 84.5 | H162: 0.9677419355 | I162: 0.9365244537 | J162: 85 | K162: 0 | L162: 0 | M162: 1 | O162: 83.80267178 | P162: -2.802671784 | Q162: 7.854969131
B163: 155 | C163: 2012 | D163: 2012-07-01 | E163: =VLOOKUP(D163, data!$D$5:$E$6326,2, FALSE) -> 85 | F163: =VLOOKUP(D163, data!$G$5:$H$6326,2, FALSE) -> 79.5 | H163: 1 | I163: 1 | J163: 0 | K163: 0 | L163: 1 | M163: 0 | O163: 76.52941176 | P163: 8.470588235 | Q163: 71.75086505
B164: 156 | C164: 2011 | D164: =DATE(C164, 7, 31) -> 2011-07-31 | E164: =VLOOKUP(D164, data!$D$5:$E$6326,2, FALSE) -> 82.5 | F164: =VLOOKUP(D164, data!$G$5:$H$6326,2, FALSE) -> 79 | H164: =H133 -> 0.03225806452 | I164: =I133 -> 0.001040582726 | J164: =E165 -> 85.5 | K164: =E166 -> 80 | L164: 0 | M164: 0 | O164: 83.74196187 | P164: -1.241961874 | Q164: 1.542469296
B165: 157 | C165: =C164 -> 2011 | D165: =D164-1 -> 2011-07-30 | E165: =VLOOKUP(D165, data!$D$5:$E$6326,2, FALSE) -> 85.5 | F165: =VLOOKUP(D165, data!$G$5:$H$6326,2, FALSE) -> 79 | H165: =H134 -> 0.06451612903 | I165: 0.004162330905 | J165: =E166 -> 80 | K165: =E167 -> 81 | L165: 0 | M165: 0 | O165: 79.17533522 | P165: 6.324664778 | Q165: 40.00138455
B166: 158 | C166: 2011 | D166: 2011-07-29 | E166: =VLOOKUP(D166, data!$D$5:$E$6326,2, FALSE) -> 80 | F166: =VLOOKUP(D166, data!$G$5:$H$6326,2, FALSE) -> 78.5 | H166: 0.09677419355 | I166: 0.009365244537 | J166: 81 | K166: 80 | L166: 0 | M166: 0 | O166: 80.16611669 | P166: -0.1661166917 | Q166: 0.02759475526
B167: 159 | C167: 2011 | D167: 2011-07-28 | E167: =VLOOKUP(D167, data!$D$5:$E$6326,2, FALSE) -> 81 | F167: =VLOOKUP(D167, data!$G$5:$H$6326,2, FALSE) -> 80 | H167: 0.1290322581 | I167: 0.01664932362 | J167: 80 | K167: 83 | L167: 0 | M167: 0 | O167: 78.94406124 | P167: 2.05593876 | Q167: 4.226884183
B168: 160 | C168: 2011 | D168: 2011-07-27 | E168: =VLOOKUP(D168, data!$D$5:$E$6326,2, FALSE) -> 80 | F168: =VLOOKUP(D168, data!$G$5:$H$6326,2, FALSE) -> 79 | H168: 0.1612903226 | I168: 0.02601456816 | J168: 83 | K168: 77 | L168: 0 | M168: 0 | O168: 82.28673241 | P168: -2.286732413 | Q168: 5.22914513
B169: 161 | C169: 2011 | D169: 2011-07-26 | E169: =VLOOKUP(D169, data!$D$5:$E$6326,2, FALSE) -> 83 | F169: =VLOOKUP(D169, data!$G$5:$H$6326,2, FALSE) -> 77 | H169: 0.1935483871 | I169: 0.03746097815 | J169: 77 | K169: 87 | L169: 0 | M169: 0 | O169: 75.97645299 | P169: 7.023547005 | Q169: 49.33021253
B170: 162 | C170: 2011 | D170: 2011-07-25 | E170: =VLOOKUP(D170, data!$D$5:$E$6326,2, FALSE) -> 77 | F170: =VLOOKUP(D170, data!$G$5:$H$6326,2, FALSE) -> 80 | H170: 0.2258064516 | I170: 0.05098855359 | J170: 87 | K170: 94 | L170: 0 | M170: 0 | O170: 83.0664268 | P170: -6.066426804 | Q170: 36.80153417
B171: 163 | C171: 2011 | D171: 2011-07-24 | E171: =VLOOKUP(D171, data!$D$5:$E$6326,2, FALSE) -> 87 | F171: =VLOOKUP(D171, data!$G$5:$H$6326,2, FALSE) -> 79.5 | H171: 0.2580645161 | I171: 0.06659729448 | J171: 94 | K171: 97 | L171: 0 | M171: 0 | O171: 88.31342617 | P171: -1.313426173 | Q171: 1.725088311
B172: 164 | C172: 2011 | D172: 2011-07-23 | E172: =VLOOKUP(D172, data!$D$5:$E$6326,2, FALSE) -> 94 | F172: =VLOOKUP(D172, data!$G$5:$H$6326,2, FALSE) -> 78.5 | H172: 0.2903225806 | I172: 0.08428720083 | J172: 97 | K172: 90 | L172: 0 | M172: 0 | O172: 91.79233855 | P172: 2.207661449 | Q172: 4.873769074
B173: 165 | C173: 2011 | D173: 2011-07-22 | E173: =VLOOKUP(D173, data!$D$5:$E$6326,2, FALSE) -> 97 | F173: =VLOOKUP(D173, data!$G$5:$H$6326,2, FALSE) -> 79 | H173: 0.3225806452 | I173: 0.1040582726 | J173: 90 | K173: 81.5 | L173: 0 | M173: 0 | O173: 87.38929421 | P173: 9.610705788 | Q173: 92.36566574
B174: 166 | C174: 2011 | D174: 2011-07-21 | E174: =VLOOKUP(D174, data!$D$5:$E$6326,2, FALSE) -> 90 | F174: =VLOOKUP(D174, data!$G$5:$H$6326,2, FALSE) -> 87 | H174: 0.3548387097 | I174: 0.1259105099 | J174: 81.5 | K174: 87 | L174: 0 | M174: 0 | O174: 79.70355662 | P174: 10.29644338 | Q174: 106.0167462
B175: 167 | C175: 2011 | D175: 2011-07-20 | E175: =VLOOKUP(D175, data!$D$5:$E$6326,2, FALSE) -> 81.5 | F175: =VLOOKUP(D175, data!$G$5:$H$6326,2, FALSE) -> 86 | H175: 0.3870967742 | I175: 0.1498439126 | J175: 87 | K175: 86 | L175: 0 | M175: 0 | O175: 84.31420328 | P175: -2.814203279 | Q175: 7.919740097
B176: 168 | C176: 2011 | D176: 2011-07-19 | E176: =VLOOKUP(D176, data!$D$5:$E$6326,2, FALSE) -> 87 | F176: =VLOOKUP(D176, data!$G$5:$H$6326,2, FALSE) -> 85.5 | H176: 0.4193548387 | I176: 0.1758584807 | J176: 86 | K176: 83 | L176: 0 | M176: 0 | O176: 83.95176872 | P176: 3.048231278 | Q176: 9.291713924
B177: 169 | C177: 2011 | D177: 2011-07-18 | E177: =VLOOKUP(D177, data!$D$5:$E$6326,2, FALSE) -> 86 | F177: =VLOOKUP(D177, data!$G$5:$H$6326,2, FALSE) -> 86 | H177: 0.4516129032 | I177: 0.2039542144 | J177: 83 | K177: 81.5 | L177: 0 | M177: 0 | O177: 81.74521603 | P177: 4.254783968 | Q177: 18.10318661
B178: 170 | C178: 2011 | D178: 2011-07-17 | E178: =VLOOKUP(D178, data!$D$5:$E$6326,2, FALSE) -> 83 | F178: =VLOOKUP(D178, data!$G$5:$H$6326,2, FALSE) -> 82 | H178: 0.4838709677 | I178: 0.2341311134 | J178: 81.5 | K178: 78.5 | L178: 0 | M178: 0 | O178: 80.9721395 | P178: 2.027860501 | Q178: 4.112218211
B179: 171 | C179: 2011 | D179: 2011-07-16 | E179: =VLOOKUP(D179, data!$D$5:$E$6326,2, FALSE) -> 81.5 | F179: =VLOOKUP(D179, data!$G$5:$H$6326,2, FALSE) -> 80 | H179: 0.5161290323 | I179: 0.2663891779 | J179: 78.5 | K179: 76.5 | L179: 0 | M179: 0 | O179: 78.83370741 | P179: 2.666292588 | Q179: 7.109116165
B180: 172 | C180: 2011 | D180: 2011-07-15 | E180: =VLOOKUP(D180, data!$D$5:$E$6326,2, FALSE) -> 78.5 | F180: =VLOOKUP(D180, data!$G$5:$H$6326,2, FALSE) -> 78.5 | H180: 0.5483870968 | I180: 0.3007284079 | J180: 76.5 | K180: 80 | L180: 0 | M180: 0 | O180: 76.69132005 | P180: 1.808679945 | Q180: 3.271323144
B181: 173 | C181: 2011 | D181: 2011-07-14 | E181: =VLOOKUP(D181, data!$D$5:$E$6326,2, FALSE) -> 76.5 | F181: =VLOOKUP(D181, data!$G$5:$H$6326,2, FALSE) -> 70.5 | H181: =H150 -> 0.5806451613 | I181: 0.3371488033 | J181: 80 | K181: 89 | L181: 0 | M181: 0 | O181: 78.19014681 | P181: -1.690146814 | Q181: 2.856596252
B182: 174 | C182: 2011 | D182: 2011-07-13 | E182: =VLOOKUP(D182, data!$D$5:$E$6326,2, FALSE) -> 80 | F182: =VLOOKUP(D182, data!$G$5:$H$6326,2, FALSE) -> 68.5 | H182: 0.6129032258 | I182: 0.3756503642 | J182: 89 | K182: 84 | L182: 0 | M182: 0 | O182: 86.20619423 | P182: -6.206194234 | Q182: 38.51684688
B183: 175 | C183: 2011 | D183: 2011-07-12 | E183: =VLOOKUP(D183, data!$D$5:$E$6326,2, FALSE) -> 89 | F183: =VLOOKUP(D183, data!$G$5:$H$6326,2, FALSE) -> 78.5 | H183: 0.6451612903 | I183: 0.4162330905 | J183: 84 | K183: 77 | L183: 0 | M183: 0 | O183: 83.17387813 | P183: 5.826121869 | Q183: 33.94369604
B184: 176 | C184: 2011 | D184: 2011-07-11 | E184: =VLOOKUP(D184, data!$D$5:$E$6326,2, FALSE) -> 84 | F184: =VLOOKUP(D184, data!$G$5:$H$6326,2, FALSE) -> 79.5 | H184: 0.6774193548 | I184: 0.4588969823 | J184: 77 | K184: 81 | L184: 0 | M184: 0 | O184: 76.8963125 | P184: 7.1036875 | Q184: 50.46237609
B185: 177 | C185: 2011 | D185: 2011-07-10 | E185: =VLOOKUP(D185, data!$D$5:$E$6326,2, FALSE) -> 77 | F185: =VLOOKUP(D185, data!$G$5:$H$6326,2, FALSE) -> 82.5 | H185: 0.7096774194 | I185: 0.5036420395 | J185: 81 | K185: 79 | L185: 0 | M185: 0 | O185: 80.41127444 | P185: -3.411274437 | Q185: 11.63679328
B186: 178 | C186: 2011 | D186: 2011-07-09 | E186: =VLOOKUP(D186, data!$D$5:$E$6326,2, FALSE) -> 81 | F186: =VLOOKUP(D186, data!$G$5:$H$6326,2, FALSE) -> 76 | H186: 0.7419354839 | I186: 0.5504682622 | J186: 79 | K186: 85 | L186: 0 | M186: 0 | O186: 77.88329883 | P186: 3.116701173 | Q186: 9.713826201
B187: 179 | C187: 2011 | D187: 2011-07-08 | E187: =VLOOKUP(D187, data!$D$5:$E$6326,2, FALSE) -> 79 | F187: =VLOOKUP(D187, data!$G$5:$H$6326,2, FALSE) -> 73.5 | H187: 0.7741935484 | I187: 0.5993756504 | J187: 85 | K187: 83 | L187: 0 | M187: 0 | O187: 83.01271289 | P187: -4.012712891 | Q187: 16.10186475
B188: 180 | C188: 2011 | D188: 2011-07-07 | E188: =VLOOKUP(D188, data!$D$5:$E$6326,2, FALSE) -> 85 | F188: =VLOOKUP(D188, data!$G$5:$H$6326,2, FALSE) -> 72.5 | H188: 0.8064516129 | I188: 0.650364204 | J188: 83 | K188: 81.5 | L188: 0 | M188: 0 | O188: 81.58527049 | P188: 3.41472951 | Q188: 11.66037762
B189: 181 | C189: 2011 | D189: 2011-07-06 | E189: =VLOOKUP(D189, data!$D$5:$E$6326,2, FALSE) -> 83 | F189: =VLOOKUP(D189, data!$G$5:$H$6326,2, FALSE) -> 78 | H189: 0.8387096774 | I189: 0.703433923 | J189: 81.5 | K189: 81.5 | L189: 0 | M189: 0 | O189: 80.33880406 | P189: 2.66119594 | Q189: 7.081963831
B190: 182 | C190: 2011 | D190: 2011-07-05 | E190: =VLOOKUP(D190, data!$D$5:$E$6326,2, FALSE) -> 81.5 | F190: =VLOOKUP(D190, data!$G$5:$H$6326,2, FALSE) -> 79.5 | H190: 0.8709677419 | I190: 0.7585848075 | J190: 81.5 | K190: 74 | L190: 0 | M190: 0 | O190: 81.41073888 | P190: 0.08926112218 | Q190: 0.007967547933
B191: 183 | C191: 2011 | D191: 2011-07-04 | E191: =VLOOKUP(D191, data!$D$5:$E$6326,2, FALSE) -> 81.5 | F191: =VLOOKUP(D191, data!$G$5:$H$6326,2, FALSE) -> 77 | H191: 0.9032258065 | I191: 0.8158168574 | J191: 74 | K191: 79.5 | L191: 0 | M191: 0 | O191: 74.48724211 | P191: 7.012757888 | Q191: 49.1787732
B192: 184 | C192: 2011 | D192: 2011-07-03 | E192: =VLOOKUP(D192, data!$D$5:$E$6326,2, FALSE) -> 74 | F192: =VLOOKUP(D192, data!$G$5:$H$6326,2, FALSE) -> 76.5 | H192: 0.935483871 | I192: 0.8751300728 | J192: 79.5 | K192: 76 | L192: 0 | M192: 0 | O192: 79.41881074 | P192: -5.418810741 | Q192: 29.36350984
B193: 185 | C193: 2011 | D193: 2011-07-02 | E193: =VLOOKUP(D193, data!$D$5:$E$6326,2, FALSE) -> 79.5 | F193: =VLOOKUP(D193, data!$G$5:$H$6326,2, FALSE) -> 82.5 | H193: 0.9677419355 | I193: 0.9365244537 | J193: 76 | K193: 0 | L193: 0 | M193: 1 | O193: 76.51233301 | P193: 2.987666987 | Q193: 8.926154022
B194: 186 | C194: 2011 | D194: 2011-07-01 | E194: =VLOOKUP(D194, data!$D$5:$E$6326,2, FALSE) -> 76 | F194: =VLOOKUP(D194, data!$G$5:$H$6326,2, FALSE) -> 80.5 | H194: 1 | I194: 1 | J194: 0 | K194: 0 | L194: 1 | M194: 0 | O194: 76.52941176 | P194: -0.5294117647 | Q194: 0.2802768166
B195: 187 | C195: =C164-1 -> 2010 | D195: =DATE(C195, 7, 31) -> 2010-07-31 | E195: =VLOOKUP(D195, data!$D$5:$E$6326,2, FALSE) -> 74.5 | F195: =VLOOKUP(D195, data!$G$5:$H$6326,2, FALSE) -> 72.5 | H195: =H164 -> 0.03225806452 | I195: =I164 -> 0.001040582726 | J195: =E196 -> 77.5 | K195: =E197 -> 82.5 | L195: 0 | M195: 0 | O195: 76.89294196 | P195: -2.392941956 | Q195: 5.726171205
B196: 188 | C196: 2010 | D196: =D195-1 -> 2010-07-30 | E196: =VLOOKUP(D196, data!$D$5:$E$6326,2, FALSE) -> 77.5 | F196: =VLOOKUP(D196, data!$G$5:$H$6326,2, FALSE) -> 74.5 | H196: =H165 -> 0.06451612903 | I196: 0.004162330905 | J196: =E197 -> 82.5 | K196: =E198 -> 82 | L196: 0 | M196: 0 | O196: 81.05294181 | P196: -3.55294181 | Q196: 12.62339551
B197: 189 | C197: 2010 | D197: 2010-07-29 | E197: =VLOOKUP(D197, data!$D$5:$E$6326,2, FALSE) -> 82.5 | F197: =VLOOKUP(D197, data!$G$5:$H$6326,2, FALSE) -> 74.5 | H197: 0.09677419355 | I197: 0.009365244537 | J197: 82 | K197: 79 | L197: 0 | M197: 0 | O197: 81.12364185 | P197: 1.376358152 | Q197: 1.894361762
B198: 190 | C198: 2010 | D198: 2010-07-28 | E198: =VLOOKUP(D198, data!$D$5:$E$6326,2, FALSE) -> 82 | F198: =VLOOKUP(D198, data!$G$5:$H$6326,2, FALSE) -> 80.5 | H198: 0.1290322581 | I198: 0.01664932362 | J198: 79 | K198: 78 | L198: 0 | M198: 0 | O198: 78.87146118 | P198: 3.128538825 | Q198: 9.787755179
B199: 191 | C199: 2010 | D199: 2010-07-27 | E199: =VLOOKUP(D199, data!$D$5:$E$6326,2, FALSE) -> 79 | F199: =VLOOKUP(D199, data!$G$5:$H$6326,2, FALSE) -> 78 | H199: 0.1612903226 | I199: 0.02601456816 | J199: 78 | K199: 83.5 | L199: 0 | M199: 0 | O199: 77.27787536 | P199: 1.722124641 | Q199: 2.965713281
B200: 192 | C200: 2010 | D200: 2010-07-26 | E200: =VLOOKUP(D200, data!$D$5:$E$6326,2, FALSE) -> 78 | F200: =VLOOKUP(D200, data!$G$5:$H$6326,2, FALSE) -> 72.5 | H200: 0.1935483871 | I200: 0.03746097815 | J200: 83.5 | K200: 90.5 | L200: 0 | M200: 0 | O200: 80.72549136 | P200: -2.72549136 | Q200: 7.428303152
B201: 193 | C201: 2010 | D201: 2010-07-25 | E201: =VLOOKUP(D201, data!$D$5:$E$6326,2, FALSE) -> 83.5 | F201: =VLOOKUP(D201, data!$G$5:$H$6326,2, FALSE) -> 73.5 | H201: 0.2258064516 | I201: 0.05098855359 | J201: 90.5 | K201: 84.5 | L201: 0 | M201: 0 | O201: 87.30268994 | P201: -3.802689942 | Q201: 14.4604508
B202: 194 | C202: 2010 | D202: 2010-07-24 | E202: =VLOOKUP(D202, data!$D$5:$E$6326,2, FALSE) -> 90.5 | F202: =VLOOKUP(D202, data!$G$5:$H$6326,2, FALSE) -> 78 | H202: 0.2580645161 | I202: 0.06659729448 | J202: 84.5 | K202: 83.5 | L202: 0 | M202: 0 | O202: =$O$7+SUMPRODUCT(H$7:M$7, H202:M202) -> 82.60915004 | P202: =E202-O202 -> 7.890849964 | Q202: =P202*P202 -> 62.26551316
B203: =B202+1 -> 195 | C203: 2010 | D203: 2010-07-23 | E203: =VLOOKUP(D203, data!$D$5:$E$6326,2, FALSE) -> 84.5 | F203: =VLOOKUP(D203, data!$G$5:$H$6326,2, FALSE) -> 82 | H203: 0.2903225806 | I203: 0.08428720083 | J203: 83.5 | K203: 86 | L203: 0 | M203: 0 | O203: 81.44678046 | P203: 3.053219545 | Q203: 9.32214959
... 332 more rows

Sheet Jun
D2: OLS Data | H2: Explanatory variables | O2: OLS fitted data | S2: Data projections | AF2: Statistics
E4: =AVERAGE(E9:E518) -> 72.82676471 | F4: =AVERAGE(F9:F518) -> 69.60064706 | H4: π | I4: =PI() -> 3.141592654 | Q4: =AVERAGE(Q9:Q535) -> 21.15946946
E5: =STDEV(E9:E518) -> 6.591510877 | F5: =STDEV(F9:F518) -> 7.238605148 | H5: p | I5: 1 | Q5: =SQRT(Q4) -> 4.599942332
C7: June | H7: ='ols A'!D42 -> -4.100612663 | I7: ='ols A'!D43 -> -0.9972983026 | J7: ='ols A'!D44 -> 0.7248692339 | K7: ='ols A'!D45 -> -0.179007636 | L7: ='ols A'!D46 -> 39.61732842 | M7: ='ols A'!D47 -> -11.03673825 | O7: ='ols A'!D41 -> 35.53411196 | P7: =SUM(P9:P535) -> -2.197282356e-10 | U7: =SUM(U9:U38) -> 234.3781282
B8: # | C8: Year | D8: Date | E8: EWR | F8: ORD | H8: Linear | I8: Quadratic | J8: EWR T[t-1] | K8: EWR T[t-2] | L8: Jun 1st | M8: Jun 2nd | O8: EWR: Jun, fitted | P8: res | Q8: res2 | S8: Date | T8: EWR: proj | U8: CDD: µ | V8: Ak | W8: Bk | X8: CDD: σ factor | Y8: CDD: σ | Z8: CDD: x=-μ/σ | AA8: CDD mean | AB8: CDD s2 | AC8: CDD stdev | AD8: CDD cum: σ factor | AF8: Statistics | AG8: Value
B9: 1 | C9: 2016 | D9: =DATE(C9, 6, 30) -> 2016-06-30 | E9: =VLOOKUP(D9, data!$D$5:$E$6326,2, FALSE) -> 77.5 | F9: =VLOOKUP(D9, data!$G$5:$H$6326,2, FALSE) -> 67.5 | H9: =B9/30 -> 0.03333333333 | I9: =H9*H9 -> 0.001111111111 | J9: =E10 -> 77.5 | K9: =E11 -> 73.5 | L9: 0 | M9: 0 | O9: =$O$7+SUMPRODUCT(H$7:M$7, H9:M9) -> 78.41662115 | P9: =E9-O9 -> -0.9166211454 | Q9: =P9*P9 -> 0.8401943242 | S9: 2017-06-30 | T9: =$O$7+SUMPRODUCT(H$7:I$7, H9:I9) + $J$7*T10+$K$7*T11 -> 77.69138762 | U9: =T9-65 -> 12.69138762 | V9: =V10*$J$7+W10 -> -1.498545286e-11 | W9: =V10*$K$7 -> 1.529262682e-13 | X9: =SQRT(SUMPRODUCT(V9:V$38, V9:V$38)) -> 1.288769375 | Y9: =X9*$AG$17 -> 5.655603697 | Z9: =-U9/Y9 -> -2.244037649 | AA9: =U9*(1-NORMDIST(Z9, 0, 1, TRUE)) + Y9*NORMDIST(Z9, 0, 1, FALSE) -> 12.7157522 | AB9: =(U9*U9+Y9*Y9)*(1-NORMDIST(Z9, 0, 1, TRUE)) + 2*U9*Y9*NORMDIST(Z9, 0, 1, FALSE) -> 195.2782082 | AC9: =SQRT(AB9-AA9*AA9) -> 5.795502934 | AD9: =SUM(V9:V$39) -> 2.2019719 | AF9: Number of years | AG9: 17
B10: =B9+1 -> 2 | C10: =C9 -> 2016 | D10: =D9-1 -> 2016-06-29 | E10: =VLOOKUP(D10, data!$D$5:$E$6326,2, FALSE) -> 77.5 | F10: =VLOOKUP(D10, data!$G$5:$H$6326,2, FALSE) -> 68 | H10: =B10/30 -> 0.06666666667 | I10: =H10*H10 -> 0.004444444444 | J10: =E11 -> 73.5 | K10: =E12 -> 75.5 | L10: 0 | M10: 0 | O10: =$O$7+SUMPRODUCT(H$7:M$7, H10:M10) -> 75.01911752 | P10: =E10-O10 -> 2.480882478 | Q10: =P10*P10 -> 6.154777872 | S10: =S9-1 -> 2017-06-29 | T10: =$O$7+SUMPRODUCT(H$7:I$7, H10:I10) + $J$7*T11+$K$7*T12 -> 77.3791443 | U10: =T10-65 -> 12.3791443 | V10: -8.543002501e-13 | W10: -1.436619689e-11 | X10: =SQRT(SUMPRODUCT(V10:V$38, V10:V$38)) -> 1.288769375 | Y10: =X10*$AG$17 -> 5.655603697 | Z10: -2.188828102 | AA10: 12.40767438 | AB10: 187.6699691 | AC10: =SQRT(AB10-AA10*AA10) -> 5.806856767 | AD10: =SUM(V10:V$39) -> 2.2019719 | AF10: Cumulative projected CDD | AG10: =SUM(AA9:AA38) -> 243.8792078
B11: =B10+1 -> 3 | C11: 2016 | D11: 2016-06-28 | E11: =VLOOKUP(D11, data!$D$5:$E$6326,2, FALSE) -> 73.5 | F11: =VLOOKUP(D11, data!$G$5:$H$6326,2, FALSE) -> 64 | H11: 0.1 | I11: 0.01 | J11: 75.5 | K11: 75.47 | L11: 0 | M11: 0 | O11: 76.33199858 | P11: -2.831998584 | Q11: 8.020215977 | S11: =S10-1 -> 2017-06-28 | T11: 77.06202093 | U11: 12.06202093 | V11: 8.025465959e-11 | W11: -5.902843386e-11 | X11: =SQRT(SUMPRODUCT(V11:V$38, V11:V$38)) -> 1.288769375 | Y11: 5.655603697 | Z11: -2.132755684 | AA11: 12.09542413 | AB11: 180.1537453 | AC11: 5.818458583 | AD11: =SUM(V11:V$39) -> 2.2019719 | AF11: Variance on Jun 1st | AG11: =SUMPRODUCT(L9:L518, Q9:Q518)/AG9 -> 76.30678754
B12: 4 | C12: 2016 | D12: 2016-06-27 | E12: =VLOOKUP(D12, data!$D$5:$E$6326,2, FALSE) -> 75.5 | F12: =VLOOKUP(D12, data!$G$5:$H$6326,2, FALSE) -> 79.55 | H12: 0.1333333333 | I12: 0.01777777778 | J12: 75.47 | K12: 73.02 | L12: 0 | M12: 0 | O12: 76.60437736 | P12: -1.104377361 | Q12: 1.219649356 | S12: 2017-06-27 | T12: 76.74001751 | U12: 11.74001751 | V12: 3.2975372e-10 | W12: -1.587736668e-10 | X12: =SQRT(SUMPRODUCT(V12:V$38, V12:V$38)) -> 1.288769375 | Y12: 5.655603697 | Z12: -2.075820397 | AA12: 11.77911665 | AB12: 172.7381815 | AC12: 5.830145148 | AD12: =SUM(V12:V$39) -> 2.2019719 | AF12: StDev on Jun 1st | AG12: =SQRT(AG11) -> 8.735375638
B13: 5 | C13: 2016 | D13: 2016-06-26 | E13: =VLOOKUP(D13, data!$D$5:$E$6326,2, FALSE) -> 75.47 | F13: =VLOOKUP(D13, data!$G$5:$H$6326,2, FALSE) -> 80.95 | H13: 0.1666666667 | I13: 0.02777777778 | J13: 73.02 | K13: 75.47 | L13: 0 | M13: 0 | O13: 74.24321896 | P13: 1.226781042 | Q13: 1.504991724 | S13: 2017-06-26 | T13: 76.41313404 | U13: 11.41313404 | V13: 8.86965888e-10 | W13: -3.131805637e-10 | X13: =SQRT(SUMPRODUCT(V13:V$38, V13:V$38)) -> 1.288769375 | Y13: 5.655603697 | Z13: -2.01802224 | AA13: 11.45888424 | AB13: 165.4316133 | AC13: 5.841710811 | AD13: =SUM(V13:V$39) -> 2.201971899 | AF13: AR(1) coefficient | AG13: =J7 -> 0.7248692339
B14: 6 | C14: 2016 | D14: 2016-06-25 | E14: =VLOOKUP(D14, data!$D$5:$E$6326,2, FALSE) -> 73.02 | F14: =VLOOKUP(D14, data!$G$5:$H$6326,2, FALSE) -> 76.98 | H14: 0.2 | I14: 0.04 | J14: 75.47 | K14: 76.01 | L14: 0 | M14: 0 | O14: 75.77360817 | P14: -2.753608168 | Q14: 7.582357941 | S14: 2017-06-25 | T14: 76.08137052 | U14: 11.08137052 | V14: 1.749537454e-09 | W14: -3.812199861e-10 | X14: =SQRT(SUMPRODUCT(V14:V$38, V14:V$38)) -> 1.288769375 | Y14: 5.655603697 | Z14: -1.959361214 | AA14: 11.13487847 | AB14: 158.2419827 | AC14: 5.852902197 | AD14: =SUM(V14:V$39) -> 2.201971899 | AF14: AR(2) coefficient | AG14: =K7 -> -0.179007636
B15: 7 | C15: 2016 | D15: 2016-06-24 | E15: =VLOOKUP(D15, data!$D$5:$E$6326,2, FALSE) -> 75.47 | F15: =VLOOKUP(D15, data!$G$5:$H$6326,2, FALSE) -> 72.05 | H15: 0.2333333333 | I15: 0.05444444444 | J15: 76.01 | K15: 78.43 | L15: 0 | M15: 0 | O15: 75.58074657 | P15: -0.1107465663 | Q15: 0.01226480195 | S15: 2017-06-24 | T15: 75.74472695 | U15: 10.74472695 | V15: 2.129629745e-09 | W15: 2.058343725e-10 | X15: =SQRT(SUMPRODUCT(V15:V$38, V15:V$38)) -> 1.288769375 | Y15: 5.655603697 | Z15: -1.899837316 | AA15: 10.8072724 | AB15: 151.1767481 | AC15: 5.863412938 | AD15: =SUM(V15:V$39) -> 2.201971897 | AF15: AR(1) cumulative | AG15: =1/(1-AG13) -> 3.634635319
B16: 8 | C16: 2016 | D16: 2016-06-23 | E16: =VLOOKUP(D16, data!$D$5:$E$6326,2, FALSE) -> 76.01 | F16: =VLOOKUP(D16, data!$G$5:$H$6326,2, FALSE) -> 71.07 | H16: 0.2666666667 | I16: 0.07111111111 | J16: 78.43 | K16: 82 | L16: 0 | M16: 0 | O16: 76.54256412 | P16: -0.5325641248 | Q16: 0.283624547 | S16: 2017-06-23 | T16: 75.4032033 | U16: 10.4032033 | V16: -1.149863643e-09 | W16: 2.963130523e-09 | X16: =SQRT(SUMPRODUCT(V16:V$38, V16:V$38)) -> 1.288769375 | Y16: 5.655603697 | Z16: -1.839450545 | AA16: 10.47626303 | AB16: 144.2427902 | AC16: 5.872878606 | AD16: =SUM(V16:V$39) -> 2.201971895 | AF16: Variance on days other than Jul 1st | AG16: =(SUM(Q9:Q533) - AG11*AG9) / (29*AG9) -> 19.2578378
B17: 9 | C17: 2016 | D17: 2016-06-22 | E17: =VLOOKUP(D17, data!$D$5:$E$6326,2, FALSE) -> 78.43 | F17: =VLOOKUP(D17, data!$G$5:$H$6326,2, FALSE) -> 71.5 | H17: 0.3 | I17: 0.09 | J17: 82 | K17: 74.93 | L17: 0 | M17: 0 | O17: 80.24040633 | P17: -1.81040633 | Q17: 3.277571081 | S17: 2017-06-22 | T17: 75.05679954 | U17: 10.05679954 | V17: -1.655309567e-08 | W17: 1.084896613e-08 | X17: =SQRT(SUMPRODUCT(V17:V$38, V17:V$38)) -> 1.288769375 | Y17: 5.655603697 | Z17: -1.778200892 | AA17: 10.14207381 | AB17: 137.4463172 | AC17: 5.88087204 | AD17: =SUM(V17:V$39) -> 2.201971896 | AF17: StDev on days other than Jul 1st | AG17: =SQRT(AG16) -> 4.388375303
B18: 10 | C18: 2016 | D18: 2016-06-21 | E18: =VLOOKUP(D18, data!$D$5:$E$6326,2, FALSE) -> 82 | F18: =VLOOKUP(D18, data!$G$5:$H$6326,2, FALSE) -> 74.01 | H18: 0.3333333333 | I18: 0.1111111111 | J18: 74.93 | K18: 75.47 | L18: 0 | M18: 0 | O18: =$O$7+SUMPRODUCT(H$7:M$7, H18:M18) -> 74.86117556 | P18: 7.138824441 | Q18: 50.96281439 | S18: 2017-06-21 | T18: 74.70551559 | U18: 9.705515585 | V18: -6.060616394e-08 | W18: 2.737844796e-08 | X18: =SQRT(SUMPRODUCT(V18:V$38, V18:V$38)) -> 1.288769375 | Y18: 5.655603697 | Z18: -1.716088345 | AA18: 9.804957314 | AB18: 130.7927707 | AC18: 5.886899247 | AD18: =SUM(V18:V$39) -> 2.201971912 | AF18: Cumulative CDD StDev | AG18: =AG17*SQRT(SUMPRODUCT(AD9:AD38, AD9:AD38)) -> 51.79712718
B19: 11 | C19: 2016 | D19: 2016-06-20 | E19: =VLOOKUP(D19, data!$D$5:$E$6326,2, FALSE) -> 74.93 | F19: =VLOOKUP(D19, data!$G$5:$H$6326,2, FALSE) -> 81.5 | H19: 0.3666666667 | I19: 0.1344444444 | J19: 75.47 | K19: 71.96 | L19: 0 | M19: 0 | O19: 75.72096437 | P19: -0.7909643655 | Q19: 0.6256246274 | S19: 2017-06-20 | T19: 74.34935139 | U19: 9.349351391 | V19: -1.529456987e-07 | W19: 5.025946751e-08 | X19: =SQRT(SUMPRODUCT(V19:V$38, V19:V$38)) -> 1.288769375 | Y19: 5.655603697 | Z19: -1.653112893 | AA19: 9.465197935 | AB19: 124.2867384 | AC19: 5.890396121 | AD19: =SUM(V19:V$39) -> 2.201971973
B20: 12 | C20: 2016 | D20: 2016-06-19 | E20: =VLOOKUP(D20, data!$D$5:$E$6326,2, FALSE) -> 75.47 | F20: =VLOOKUP(D20, data!$G$5:$H$6326,2, FALSE) -> 75.56 | H20: 0.4 | I20: 0.16 | J20: 71.96 | K20: 70.97 | L20: 0 | M20: 0 | O20: 73.19171731 | P20: 2.278282687 | Q20: 5.190572001 | S20: 2017-06-19 | T20: 73.98830713 | U20: 8.988307127 | V20: -2.807671709e-07 | W20: 5.057378533e-08 | X20: =SQRT(SUMPRODUCT(V20:V$38, V20:V$38)) -> 1.288769375 | Y20: 5.655603697 | Z20: -1.589274569 | AA20: 9.123114835 | AB20: 117.9318792 | AC20: 5.890726178 | AD20: =SUM(V20:V$39) -> 2.201972126
B21: 13 | C21: 2016 | D21: 2016-06-18 | E21: =VLOOKUP(D21, data!$D$5:$E$6326,2, FALSE) -> 71.96 | F21: =VLOOKUP(D21, data!$G$5:$H$6326,2, FALSE) -> 72.5 | H21: 0.4333333333 | I21: 0.1877777778 | J21: 70.97 | K21: 71.95 | L21: 0 | M21: 0 | O21: 72.13427947 | P21: -0.174279469 | Q21: 0.03037333333 | S21: 2017-06-18 | T21: 73.62238382 | U21: 8.622383818 | V21: -2.825230614e-07 | W21: -7.597489579e-08 | X21: =SQRT(SUMPRODUCT(V21:V$38, V21:V$38)) -> 1.288769375 | Y21: 5.655603697 | Z21: -1.524573552 | AA21: 8.77906514 | AB21: 111.7308678 | AC21: 5.887179551 | AD21: =SUM(V21:V$39) -> 2.201972407
B22: 14 | C22: 2016 | D22: 2016-06-17 | E22: =VLOOKUP(D22, data!$D$5:$E$6326,2, FALSE) -> 70.97 | F22: =VLOOKUP(D22, data!$G$5:$H$6326,2, FALSE) -> 72.95 | H22: 0.4666666667 | I22: 0.2177777778 | J22: 71.95 | K22: 73 | L22: 0 | M22: 0 | O22: 72.49008726 | P22: -1.520087263 | Q22: 2.310665286 | S22: 2017-06-17 | T22: 73.25158463 | U22: 8.25158463 | V22: 4.244226532e-07 | W22: -5.901739849e-07 | X22: =SQRT(SUMPRODUCT(V22:V$38, V22:V$38)) -> 1.288769375 | Y22: 5.655603697 | Z22: -1.459010403 | AA22: 8.43344762 | AB22: 105.6853684 | AC22: 5.878973517 | AD22: =SUM(V22:V$39) -> 2.201972689
B23: 15 | C23: 2016 | D23: 2016-06-16 | E23: =VLOOKUP(D23, data!$D$5:$E$6326,2, FALSE) -> 71.95 | F23: =VLOOKUP(D23, data!$G$5:$H$6326,2, FALSE) -> 70 | H23: 0.5 | I23: 0.25 | J23: 73 | K23: 70.5 | L23: 0 | M23: 0 | O23: 73.52989679 | P23: -1.579896792 | Q23: 2.496073873 | S23: 2017-06-16 | T23: 72.87591666 | U23: 7.875916664 | V23: 3.296920725e-06 | W23: -1.965413747e-06 | X23: =SQRT(SUMPRODUCT(V23:V$38, V23:V$38)) -> 1.288769375 | Y23: 5.655603697 | Z23: -1.392586377 | AA23: 8.086706505 | AB23: 99.79603608 | AC23: 5.865254809 | AD23: =SUM(V23:V$39) -> 2.201972265
B24: 16 | C24: 2016 | D24: 2016-06-15 | E24: =VLOOKUP(D24, data!$D$5:$E$6326,2, FALSE) -> 73 | F24: =VLOOKUP(D24, data!$G$5:$H$6326,2, FALSE) -> 79 | H24: 0.5333333333 | I24: 0.2844444444 | J24: 70.5 | K24: 66.5 | L24: 0 | M24: 0 | O24: 72.26271578 | P24: 0.7372842238 | Q24: 0.5435880266 | S24: 2017-06-15 | T24: 72.495391 | U24: 7.495391001 | V24: 1.097949669e-05 | W24: -4.66177863e-06 | X24: =SQRT(SUMPRODUCT(V24:V$38, V24:V$38)) -> 1.288769375 | Y24: 5.655603697 | Z24: -1.325303434 | AA24: 7.739333242 | AB24: 94.06251818 | AC24: 5.845103862 | AD24: =SUM(V24:V$39) -> 2.201968968
B25: 17 | C25: 2016 | D25: 2016-06-14 | E25: =VLOOKUP(D25, data!$D$5:$E$6326,2, FALSE) -> 70.5 | F25: =VLOOKUP(D25, data!$G$5:$H$6326,2, FALSE) -> 75.5 | H25: 0.5666666667 | I25: 0.3211111111 | J25: 66.5 | K25: 75.55 | L25: 0 | M25: 0 | O25: 67.56996504 | P25: 2.930034958 | Q25: 8.585104854 | S25: 2017-06-14 | T25: 72.11001282 | U25: 7.110012822 | V25: 2.604234509e-05 | W25: -7.897798046e-06 | X25: =SQRT(SUMPRODUCT(V25:V$38, V25:V$38)) -> 1.288769375 | Y25: 5.655603696 | Z25: -1.257162489 | AA25: 7.391858837 | AB25: 88.4833517 | AC25: 5.817540256 | AD25: =SUM(V25:V$39) -> 2.201957988
B26: 18 | C26: 2016 | D26: 2016-06-13 | E26: =VLOOKUP(D26, data!$D$5:$E$6326,2, FALSE) -> 66.5 | F26: =VLOOKUP(D26, data!$G$5:$H$6326,2, FALSE) -> 69.98 | H26: 0.6 | I26: 0.36 | J26: 75.55 | K26: 73 | L26: 0 | M26: 0 | O26: 74.41103017 | P26: -7.911030169 | Q26: 62.58439833 | S26: 2017-06-13 | T26: 71.71974122 | U26: 6.719741221 | V26: 4.411989468e-05 | W26: -5.938809163e-06 | X26: =SQRT(SUMPRODUCT(V26:V$38, V26:V$38)) -> 1.288769375 | Y26: 5.655603695 | Z26: -1.188156311 | AA26: 7.044819577 | AB26: 83.05552331 | AC26: 5.781525788 | AD26: =SUM(V26:V$39) -> 2.201931946
B27: 19 | C27: 2016 | D27: 2016-06-12 | E27: =VLOOKUP(D27, data!$D$5:$E$6326,2, FALSE) -> 75.55 | F27: =VLOOKUP(D27, data!$G$5:$H$6326,2, FALSE) -> 69 | H27: 0.6333333333 | I27: 0.4011111111 | J27: 73 | K27: 67.98 | L27: 0 | M27: 0 | O27: 73.28354482 | P27: 2.266455175 | Q27: 5.136819061 | S27: 2017-06-12 | T27: 71.3243816 | U27: 6.3243816 | V27: 3.317628955e-05 | W27: 2.007142309e-05 | X27: =SQRT(SUMPRODUCT(V27:V$38, V27:V$38)) -> 1.288769374 | Y27: 5.655603692 | Z27: -1.11825049 | AA27: 6.698667057 | AB27: 77.77331807 | AC27: 5.735954823 | AD27: =SUM(V27:V$39) -> 2.201887826
B28: 20 | C28: 2016 | D28: 2016-06-11 | E28: =VLOOKUP(D28, data!$D$5:$E$6326,2, FALSE) -> 73 | F28: =VLOOKUP(D28, data!$G$5:$H$6326,2, FALSE) -> 81 | H28: 0.6666666667 | I28: 0.4444444444 | J28: 67.98 | K28: 64.04 | L28: 0 | M28: 0 | O28: 70.17008801 | P28: 2.829911992 | Q28: 8.008401883 | S28: 2017-06-11 | T28: 70.92337448 | U28: 5.923374485 | V28: -0.0001121260721 | W28: 0.0001144530295 | X28: =SQRT(SUMPRODUCT(V28:V$38, V28:V$38)) -> 1.288769374 | Y28: 5.65560369 | Z28: -1.047346103 | AA28: 6.353600163 | AB28: 72.6262265 | AC28: 5.679611912 | AD28: =SUM(V28:V$39) -> 2.20185465
B29: 21 | C29: 2016 | D29: 2016-06-10 | E29: =VLOOKUP(D29, data!$D$5:$E$6326,2, FALSE) -> 67.98 | F29: =VLOOKUP(D29, data!$G$5:$H$6326,2, FALSE) -> 76.5 | H29: 0.7 | I29: 0.49 | J29: 64.04 | K29: 61.5 | L29: 0 | M29: 0 | O29: 67.58666305 | P29: 0.3933369452 | Q29: 0.1547139525 | S29: 2017-06-10 | T29: 70.51554144 | U29: 5.515541436 | V29: -0.0006393751244 | W29: 0.0003513372845 | X29: =SQRT(SUMPRODUCT(V29:V$38, V29:V$38)) -> 1.288769369 | Y29: 5.655603669 | Z29: -0.9752347865 | AA29: 6.009385449 | AB29: 67.59695138 | AC29: 5.611081706 | AD29: =SUM(V29:V$39) -> 2.201966776
B30: 22 | C30: 2016 | D30: 2016-06-09 | E30: =VLOOKUP(D30, data!$D$5:$E$6326,2, FALSE) -> 64.04 | F30: =VLOOKUP(D30, data!$G$5:$H$6326,2, FALSE) -> 62.51 | H30: 0.7333333333 | I30: 0.5377777778 | J30: 61.5 | K30: 75.5 | L30: 0 | M30: 0 | O30: 63.05505251 | P30: 0.9849474882 | Q30: 0.9701215544 | S30: 2017-06-09 | T30: 70.09923594 | U30: 5.099235941 | V30: -0.001962694399 | W30: 0.0007833216611 | X30: =SQRT(SUMPRODUCT(V30:V$38, V30:V$38)) -> 1.28876921 | Y30: 5.655602973 | Z30: -0.9016255146 | AA30: 5.665544452 | AB30: 62.66477065 | AC30: 5.528686708 | AD30: =SUM(V30:V$39) -> 2.202606151
B31: 23 | C31: 2016 | D31: 2016-06-08 | E31: =VLOOKUP(D31, data!$D$5:$E$6326,2, FALSE) -> 61.5 | F31: =VLOOKUP(D31, data!$G$5:$H$6326,2, FALSE) -> 60.98 | H31: 0.7666666667 | I31: 0.5877777778 | J31: 75.5 | K31: 76 | L31: 0 | M31: 0 | O31: 72.92716596 | P31: -11.42716596 | Q31: 130.580122 | S31: 2017-06-08 | T31: 69.67437382 | U31: 4.674373819 | V31: -0.004375911994 | W31: 0.001209269575 | X31: =SQRT(SUMPRODUCT(V31:V$38, V31:V$38)) -> 1.288767716 | Y31: 5.655596414 | Z31: -0.8265041345 | AA31: 5.323032374 | AB31: 57.82931639 | AC31: 5.430897047 | AD31: =SUM(V31:V$39) -> 2.204568845
B32: 24 | C32: 2016 | D32: 2016-06-07 | E32: =VLOOKUP(D32, data!$D$5:$E$6326,2, FALSE) -> 75.5 | F32: =VLOOKUP(D32, data!$G$5:$H$6326,2, FALSE) -> 59 | H32: 0.8 | I32: 0.64 | J32: 76 | K32: 63 | L32: 0 | M32: 0 | O32: 75.42793163 | P32: 0.07206837365 | Q32: 0.005193850481 | S32: 2017-06-07 | T32: 69.24981221 | U32: 4.249812207 | V32: -0.006755407771 | W32: 0.0005208752619 | X32: =SQRT(SUMPRODUCT(V32:V$38, V32:V$38)) -> 1.288760287 | Y32: 5.655563813 | Z32: -0.7514391752 | AA32: 4.989792245 | AB32: 53.18621753 | AC32: 5.318664389 | AD32: =SUM(V32:V$39) -> 2.208944757
B33: 25 | C33: 2016 | D33: 2016-06-06 | E33: =VLOOKUP(D33, data!$D$5:$E$6326,2, FALSE) -> 76 | F33: =VLOOKUP(D33, data!$G$5:$H$6326,2, FALSE) -> 70.5 | H33: 0.8333333333 | I33: 0.6944444444 | J33: 63 | K33: 74.93 | L33: 0 | M33: 0 | O33: 63.67808605 | P33: 12.32191395 | Q33: 151.8295634 | S33: 2017-06-06 | T33: 68.86188723 | U33: 3.86188723 | V33: -0.002909793536 | W33: -0.00464618796 | X33: =SQRT(SUMPRODUCT(V33:V$38, V33:V$38)) -> 1.288742581 | Y33: 5.655486115 | Z33: -0.6828568139 | AA33: 4.693659207 | AB33: 49.10078702 | AC33: 5.202917478 | AD33: =SUM(V33:V$39) -> 2.215700165
B34: 26 | C34: 2016 | D34: 2016-06-05 | E34: =VLOOKUP(D34, data!$D$5:$E$6326,2, FALSE) -> 63 | F34: =VLOOKUP(D34, data!$G$5:$H$6326,2, FALSE) -> 70 | H34: 0.8666666667 | I34: 0.7511111111 | J34: 74.93 | K34: 66.5 | L34: 0 | M34: 0 | O34: 73.64160972 | P34: -10.64160972 | Q34: 113.2438574 | S34: 2017-06-05 | T34: 68.60825844 | U34: 3.608258436 | V34: 0.02595525009 | W34: -0.02172395579 | X34: =SQRT(SUMPRODUCT(V34:V$38, V34:V$38)) -> 1.288739296 | Y34: 5.655471699 | Z34: -0.6380119339 | AA34: 4.504575662 | AB34: 46.50845614 | AC34: 5.120278727 | AD34: =SUM(V34:V$39) -> 2.218609959
B35: 27 | C35: 2016 | D35: 2016-06-04 | E35: =VLOOKUP(D35, data!$D$5:$E$6326,2, FALSE) -> 74.93 | F35: =VLOOKUP(D35, data!$G$5:$H$6326,2, FALSE) -> 67.05 | H35: 0.9 | I35: 0.81 | J35: 66.5 | K35: 67.48 | L35: 0 | M35: 0 | O35: 67.16011772 | P35: 7.769882282 | Q35: 60.37107068 | S35: 2017-06-04 | T35: 68.6813996 | U35: 3.6813996 | V35: 0.1213577045 | W35: -0.06201321619 | X35: =SQRT(SUMPRODUCT(V35:V$38, V35:V$38)) -> 1.2884779 | Y35: 5.654324594 | Z35: -0.6510768065 | AA35: 4.558356646 | AB35: 47.23816572 | AC35: 5.143884758 | AD35: =SUM(V35:V$39) -> 2.192654709
B36: 28 | C36: 2016 | D36: 2016-06-03 | E36: =VLOOKUP(D36, data!$D$5:$E$6326,2, FALSE) -> 66.5 | F36: =VLOOKUP(D36, data!$G$5:$H$6326,2, FALSE) -> 69.53 | H36: 0.9333333333 | I36: 0.8711111111 | J36: 67.48 | K36: 75.46 | L36: 0 | M36: 0 | O36: 66.24437554 | P36: 0.2556244642 | Q36: 0.0653438667 | S36: 2017-06-03 | T36: =$O$7+SUMPRODUCT(H$7:I$7, H36:I36) + $J$7*T37+$K$7*T38 -> 69.31514862 | U36: 4.31514862 | V36: 0.3464277703 | W36: -0.1297571279 | X36: =SQRT(SUMPRODUCT(V36:V$38, V36:V$38)) -> 1.282750017 | Y36: 5.629188494 | Z36: -0.7665667306 | AA36: 5.03260894 | AB36: 53.60355348 | AC36: 5.317555899 | AD36: =SUM(V36:V$39) -> 2.071297004
B37: 29 | C37: 2016 | D37: 2016-06-02 | E37: =VLOOKUP(D37, data!$D$5:$E$6326,2, FALSE) -> 67.48 | F37: =VLOOKUP(D37, data!$G$5:$H$6326,2, FALSE) -> 68 | H37: 0.9666666667 | I37: 0.9344444444 | J37: =E38 -> 75.46 | K37: 0 | L37: 0 | M37: 1 | O37: 74.30016066 | P37: -6.820160664 | Q37: 46.51459148 | S37: 2017-06-02 | T37: =O7 + M7 + SUMPRODUCT(H7:I7, H37:I37) + J7*T38 -> 70.38117647 | U37: 5.381176471 | V37: =J7 -> 0.7248692339 | W37: =K7 -> -0.179007636 | X37: =SQRT(SUMPRODUCT(V37:V$38, V37:V$38)) -> 1.235085182 | Y37: 5.420017309 | Z37: -0.9928338166 | AA37: 5.838943822 | AB37: 63.19301133 | AC37: 5.394418076 | AD37: =SUM(V37:V$39) -> 1.724869234
B38: 30 | C38: 2016 | D38: 2016-06-01 | E38: =VLOOKUP(D38, data!$D$5:$E$6326,2, FALSE) -> 75.46 | F38: =VLOOKUP(D38, data!$G$5:$H$6326,2, FALSE) -> 70.53 | H38: 1 | I38: 1 | J38: 0 | K38: 0 | L38: 1 | M38: 0 | O38: 70.05352941 | P38: 5.406470588 | Q38: 29.22992422 | S38: 2017-06-01 | T38: =O7 + L7 + SUMPRODUCT(H7:I7, H38:I38) -> 70.05352941 | U38: 5.053529412 | V38: 1 | X38: =SQRT(SUMPRODUCT(V38:V$38, V38:V$38)) -> 1 | Y38: 4.388375303 | Z38: -1.151571838 | AA38: 5.325201458 | AB38: 48.32526356 | AC38: 4.468500084 | AD38: =SUM(V38:V$39) -> 1
B39: 31 | C39: =C9-1 -> 2015 | D39: =DATE(C39, 6, 30) -> 2015-06-30 | E39: =VLOOKUP(D39, data!$D$5:$E$6326,2, FALSE) -> 74.5 | F39: =VLOOKUP(D39, data!$G$5:$H$6326,2, FALSE) -> 67 | H39: =H9 -> 0.03333333333 | I39: =H39*H39 -> 0.001111111111 | J39: =E40 -> 70.5 | K39: =E41 -> 69 | L39: 0 | M39: 0 | O39: 74.14807087 | P39: 0.3519291299 | Q39: 0.1238541125
B40: 32 | C40: 2015 | D40: =D39-1 -> 2015-06-29 | E40: =VLOOKUP(D40, data!$D$5:$E$6326,2, FALSE) -> 70.5 | F40: =VLOOKUP(D40, data!$G$5:$H$6326,2, FALSE) -> 69.5 | H40: =H10 -> 0.06666666667 | I40: 0.004444444444 | J40: =E41 -> 69 | K40: =E42 -> 66.5 | L40: 0 | M40: 0 | O40: 73.36827469 | P40: -2.868274693 | Q40: 8.226999713
B41: 33 | C41: 2015 | D41: 2015-06-28 | E41: =VLOOKUP(D41, data!$D$5:$E$6326,2, FALSE) -> 69 | F41: =VLOOKUP(D41, data!$G$5:$H$6326,2, FALSE) -> 66.5 | H41: 0.1 | I41: 0.01 | J41: 66.5 | K41: 75.5 | L41: 0 | M41: 0 | O41: 69.80280525 | P41: -0.8028052495 | Q41: 0.6444962687
B42: 34 | C42: 2015 | D42: 2015-06-27 | E42: =VLOOKUP(D42, data!$D$5:$E$6326,2, FALSE) -> 66.5 | F42: =VLOOKUP(D42, data!$G$5:$H$6326,2, FALSE) -> 66 | H42: 0.1333333333 | I42: 0.01777777778 | J42: 75.5 | K42: 75.5 | L42: 0 | M42: 0 | O42: 76.1821845 | P42: -9.682184501 | Q42: 93.74469671
B43: 35 | C43: 2015 | D43: 2015-06-26 | E43: =VLOOKUP(D43, data!$D$5:$E$6326,2, FALSE) -> 75.5 | F43: =VLOOKUP(D43, data!$G$5:$H$6326,2, FALSE) -> 62.5 | H43: 0.1666666667 | I43: 0.02777777778 | J43: 75.5 | K43: 77 | L43: 0 | M43: 0 | O43: 75.76701298 | P43: -0.2670129754 | Q43: 0.07129592903
B44: 36 | C44: 2015 | D44: 2015-06-25 | E44: =VLOOKUP(D44, data!$D$5:$E$6326,2, FALSE) -> 75.5 | F44: =VLOOKUP(D44, data!$G$5:$H$6326,2, FALSE) -> 70 | H44: 0.2 | I44: 0.04 | J44: 77 | K44: 83.5 | L44: 0 | M44: 0 | O44: 75.5418909 | P44: -0.04189090224 | Q44: 0.001754847691
B45: 37 | C45: 2015 | D45: 2015-06-24 | E45: =VLOOKUP(D45, data!$D$5:$E$6326,2, FALSE) -> 77 | F45: =VLOOKUP(D45, data!$G$5:$H$6326,2, FALSE) -> 69.5 | H45: 0.2333333333 | I45: 0.05444444444 | J45: 83.5 | K45: 80.5 | L45: 0 | M45: 0 | O45: 80.63947132 | P45: -3.639471322 | Q45: 13.2457515
B46: 38 | C46: 2015 | D46: 2015-06-23 | E46: =VLOOKUP(D46, data!$D$5:$E$6326,2, FALSE) -> 83.5 | F46: =VLOOKUP(D46, data!$G$5:$H$6326,2, FALSE) -> 72.5 | H46: 0.2666666667 | I46: 0.07111111111 | J46: 80.5 | K46: 81 | L46: 0 | M46: 0 | O46: 78.22205107 | P46: 5.277948925 | Q46: 27.85674486
B47: 39 | C47: 2015 | D47: 2015-06-22 | E47: =VLOOKUP(D47, data!$D$5:$E$6326,2, FALSE) -> 80.5 | F47: =VLOOKUP(D47, data!$G$5:$H$6326,2, FALSE) -> 74.5 | H47: 0.3 | I47: 0.09 | J47: 81 | K47: 69.5 | L47: 0 | M47: 0 | O47: 80.48754856 | P47: 0.01245144022 | Q47: 0.0001550383634
B48: 40 | C48: 2015 | D48: 2015-06-21 | E48: =VLOOKUP(D48, data!$D$5:$E$6326,2, FALSE) -> 81 | F48: =VLOOKUP(D48, data!$G$5:$H$6326,2, FALSE) -> 75.5 | H48: 0.3333333333 | I48: 0.1111111111 | J48: 69.5 | K48: 78 | L48: 0 | M48: 0 | O48: 70.4722463 | P48: 10.5277537 | Q48: 110.833598
B49: 41 | C49: 2015 | D49: 2015-06-20 | E49: =VLOOKUP(D49, data!$D$5:$E$6326,2, FALSE) -> 69.5 | F49: =VLOOKUP(D49, data!$G$5:$H$6326,2, FALSE) -> 65.5 | H49: 0.3666666667 | I49: 0.1344444444 | J49: 78 | K49: 67 | L49: 0 | M49: 0 | O49: 78.4427614 | P49: -8.942761402 | Q49: 79.97298148
B50: 42 | C50: 2015 | D50: 2015-06-19 | E50: =VLOOKUP(D50, data!$D$5:$E$6326,2, FALSE) -> 78 | F50: =VLOOKUP(D50, data!$G$5:$H$6326,2, FALSE) -> 60.5 | H50: 0.4 | I50: 0.16 | J50: 67 | K50: 73.5 | L50: 0 | M50: 0 | O50: 69.14347659 | P50: 8.856523406 | Q50: 78.43800684
B51: 43 | C51: 2015 | D51: 2015-06-18 | E51: =VLOOKUP(D51, data!$D$5:$E$6326,2, FALSE) -> 67 | F51: =VLOOKUP(D51, data!$G$5:$H$6326,2, FALSE) -> 68.5 | H51: 0.4333333333 | I51: 0.1877777778 | J51: 73.5 | K51: 71.5 | L51: 0 | M51: 0 | O51: 74.04875207 | P51: -7.048752067 | Q51: 49.6849057
B52: 44 | C52: 2015 | D52: 2015-06-17 | E52: =VLOOKUP(D52, data!$D$5:$E$6326,2, FALSE) -> 73.5 | F52: =VLOOKUP(D52, data!$G$5:$H$6326,2, FALSE) -> 64 | H52: 0.4666666667 | I52: 0.2177777778 | J52: 71.5 | K52: 74.5 | L52: 0 | M52: 0 | O52: 71.89538465 | P52: 1.604615347 | Q52: 2.57479041
B53: 45 | C53: 2015 | D53: 2015-06-16 | E53: =VLOOKUP(D53, data!$D$5:$E$6326,2, FALSE) -> 71.5 | F53: =VLOOKUP(D53, data!$G$5:$H$6326,2, FALSE) -> 64 | H53: 0.5 | I53: 0.25 | J53: 74.5 | K53: 76.5 | L53: 0 | M53: 0 | O53: 73.54315483 | P53: -2.043154827 | Q53: 4.174481647
B54: 46 | C54: 2015 | D54: 2015-06-15 | E54: =VLOOKUP(D54, data!$D$5:$E$6326,2, FALSE) -> 74.5 | F54: =VLOOKUP(D54, data!$G$5:$H$6326,2, FALSE) -> 74 | H54: 0.5333333333 | I54: 0.2844444444 | J54: 76.5 | K54: 80 | L54: 0 | M54: 0 | O54: 74.19532809 | P54: 0.3046719059 | Q54: 0.09282497026
B55: 47 | C55: 2015 | D55: 2015-06-14 | E55: =VLOOKUP(D55, data!$D$5:$E$6326,2, FALSE) -> 76.5 | F55: =VLOOKUP(D55, data!$G$5:$H$6326,2, FALSE) -> 75.5 | H55: 0.5666666667 | I55: 0.3211111111 | J55: 80 | K55: 81 | L55: 0 | M55: 0 | O55: 76.38010808 | P55: 0.1198919165 | Q55: 0.01437407164
B56: 48 | C56: 2015 | D56: 2015-06-13 | E56: =VLOOKUP(D56, data!$D$5:$E$6326,2, FALSE) -> 80 | F56: =VLOOKUP(D56, data!$G$5:$H$6326,2, FALSE) -> 71 | H56: 0.6 | I56: 0.36 | J56: 81 | K56: 81.5 | L56: 0 | M56: 0 | O56: 76.84000259 | P56: 3.159997412 | Q56: 9.985583645
B57: 49 | C57: 2015 | D57: 2015-06-12 | E57: =VLOOKUP(D57, data!$D$5:$E$6326,2, FALSE) -> 81 | F57: =VLOOKUP(D57, data!$G$5:$H$6326,2, FALSE) -> 61.5 | H57: 0.6333333333 | I57: 0.4011111111 | J57: 81.5 | K57: 75.5 | L57: 0 | M57: 0 | O57: 78.09879589 | P57: 2.90120411 | Q57: 8.416985286
B58: 50 | C58: 2015 | D58: 2015-06-11 | E58: =VLOOKUP(D58, data!$D$5:$E$6326,2, FALSE) -> 81.5 | F58: =VLOOKUP(D58, data!$G$5:$H$6326,2, FALSE) -> 65 | H58: 0.6666666667 | I58: 0.4444444444 | J58: 75.5 | K58: 77 | L58: 0 | M58: 0 | O58: 73.30116568 | P58: 8.198834315 | Q58: 67.22088413
B59: 51 | C59: 2015 | D59: 2015-06-10 | E59: =VLOOKUP(D59, data!$D$5:$E$6326,2, FALSE) -> 75.5 | F59: =VLOOKUP(D59, data!$G$5:$H$6326,2, FALSE) -> 80 | H59: 0.7 | I59: 0.49 | J59: 77 | K59: 73 | L59: 0 | M59: 0 | O59: 74.92238051 | P59: 0.5776194877 | Q59: 0.3336442726
B60: 52 | C60: 2015 | D60: 2015-06-09 | E60: =VLOOKUP(D60, data!$D$5:$E$6326,2, FALSE) -> 77 | F60: =VLOOKUP(D60, data!$G$5:$H$6326,2, FALSE) -> 72.5 | H60: 0.7333333333 | I60: 0.5377777778 | J60: 73 | K60: 62.5 | L60: 0 | M60: 0 | O60: 73.71814797 | P60: 3.281852031 | Q60: 10.77055275
B61: 53 | C61: 2015 | D61: 2015-06-08 | E61: =VLOOKUP(D61, data!$D$5:$E$6326,2, FALSE) -> 73 | F61: =VLOOKUP(D61, data!$G$5:$H$6326,2, FALSE) -> 72.5 | H61: 0.7666666667 | I61: 0.5877777778 | J61: 62.5 | K61: 69.5 | L61: 0 | M61: 0 | O61: 64.66741556 | P61: 8.332584442 | Q61: 69.43196349
B62: 54 | C62: 2015 | D62: 2015-06-07 | E62: =VLOOKUP(D62, data!$D$5:$E$6326,2, FALSE) -> 62.5 | F62: =VLOOKUP(D62, data!$G$5:$H$6326,2, FALSE) -> 68 | H62: 0.8 | I62: 0.64 | J62: 69.5 | K62: 64 | L62: 0 | M62: 0 | O62: 70.53727397 | P62: -8.03727397 | Q62: 64.59777287
B63: 55 | C63: 2015 | D63: 2015-06-06 | E63: =VLOOKUP(D63, data!$D$5:$E$6326,2, FALSE) -> 69.5 | F63: =VLOOKUP(D63, data!$G$5:$H$6326,2, FALSE) -> 61.5 | H63: 0.8333333333 | I63: 0.6944444444 | J63: 64 | K63: 61.5 | L63: 0 | M63: 0 | O63: 66.80702783 | P63: 2.692972167 | Q63: 7.252099093
B64: 56 | C64: 2015 | D64: 2015-06-05 | E64: =VLOOKUP(D64, data!$D$5:$E$6326,2, FALSE) -> 64 | F64: =VLOOKUP(D64, data!$G$5:$H$6326,2, FALSE) -> 62.5 | H64: 0.8666666667 | I64: 0.7511111111 | J64: 61.5 | K64: 61.5 | L64: 0 | M64: 0 | O64: 64.80165409 | P64: -0.801654089 | Q64: 0.6426492784
B65: 57 | C65: 2015 | D65: 2015-06-04 | E65: =VLOOKUP(D65, data!$D$5:$E$6326,2, FALSE) -> 61.5 | F65: =VLOOKUP(D65, data!$G$5:$H$6326,2, FALSE) -> 69 | H65: 0.9 | I65: 0.81 | J65: 61.5 | K65: 53 | L65: 0 | M65: 0 | O65: 66.12780212 | P65: -4.627802117 | Q65: 21.41655243
B66: 58 | C66: 2015 | D66: 2015-06-03 | E66: =VLOOKUP(D66, data!$D$5:$E$6326,2, FALSE) -> 61.5 | F66: =VLOOKUP(D66, data!$G$5:$H$6326,2, FALSE) -> 63.5 | H66: 0.9333333333 | I66: 0.8711111111 | J66: 53 | K66: 56.5 | L66: 0 | M66: 0 | O66: 59.14225381 | P66: 2.357746193 | Q66: 5.558967111
B67: 59 | C67: 2015 | D67: 2015-06-02 | E67: =VLOOKUP(D67, data!$D$5:$E$6326,2, FALSE) -> 53 | F67: =VLOOKUP(D67, data!$G$5:$H$6326,2, FALSE) -> 56 | H67: 0.9666666667 | I67: 0.9344444444 | J67: =E68 -> 56.5 | K67: 0 | L67: 0 | M67: 1 | O67: 60.55663999 | P67: =E67-O67 -> -7.55663999 | Q67: 57.10280793
B68: 60 | C68: 2015 | D68: 2015-06-01 | E68: =VLOOKUP(D68, data!$D$5:$E$6326,2, FALSE) -> 56.5 | F68: =VLOOKUP(D68, data!$G$5:$H$6326,2, FALSE) -> 52 | H68: 1 | I68: 1 | J68: 0 | K68: 0 | L68: 1 | M68: 0 | O68: 70.05352941 | P68: -13.55352941 | Q68: 183.6981595
B69: 61 | C69: 2014 | D69: =DATE(C69, 6, 30) -> 2014-06-30 | E69: =VLOOKUP(D69, data!$D$5:$E$6326,2, FALSE) -> 76 | F69: =VLOOKUP(D69, data!$G$5:$H$6326,2, FALSE) -> 77 | H69: =H39 -> 0.03333333333 | I69: =H69*H69 -> 0.001111111111 | J69: =E70 -> 74 | K69: =E71 -> 75.5 | L69: 0 | M69: 0 | O69: 75.52156355 | P69: 0.4784364451 | Q69: 0.228901432
B70: 62 | C70: 2014 | D70: =D69-1 -> 2014-06-29 | E70: =VLOOKUP(D70, data!$D$5:$E$6326,2, FALSE) -> 74 | F70: =VLOOKUP(D70, data!$G$5:$H$6326,2, FALSE) -> 77 | H70: 0.06666666667 | I70: 0.004444444444 | J70: =E71 -> 75.5 | K70: =E72 -> 75 | L70: 0 | M70: 0 | O70: 76.55835981 | P70: -2.558359807 | Q70: 6.545204904
B71: 63 | C71: 2014 | D71: 2014-06-28 | E71: =VLOOKUP(D71, data!$D$5:$E$6326,2, FALSE) -> 75.5 | F71: =VLOOKUP(D71, data!$G$5:$H$6326,2, FALSE) -> 79 | H71: 0.1 | I71: 0.01 | J71: 75 | K71: 80 | L71: 0 | M71: 0 | O71: 75.15865938 | P71: 0.3413406243 | Q71: 0.1165134218
B72: 64 | C72: 2014 | D72: 2014-06-27 | E72: =VLOOKUP(D72, data!$D$5:$E$6326,2, FALSE) -> 75 | F72: =VLOOKUP(D72, data!$G$5:$H$6326,2, FALSE) -> 73.5 | H72: 0.1333333333 | I72: 0.01777777778 | J72: 80 | K72: 77.5 | L72: 0 | M72: 0 | O72: 79.08608078 | P72: -4.086080782 | Q72: 16.69605615
B73: 65 | C73: 2014 | D73: 2014-06-26 | E73: =VLOOKUP(D73, data!$D$5:$E$6326,2, FALSE) -> 80 | F73: =VLOOKUP(D73, data!$G$5:$H$6326,2, FALSE) -> 68.5 | H73: 0.1666666667 | I73: 0.02777777778 | J73: 77.5 | K73: 74.5 | L73: 0 | M73: 0 | O73: 77.66427053 | P73: 2.335729467 | Q73: 5.455632143
B74: 66 | C74: 2014 | D74: 2014-06-25 | E74: =VLOOKUP(D74, data!$D$5:$E$6326,2, FALSE) -> 77.5 | F74: =VLOOKUP(D74, data!$G$5:$H$6326,2, FALSE) -> 69.5 | H74: 0.2 | I74: =H74*H74 -> 0.04 | J74: 74.5 | K74: 73 | L74: 0 | M74: 0 | O74: =$O$7+SUMPRODUCT(H$7:M$7, H74:M74) -> 75.609298 | P74: =E74-O74 -> 1.890702005 | Q74: =P74*P74 -> 3.574754071
B75: =B74+1 -> 67 | C75: 2014 | D75: 2014-06-24 | E75: =VLOOKUP(D75, data!$D$5:$E$6326,2, FALSE) -> 74.5 | F75: =VLOOKUP(D75, data!$G$5:$H$6326,2, FALSE) -> 78.5 | H75: 0.2333333333 | I75: 0.05444444444 | J75: 73 | K75: 70.5 | L75: 0 | M75: 0 | O75: 74.81842073 | P75: -0.3184207255 | Q75: 0.1013917584
B76: 68 | C76: 2014 | D76: 2014-06-23 | E76: =VLOOKUP(D76, data!$D$5:$E$6326,2, FALSE) -> 73 | F76: =VLOOKUP(D76, data!$G$5:$H$6326,2, FALSE) -> 73.5 | H76: 0.2666666667 | I76: 0.07111111111 | J76: 70.5 | K76: 68 | L76: 0 | M76: 0 | O76: 73.300458 | P76: -0.3004580036 | Q76: 0.09027501191
B77: 69 | C77: 2014 | D77: 2014-06-22 | E77: =VLOOKUP(D77, data!$D$5:$E$6326,2, FALSE) -> 70.5 | F77: =VLOOKUP(D77, data!$G$5:$H$6326,2, FALSE) -> 72.5 | H77: 0.3 | I77: 0.09 | J77: 68 | K77: 72 | L77: 0 | M77: 0 | O77: 70.61672943 | P77: -0.1167294295 | Q77: 0.0136257597
B78: 70 | C78: 2014 | D78: 2014-06-21 | E78: =VLOOKUP(D78, data!$D$5:$E$6326,2, FALSE) -> 68 | F78: =VLOOKUP(D78, data!$G$5:$H$6326,2, FALSE) -> 72 | H78: 0.3333333333 | I78: 0.1111111111 | J78: 72 | K78: 77.5 | L78: 0 | M78: 0 | O78: 72.3739232 | P78: -4.373923203 | Q78: 19.13120419
B79: 71 | C79: 2014 | D79: 2014-06-20 | E79: =VLOOKUP(D79, data!$D$5:$E$6326,2, FALSE) -> 72 | F79: =VLOOKUP(D79, data!$G$5:$H$6326,2, FALSE) -> 74 | H79: 0.3666666667 | I79: 0.1344444444 | J79: 77.5 | K79: 83.5 | L79: 0 | M79: 0 | O79: 75.12670079 | P79: -3.126700791 | Q79: 9.776257838
B80: 72 | C80: 2014 | D80: 2014-06-19 | E80: =VLOOKUP(D80, data!$D$5:$E$6326,2, FALSE) -> 77.5 | F80: =VLOOKUP(D80, data!$G$5:$H$6326,2, FALSE) -> 69 | H80: 0.4 | I80: 0.16 | J80: 83.5 | K80: 80.5 | L80: 0 | M80: 0 | O80: 79.8507655 | P80: -2.350765501 | Q80: 5.526098443
B81: 73 | C81: 2014 | D81: 2014-06-18 | E81: =VLOOKUP(D81, data!$D$5:$E$6326,2, FALSE) -> 83.5 | F81: =VLOOKUP(D81, data!$G$5:$H$6326,2, FALSE) -> 71.5 | H81: 0.4333333333 | I81: 0.1877777778 | J81: 80.5 | K81: 71 | L81: 0 | M81: 0 | O81: 79.21234052 | P81: 4.287659478 | Q81: 18.3840238
B82: 74 | C82: 2014 | D82: 2014-06-17 | E82: =VLOOKUP(D82, data!$D$5:$E$6326,2, FALSE) -> 80.5 | F82: =VLOOKUP(D82, data!$G$5:$H$6326,2, FALSE) -> 84 | H82: 0.4666666667 | I82: 0.2177777778 | J82: 71 | K82: 70.5 | L82: 0 | M82: 0 | O82: 72.24898058 | P82: 8.25101942 | Q82: 68.07932146
B83: 75 | C83: 2014 | D83: 2014-06-16 | E83: =VLOOKUP(D83, data!$D$5:$E$6326,2, FALSE) -> 71 | F83: =VLOOKUP(D83, data!$G$5:$H$6326,2, FALSE) -> 77.5 | H83: 0.5 | I83: 0.25 | J83: 70.5 | K83: 68.5 | L83: 0 | M83: 0 | O83: 72.07573898 | P83: -1.075738979 | Q83: 1.157214351
B84: 76 | C84: 2014 | D84: 2014-06-15 | E84: =VLOOKUP(D84, data!$D$5:$E$6326,2, FALSE) -> 70.5 | F84: =VLOOKUP(D84, data!$G$5:$H$6326,2, FALSE) -> 72 | H84: 0.5333333333 | I84: 0.2844444444 | J84: 68.5 | K84: 75 | L84: 0 | M84: 0 | O84: 69.2914124 | P84: 1.208587597 | Q84: 1.46068398
B85: 77 | C85: 2014 | D85: 2014-06-14 | E85: =VLOOKUP(D85, data!$D$5:$E$6326,2, FALSE) -> 68.5 | F85: =VLOOKUP(D85, data!$G$5:$H$6326,2, FALSE) -> 65.5 | H85: 0.5666666667 | I85: 0.3211111111 | J85: 75 | K85: 67 | L85: 0 | M85: 0 | O85: 75.26186882 | P85: -6.761868818 | Q85: 45.72286991
B86: 78 | C86: 2014 | D86: 2014-06-13 | E86: =VLOOKUP(D86, data!$D$5:$E$6326,2, FALSE) -> 75 | F86: =VLOOKUP(D86, data!$G$5:$H$6326,2, FALSE) -> 65 | H86: 0.6 | I86: 0.36 | J86: 67 | K86: 67.5 | L86: 0 | M86: 0 | O86: 69.19794022 | P86: 5.802059783 | Q86: 33.66389773
B87: 79 | C87: 2014 | D87: 2014-06-12 | E87: =VLOOKUP(D87, data!$D$5:$E$6326,2, FALSE) -> 67 | F87: =VLOOKUP(D87, data!$G$5:$H$6326,2, FALSE) -> 68.5 | H87: 0.6333333333 | I87: 0.4011111111 | J87: 67.5 | K87: 71.5 | L87: 0 | M87: 0 | O87: 68.66665716 | P87: -1.66665716 | Q87: 2.777746089
B88: 80 | C88: 2014 | D88: 2014-06-11 | E88: =VLOOKUP(D88, data!$D$5:$E$6326,2, FALSE) -> 67.5 | F88: =VLOOKUP(D88, data!$G$5:$H$6326,2, FALSE) -> 62 | H88: 0.6666666667 | I88: 0.4444444444 | J88: 71.5 | K88: 67.5 | L88: 0 | M88: 0 | O88: 72.10226129 | P88: -4.602261291 | Q88: 21.18080899
B89: 81 | C89: 2014 | D89: 2014-06-10 | E89: =VLOOKUP(D89, data!$D$5:$E$6326,2, FALSE) -> 71.5 | F89: =VLOOKUP(D89, data!$G$5:$H$6326,2, FALSE) -> 61 | H89: 0.7 | I89: 0.49 | J89: 67.5 | K89: 74 | L89: 0 | M89: 0 | O89: 67.85711515 | P89: 3.642884846 | Q89: 13.27061
B90: 82 | C90: 2014 | D90: 2014-06-09 | E90: =VLOOKUP(D90, data!$D$5:$E$6326,2, FALSE) -> 67.5 | F90: =VLOOKUP(D90, data!$G$5:$H$6326,2, FALSE) -> 66.5 | H90: 0.7333333333 | I90: 0.5377777778 | J90: 74 | K90: 73.5 | L90: 0 | M90: 0 | O90: 72.47393321 | P90: -4.973933207 | Q90: 24.74001155
B91: 83 | C91: 2014 | D91: 2014-06-08 | E91: =VLOOKUP(D91, data!$D$5:$E$6326,2, FALSE) -> 74 | F91: =VLOOKUP(D91, data!$G$5:$H$6326,2, FALSE) -> 63 | H91: 0.7666666667 | I91: 0.5877777778 | J91: 73.5 | K91: 70 | L91: 0 | M91: 0 | O91: 72.55147331 | P91: 1.448526688 | Q91: 2.098229565
B92: 84 | C92: 2014 | D92: 2014-06-07 | E92: =VLOOKUP(D92, data!$D$5:$E$6326,2, FALSE) -> 73.5 | F92: =VLOOKUP(D92, data!$G$5:$H$6326,2, FALSE) -> 70.5 | H92: 0.8 | I92: 0.64 | J92: 70 | K92: 70 | L92: 0 | M92: 0 | O92: 69.82566277 | P92: 3.674337229 | Q92: 13.50075407
B93: 85 | C93: 2014 | D93: 2014-06-06 | E93: =VLOOKUP(D93, data!$D$5:$E$6326,2, FALSE) -> 70 | F93: =VLOOKUP(D93, data!$G$5:$H$6326,2, FALSE) -> 65 | H93: 0.8333333333 | I93: 0.6944444444 | J93: 70 | K93: 74.5 | L93: 0 | M93: 0 | O93: 68.82914397 | P93: 1.170856031 | Q93: 1.370903846
B94: 86 | C94: 2014 | D94: 2014-06-05 | E94: =VLOOKUP(D94, data!$D$5:$E$6326,2, FALSE) -> 70 | F94: =VLOOKUP(D94, data!$G$5:$H$6326,2, FALSE) -> 64 | H94: 0.8666666667 | I94: 0.7511111111 | J94: 74.5 | K94: 76 | L94: 0 | M94: 0 | O94: 71.62934341 | P94: -1.629343408 | Q94: 2.654759941
B95: 87 | C95: 2014 | D95: 2014-06-04 | E95: =VLOOKUP(D95, data!$D$5:$E$6326,2, FALSE) -> 74.5 | F95: =VLOOKUP(D95, data!$G$5:$H$6326,2, FALSE) -> 62.5 | H95: 0.9 | I95: 0.81 | J95: 76 | K95: 68.5 | L95: 0 | M95: 0 | O95: 73.86378765 | P95: 0.6362123491 | Q95: 0.4047661532
B96: 88 | C96: 2014 | D96: 2014-06-03 | E96: =VLOOKUP(D96, data!$D$5:$E$6326,2, FALSE) -> 76 | F96: =VLOOKUP(D96, data!$G$5:$H$6326,2, FALSE) -> 73.5 | H96: 0.9333333333 | I96: 0.8711111111 | J96: 68.5 | K96: 65.5 | L96: 0 | M96: 0 | O96: 68.76665821 | P96: 7.233341791 | Q96: 52.32123347
B97: 89 | C97: 2014 | D97: 2014-06-02 | E97: =VLOOKUP(D97, data!$D$5:$E$6326,2, FALSE) -> 68.5 | F97: =VLOOKUP(D97, data!$G$5:$H$6326,2, FALSE) -> 75.5 | H97: 0.9666666667 | I97: 0.9344444444 | J97: =E98 -> 65.5 | K97: 0 | L97: 0 | M97: 1 | O97: 67.08046309 | P97: 1.419536906 | Q97: 2.015085026
B98: 90 | C98: 2014 | D98: 2014-06-01 | E98: =VLOOKUP(D98, data!$D$5:$E$6326,2, FALSE) -> 65.5 | F98: =VLOOKUP(D98, data!$G$5:$H$6326,2, FALSE) -> 76.5 | H98: 1 | I98: 1 | J98: 0 | K98: 0 | L98: 1 | M98: 0 | O98: 70.05352941 | P98: -4.553529412 | Q98: 20.7346301
B99: 91 | C99: 2013 | D99: =DATE(C99, 6, 30) -> 2013-06-30 | E99: =VLOOKUP(D99, data!$D$5:$E$6326,2, FALSE) -> 79.5 | F99: =VLOOKUP(D99, data!$G$5:$H$6326,2, FALSE) -> 69.53 | H99: =H69 -> 0.03333333333 | I99: =H99*H99 -> 0.001111111111 | J99: =E100 -> 77.5 | K99: =E101 -> 81.5 | L99: 0 | M99: 0 | O99: 76.98456006 | P99: 2.515439942 | Q99: 6.327438103
B100: 92 | C100: 2013 | D100: =D99-1 -> 2013-06-29 | E100: =VLOOKUP(D100, data!$D$5:$E$6326,2, FALSE) -> 77.5 | F100: =VLOOKUP(D100, data!$G$5:$H$6326,2, FALSE) -> 68 | H100: 0.06666666667 | I100: =H100*H100 -> 0.004444444444 | J100: =E101 -> 81.5 | K100: =E102 -> 80.5 | L100: 0 | M100: 0 | O100: 79.92303321 | P100: -2.423033213 | Q100: 5.87108995
B101: 93 | C101: 2013 | D101: 2013-06-28 | E101: =VLOOKUP(D101, data!$D$5:$E$6326,2, FALSE) -> 81.5 | F101: =VLOOKUP(D101, data!$G$5:$H$6326,2, FALSE) -> 75 | H101: 0.1 | I101: 0.01 | J101: 80.5 | K101: 81 | L101: 0 | M101: 0 | O101: 78.96643253 | P101: 2.533567474 | Q101: 6.418964145
B102: 94 | C102: 2013 | D102: 2013-06-27 | E102: =VLOOKUP(D102, data!$D$5:$E$6326,2, FALSE) -> 80.5 | F102: =VLOOKUP(D102, data!$G$5:$H$6326,2, FALSE) -> 77 | H102: 0.1333333333 | I102: 0.01777777778 | J102: 81 | K102: 82 | L102: 0 | M102: 0 | O102: 79.00541565 | P102: 1.494584346 | Q102: 2.233782368
B103: 95 | C103: =C73-1 -> 2013 | D103: 2013-06-26 | E103: =VLOOKUP(D103, data!$D$5:$E$6326,2, FALSE) -> 81 | F103: =VLOOKUP(D103, data!$G$5:$H$6326,2, FALSE) -> 73 | H103: 0.1666666667 | I103: 0.02777777778 | J103: 82 | K103: 84.5 | L103: 0 | M103: 0 | O103: 79.13610573 | P103: 1.863894274 | Q103: 3.474101865
B104: 96 | C104: 2013 | D104: 2013-06-25 | E104: =VLOOKUP(D104, data!$D$5:$E$6326,2, FALSE) -> 82 | F104: =VLOOKUP(D104, data!$G$5:$H$6326,2, FALSE) -> 76 | H104: =H74 -> 0.2 | I104: 0.04 | J104: 84.5 | K104: 78 | L104: 0 | M104: 0 | O104: 81.96295215 | P104: 0.03704784589 | Q104: 0.001372542885
B105: 97 | C105: 2013 | D105: 2013-06-24 | E105: =VLOOKUP(D105, data!$D$5:$E$6326,2, FALSE) -> 84.5 | F105: =VLOOKUP(D105, data!$G$5:$H$6326,2, FALSE) -> 78 | H105: 0.2333333333 | I105: 0.05444444444 | J105: 78 | K105: 73 | L105: 0 | M105: 0 | O105: 77.99524781 | P105: 6.504752195 | Q105: 42.31180112
B106: 98 | C106: 2013 | D106: 2013-06-23 | E106: =VLOOKUP(D106, data!$D$5:$E$6326,2, FALSE) -> 78 | F106: =VLOOKUP(D106, data!$G$5:$H$6326,2, FALSE) -> 76.55 | H106: 0.2666666667 | I106: 0.07111111111 | J106: 73 | K106: 72 | L106: 0 | M106: 0 | O106: 74.39660054 | P106: 3.603399456 | Q106: 12.98448764
B107: 99 | C107: 2013 | D107: 2013-06-22 | E107: =VLOOKUP(D107, data!$D$5:$E$6326,2, FALSE) -> 73 | F107: =VLOOKUP(D107, data!$G$5:$H$6326,2, FALSE) -> 73.5 | H107: 0.3 | I107: 0.09 | J107: 72 | K107: 69.55 | L107: 0 | M107: 0 | O107: 73.95477507 | P107: -0.9547750731 | Q107: 0.9115954402
B108: 100 | C108: 2013 | D108: 2013-06-21 | E108: =VLOOKUP(D108, data!$D$5:$E$6326,2, FALSE) -> 72 | F108: =VLOOKUP(D108, data!$G$5:$H$6326,2, FALSE) -> 75 | H108: 0.3333333333 | I108: 0.1111111111 | J108: 69.55 | K108: 69 | L108: 0 | M108: 0 | O108: 72.11955849 | P108: -0.1195584858 | Q108: 0.01429423153
B109: 101 | C109: 2013 | D109: 2013-06-20 | E109: =VLOOKUP(D109, data!$D$5:$E$6326,2, FALSE) -> 69.55 | F109: =VLOOKUP(D109, data!$G$5:$H$6326,2, FALSE) -> 71 | H109: 0.3666666667 | I109: 0.1344444444 | J109: 69 | K109: 74 | L109: 0 | M109: 0 | O109: 70.66588484 | P109: -1.115884845 | Q109: 1.245198987
B110: 102 | C110: 2013 | D110: 2013-06-19 | E110: =VLOOKUP(D110, data!$D$5:$E$6326,2, FALSE) -> 69 | F110: =VLOOKUP(D110, data!$G$5:$H$6326,2, FALSE) -> 64 | H110: 0.4 | I110: 0.16 | J110: 74 | K110: 77 | L110: 0 | M110: 0 | O110: 73.59103451 | P110: -4.591034505 | Q110: 21.07759783
B111: 103 | C111: 2013 | D111: 2013-06-18 | E111: =VLOOKUP(D111, data!$D$5:$E$6326,2, FALSE) -> 74 | F111: =VLOOKUP(D111, data!$G$5:$H$6326,2, FALSE) -> 63.5 | H111: 0.4333333333 | I111: 0.1877777778 | J111: 77 | K111: 72.5 | L111: 0 | M111: 0 | O111: 76.40678675 | P111: -2.40678675 | Q111: 5.792622458
B112: 104 | C112: 2013 | D112: 2013-06-17 | E112: =VLOOKUP(D112, data!$D$5:$E$6326,2, FALSE) -> 77 | F112: =VLOOKUP(D112, data!$G$5:$H$6326,2, FALSE) -> 73.5 | H112: 0.4666666667 | I112: 0.2177777778 | J112: 72.5 | K112: 70.5 | L112: 0 | M112: 0 | O112: 73.33628443 | P112: 3.663715569 | Q112: 13.42281177
B113: 105 | C113: 2013 | D113: 2013-06-16 | E113: =VLOOKUP(D113, data!$D$5:$E$6326,2, FALSE) -> 72.5 | F113: =VLOOKUP(D113, data!$G$5:$H$6326,2, FALSE) -> 77.55 | H113: 0.5 | I113: 0.25 | J113: 70.5 | K113: 63.5 | L113: 0 | M113: 0 | O113: 72.97077716 | P113: -0.4707771589 | Q113: 0.2216311333
B114: 106 | C114: 2013 | D114: 2013-06-15 | E114: =VLOOKUP(D114, data!$D$5:$E$6326,2, FALSE) -> 70.5 | F114: =VLOOKUP(D114, data!$G$5:$H$6326,2, FALSE) -> 69 | H114: 0.5333333333 | I114: 0.2844444444 | J114: 63.5 | K114: 62 | L114: 0 | M114: 0 | O114: 67.9941655 | P114: 2.505834499 | Q114: 6.279206537
B115: 107 | C115: 2013 | D115: 2013-06-14 | E115: =VLOOKUP(D115, data!$D$5:$E$6326,2, FALSE) -> 63.5 | F115: =VLOOKUP(D115, data!$G$5:$H$6326,2, FALSE) -> 67 | H115: 0.5666666667 | I115: 0.3211111111 | J115: 62 | K115: 73.5 | L115: 0 | M115: 0 | O115: 64.67501914 | P115: -1.175019143 | Q115: 1.380669987
B116: 108 | C116: 2013 | D116: 2013-06-13 | E116: =VLOOKUP(D116, data!$D$5:$E$6326,2, FALSE) -> 62 | F116: =VLOOKUP(D116, data!$G$5:$H$6326,2, FALSE) -> 65.5 | H116: 0.6 | I116: 0.36 | J116: 73.5 | K116: 74.5 | L116: 0 | M116: 0 | O116: 72.65653679 | P116: -10.65653679 | Q116: 113.5617763
B117: 109 | C117: 2013 | D117: 2013-06-12 | E117: =VLOOKUP(D117, data!$D$5:$E$6326,2, FALSE) -> 73.5 | F117: =VLOOKUP(D117, data!$G$5:$H$6326,2, FALSE) -> 74.5 | H117: 0.6333333333 | I117: 0.4011111111 | J117: 74.5 | K117: 68.5 | L117: 0 | M117: 0 | O117: 74.2777647 | P117: -0.7777647049 | Q117: 0.6049179362
B118: 110 | C118: 2013 | D118: 2013-06-11 | E118: =VLOOKUP(D118, data!$D$5:$E$6326,2, FALSE) -> 74.5 | F118: =VLOOKUP(D118, data!$G$5:$H$6326,2, FALSE) -> 71.5 | H118: 0.6666666667 | I118: 0.4444444444 | J118: 68.5 | K118: 72.5 | L118: 0 | M118: 0 | O118: 69.03261541 | P118: 5.467384591 | Q118: 29.89229426
B119: 111 | C119: 2013 | D119: 2013-06-10 | E119: =VLOOKUP(D119, data!$D$5:$E$6326,2, FALSE) -> 68.5 | F119: =VLOOKUP(D119, data!$G$5:$H$6326,2, FALSE) -> 68 | H119: 0.7 | I119: 0.49 | J119: 72.5 | K119: 68.5 | L119: 0 | M119: 0 | O119: 72.46600332 | P119: -3.966003322 | Q119: 15.72918235
B120: 112 | C120: 2013 | D120: 2013-06-09 | E120: =VLOOKUP(D120, data!$D$5:$E$6326,2, FALSE) -> 72.5 | F120: =VLOOKUP(D120, data!$G$5:$H$6326,2, FALSE) -> 67.5 | H120: 0.7333333333 | I120: 0.5377777778 | J120: 68.5 | K120: 62.5 | L120: 0 | M120: 0 | O120: 70.45623642 | P120: 2.043763584 | Q120: 4.176969585
B121: 113 | C121: 2013 | D121: 2013-06-08 | E121: =VLOOKUP(D121, data!$D$5:$E$6326,2, FALSE) -> 68.5 | F121: =VLOOKUP(D121, data!$G$5:$H$6326,2, FALSE) -> 61.5 | H121: 0.7666666667 | I121: 0.5877777778 | J121: 62.5 | K121: 65 | L121: 0 | M121: 0 | O121: 65.47294992 | P121: 3.027050081 | Q121: 9.16303219
B122: 114 | C122: 2013 | D122: 2013-06-07 | E122: =VLOOKUP(D122, data!$D$5:$E$6326,2, FALSE) -> 62.5 | F122: =VLOOKUP(D122, data!$G$5:$H$6326,2, FALSE) -> 60 | H122: 0.8 | I122: 0.64 | J122: 65 | K122: 63 | L122: 0 | M122: 0 | O122: 67.45437005 | P122: -4.954370054 | Q122: 24.54578263
B123: 115 | C123: 2013 | D123: 2013-06-06 | E123: =VLOOKUP(D123, data!$D$5:$E$6326,2, FALSE) -> 65 | F123: =VLOOKUP(D123, data!$G$5:$H$6326,2, FALSE) -> 58.05 | H123: 0.8333333333 | I123: 0.6944444444 | J123: 63 | K123: 67.5 | L123: 0 | M123: 0 | O123: 65.00811278 | P123: -0.008112783318 | Q123: 6.581725316e-05
B124: 116 | C124: 2013 | D124: 2013-06-05 | E124: =VLOOKUP(D124, data!$D$5:$E$6326,2, FALSE) -> 63 | F124: =VLOOKUP(D124, data!$G$5:$H$6326,2, FALSE) -> 63.5 | H124: 0.8666666667 | I124: 0.7511111111 | J124: 67.5 | K124: 73 | L124: 0 | M124: 0 | O124: 67.09228168 | P124: -4.092281679 | Q124: 16.74676934
B125: 117 | C125: 2013 | D125: 2013-06-04 | E125: =VLOOKUP(D125, data!$D$5:$E$6326,2, FALSE) -> 67.5 | F125: =VLOOKUP(D125, data!$G$5:$H$6326,2, FALSE) -> 61 | H125: 0.9 | I125: 0.81 | J125: 73 | K125: 80 | L125: 0 | M125: 0 | O125: 69.63059214 | P125: -2.130592136 | Q125: 4.539422849
B126: 118 | C126: 2013 | D126: 2013-06-03 | E126: =VLOOKUP(D126, data!$D$5:$E$6326,2, FALSE) -> 73 | F126: =VLOOKUP(D126, data!$G$5:$H$6326,2, FALSE) -> 55.5 | H126: 0.9333333333 | I126: 0.8711111111 | J126: 80 | K126: 82.5 | L126: 0 | M126: 0 | O126: 74.05952459 | P126: -1.059524587 | Q126: 1.12259235
B127: 119 | C127: 2013 | D127: 2013-06-02 | E127: =VLOOKUP(D127, data!$D$5:$E$6326,2, FALSE) -> 80 | F127: =VLOOKUP(D127, data!$G$5:$H$6326,2, FALSE) -> 53 | H127: 0.9666666667 | I127: 0.9344444444 | J127: =E128 -> 82.5 | K127: 0 | L127: 0 | M127: 1 | O127: 79.40324007 | P127: 0.5967599296 | Q127: 0.3561224136
B128: 120 | C128: 2013 | D128: 2013-06-01 | E128: =VLOOKUP(D128, data!$D$5:$E$6326,2, FALSE) -> 82.5 | F128: =VLOOKUP(D128, data!$G$5:$H$6326,2, FALSE) -> 69.5 | H128: 1 | I128: 1 | J128: 0 | K128: 0 | L128: 1 | M128: 0 | O128: 70.05352941 | P128: 12.44647059 | Q128: 154.9146301
B129: 121 | C129: 2012 | D129: =DATE(C129, 6, 30) -> 2012-06-30 | E129: =VLOOKUP(D129, data!$D$5:$E$6326,2, FALSE) -> 87 | F129: =VLOOKUP(D129, data!$G$5:$H$6326,2, FALSE) -> 80.5 | H129: =H99 -> 0.03333333333 | I129: =H129*H129 -> 0.001111111111 | J129: =E130 -> 84.5 | K129: =E131 -> 79 | L129: 0 | M129: 0 | O129: 82.50616378 | P129: 4.493836215 | Q129: 20.19456393
B130: 122 | C130: 2012 | D130: =D129-1 -> 2012-06-29 | E130: =VLOOKUP(D130, data!$D$5:$E$6326,2, FALSE) -> 84.5 | F130: =VLOOKUP(D130, data!$G$5:$H$6326,2, FALSE) -> 78.5 | H130: =H100 -> 0.06666666667 | I130: 0.004444444444 | J130: =E131 -> 79 | K130: =E132 -> 74 | L130: 0 | M130: 0 | O130: 79.27440976 | P130: 5.225590238 | Q130: 27.30679334
B131: 123 | C131: 2012 | D131: 2012-06-28 | E131: =VLOOKUP(D131, data!$D$5:$E$6326,2, FALSE) -> 79 | F131: =VLOOKUP(D131, data!$G$5:$H$6326,2, FALSE) -> 88 | H131: 0.1 | I131: 0.01 | J131: 74 | K131: 68 | L131: 0 | M131: 0 | O131: 76.58188177 | P131: 2.418118227 | Q131: 5.847295758
B132: 124 | C132: 2012 | D132: 2012-06-27 | E132: =VLOOKUP(D132, data!$D$5:$E$6326,2, FALSE) -> 74 | F132: =VLOOKUP(D132, data!$G$5:$H$6326,2, FALSE) -> 74.5 | H132: 0.1333333333 | I132: 0.01777777778 | J132: 68 | K132: 69 | L132: 0 | M132: 0 | O132: 71.90921488 | P132: 2.090785119 | Q132: 4.371382415
B133: 125 | C133: 2012 | D133: 2012-06-26 | E133: =VLOOKUP(D133, data!$D$5:$E$6326,2, FALSE) -> 68 | F133: =VLOOKUP(D133, data!$G$5:$H$6326,2, FALSE) -> 69.5 | H133: 0.1666666667 | I133: 0.02777777778 | J133: 69 | K133: 76.5 | L133: 0 | M133: 0 | O133: 71.14486677 | P133: -3.144866773 | Q133: 9.890187021
B134: 126 | C134: 2012 | D134: 2012-06-25 | E134: =VLOOKUP(D134, data!$D$5:$E$6326,2, FALSE) -> 69 | F134: =VLOOKUP(D134, data!$G$5:$H$6326,2, FALSE) -> 68 | H134: 0.2 | I134: 0.04 | J134: 76.5 | K134: 78.5 | L134: 0 | M134: 0 | O134: 76.07449447 | P134: -7.074494465 | Q134: 50.04847194
B135: 127 | C135: 2012 | D135: 2012-06-24 | E135: =VLOOKUP(D135, data!$D$5:$E$6326,2, FALSE) -> 76.5 | F135: =VLOOKUP(D135, data!$G$5:$H$6326,2, FALSE) -> 79.5 | H135: 0.2333333333 | I135: 0.05444444444 | J135: 78.5 | K135: 83.5 | L135: 0 | M135: 0 | O135: 76.47810224 | P135: 0.02189775562 | Q135: 0.0004795117012
B136: 128 | C136: 2012 | D136: 2012-06-23 | E136: =VLOOKUP(D136, data!$D$5:$E$6326,2, FALSE) -> 78.5 | F136: =VLOOKUP(D136, data!$G$5:$H$6326,2, FALSE) -> 74.5 | H136: 0.2666666667 | I136: 0.07111111111 | J136: 83.5 | K136: 89 | L136: 0 | M136: 0 | O136: 78.96459769 | P136: -0.4645976889 | Q136: 0.2158510125
B137: 129 | C137: 2012 | D137: 2012-06-22 | E137: =VLOOKUP(D137, data!$D$5:$E$6326,2, FALSE) -> 83.5 | F137: =VLOOKUP(D137, data!$G$5:$H$6326,2, FALSE) -> 75.5 | H137: 0.3 | I137: 0.09 | J137: 89 | K137: 84 | L137: 0 | M137: 0 | O137: 83.69089171 | P137: -0.1908917094 | Q137: 0.03643964472
B138: 130 | C138: 2012 | D138: 2012-06-21 | E138: =VLOOKUP(D138, data!$D$5:$E$6326,2, FALSE) -> 89 | F138: =VLOOKUP(D138, data!$G$5:$H$6326,2, FALSE) -> 77.5 | H138: 0.3333333333 | I138: 0.1111111111 | J138: 84 | K138: 72.5 | L138: 0 | M138: 0 | O138: =$O$7+SUMPRODUCT(H$7:M$7, H138:M138) -> 81.96739219 | P138: =E138-O138 -> 7.03260781 | Q138: =P138*P138 -> 49.45757262
B139: =B138+1 -> 131 | C139: 2012 | D139: 2012-06-20 | E139: =VLOOKUP(D139, data!$D$5:$E$6326,2, FALSE) -> 84 | F139: =VLOOKUP(D139, data!$G$5:$H$6326,2, FALSE) -> 86 | H139: 0.3666666667 | I139: 0.1344444444 | J139: 72.5 | K139: 64.5 | L139: 0 | M139: 0 | O139: 74.90349971 | P139: 9.096500295 | Q139: 82.74631762
B140: 132 | C140: 2012 | D140: 2012-06-19 | E140: =VLOOKUP(D140, data!$D$5:$E$6326,2, FALSE) -> 72.5 | F140: =VLOOKUP(D140, data!$G$5:$H$6326,2, FALSE) -> 86.5 | H140: 0.4 | I140: 0.16 | J140: 64.5 | K140: 65.5 | L140: 0 | M140: 0 | O140: 68.7633646 | P140: 3.736635403 | Q140: 13.96244413
B141: 133 | C141: 2012 | D141: 2012-06-18 | E141: =VLOOKUP(D141, data!$D$5:$E$6326,2, FALSE) -> 64.5 | F141: =VLOOKUP(D141, data!$G$5:$H$6326,2, FALSE) -> 81.5 | H141: 0.4333333333 | I141: 0.1877777778 | J141: 65.5 | K141: 70.5 | L141: 0 | M141: 0 | O141: 68.42880583 | P141: -3.928805832 | Q141: 15.43551526
B142: 134 | C142: 2012 | D142: 2012-06-17 | E142: =VLOOKUP(D142, data!$D$5:$E$6326,2, FALSE) -> 65.5 | F142: =VLOOKUP(D142, data!$G$5:$H$6326,2, FALSE) -> 78 | H142: 0.4666666667 | I142: 0.2177777778 | J142: 70.5 | K142: 70 | L142: 0 | M142: 0 | O142: 71.97604978 | P142: -6.476049781 | Q142: 41.93922077
B143: 135 | C143: 2012 | D143: 2012-06-16 | E143: =VLOOKUP(D143, data!$D$5:$E$6326,2, FALSE) -> 70.5 | F143: =VLOOKUP(D143, data!$G$5:$H$6326,2, FALSE) -> 81.5 | H143: 0.5 | I143: 0.25 | J143: 70 | K143: 70.5 | L143: 0 | M143: 0 | O143: 71.35528909 | P143: -0.8552890902 | Q143: 0.7315194278
B144: 136 | C144: 2012 | D144: 2012-06-15 | E144: =VLOOKUP(D144, data!$D$5:$E$6326,2, FALSE) -> 70 | F144: =VLOOKUP(D144, data!$G$5:$H$6326,2, FALSE) -> 76.5 | H144: 0.5333333333 | I144: 0.2844444444 | J144: 70.5 | K144: 69 | L144: 0 | M144: 0 | O144: 71.81519669 | P144: -1.815196686 | Q144: 3.29493901
B145: 137 | C145: 2012 | D145: 2012-06-14 | E145: =VLOOKUP(D145, data!$D$5:$E$6326,2, FALSE) -> 70.5 | F145: =VLOOKUP(D145, data!$G$5:$H$6326,2, FALSE) -> 71.5 | H145: 0.5666666667 | I145: 0.3211111111 | J145: 69 | K145: 70 | L145: 0 | M145: 0 | O145: 70.37563051 | P145: 0.1243694936 | Q145: 0.01546777094
B146: 138 | C146: 2012 | D146: 2012-06-13 | E146: =VLOOKUP(D146, data!$D$5:$E$6326,2, FALSE) -> 69 | F146: =VLOOKUP(D146, data!$G$5:$H$6326,2, FALSE) -> 63 | H146: 0.6 | I146: 0.36 | J146: 70 | K146: 70.5 | L146: 0 | M146: 0 | O146: 70.83552501 | P146: -1.835525011 | Q146: 3.369152065
B147: 139 | C147: 2012 | D147: 2012-06-12 | E147: =VLOOKUP(D147, data!$D$5:$E$6326,2, FALSE) -> 70 | F147: =VLOOKUP(D147, data!$G$5:$H$6326,2, FALSE) -> 68.5 | H147: 0.6333333333 | I147: 0.4011111111 | J147: 70.5 | K147: 77 | L147: 0 | M147: 0 | O147: 69.85672286 | P147: 0.1432771362 | Q147: 0.02052833777
B148: 140 | C148: 2012 | D148: 2012-06-11 | E148: =VLOOKUP(D148, data!$D$5:$E$6326,2, FALSE) -> 70.5 | F148: =VLOOKUP(D148, data!$G$5:$H$6326,2, FALSE) -> 80 | H148: 0.6666666667 | I148: 0.4444444444 | J148: 77 | K148: 73 | L148: 0 | M148: 0 | O148: 75.10450008 | P148: -4.604500079 | Q148: 21.20142098
B149: 141 | C149: 2012 | D149: 2012-06-10 | E149: =VLOOKUP(D149, data!$D$5:$E$6326,2, FALSE) -> 77 | F149: =VLOOKUP(D149, data!$G$5:$H$6326,2, FALSE) -> 80 | H149: 0.7 | I149: 0.49 | J149: 73 | K149: 72 | L149: 0 | M149: 0 | O149: 72.20191121 | P149: 4.798088787 | Q149: 23.02165601
B150: 142 | C150: 2012 | D150: 2012-06-09 | E150: =VLOOKUP(D150, data!$D$5:$E$6326,2, FALSE) -> 73 | F150: =VLOOKUP(D150, data!$G$5:$H$6326,2, FALSE) -> 77.5 | H150: 0.7333333333 | I150: 0.5377777778 | J150: 72 | K150: 69.5 | L150: 0 | M150: 0 | O150: 71.74022528 | P150: 1.259774717 | Q150: 1.587032337
B151: 143 | C151: 2012 | D151: 2012-06-08 | E151: =VLOOKUP(D151, data!$D$5:$E$6326,2, FALSE) -> 72 | F151: =VLOOKUP(D151, data!$G$5:$H$6326,2, FALSE) -> 71 | H151: 0.7666666667 | I151: 0.5877777778 | J151: 69.5 | K151: 63 | L151: 0 | M151: 0 | O151: 70.90504983 | P151: 1.094950172 | Q151: 1.198915878
B152: 144 | C152: 2012 | D152: 2012-06-07 | E152: =VLOOKUP(D152, data!$D$5:$E$6326,2, FALSE) -> 69.5 | F152: =VLOOKUP(D152, data!$G$5:$H$6326,2, FALSE) -> 68 | H152: 0.8 | I152: 0.64 | J152: 63 | K152: 58.5 | L152: 0 | M152: 0 | O152: 66.81016595 | P152: 2.689834052 | Q152: 7.235207229
B153: 145 | C153: 2012 | D153: 2012-06-06 | E153: =VLOOKUP(D153, data!$D$5:$E$6326,2, FALSE) -> 63 | F153: =VLOOKUP(D153, data!$G$5:$H$6326,2, FALSE) -> 64 | H153: 0.8333333333 | I153: 0.6944444444 | J153: 58.5 | K153: 59 | L153: 0 | M153: 0 | O153: 63.26776614 | P153: -0.2677661365 | Q153: 0.07169870386
B154: 146 | C154: 2012 | D154: 2012-06-05 | E154: =VLOOKUP(D154, data!$D$5:$E$6326,2, FALSE) -> 58.5 | F154: =VLOOKUP(D154, data!$G$5:$H$6326,2, FALSE) -> 63.5 | H154: 0.8666666667 | I154: 0.7511111111 | J154: 59 | K154: 67 | L154: 0 | M154: 0 | O154: 62.00493901 | P154: -3.504939007 | Q154: 12.28459744
B155: 147 | C155: 2012 | D155: 2012-06-04 | E155: =VLOOKUP(D155, data!$D$5:$E$6326,2, FALSE) -> 59 | F155: =VLOOKUP(D155, data!$G$5:$H$6326,2, FALSE) -> 67 | H155: 0.9 | I155: 0.81 | J155: 67 | K155: 69.5 | L155: 0 | M155: 0 | O155: 67.16095691 | P155: -8.16095691 | Q155: 66.60121769
B156: 148 | C156: 2012 | D156: 2012-06-03 | E156: =VLOOKUP(D156, data!$D$5:$E$6326,2, FALSE) -> 67 | F156: =VLOOKUP(D156, data!$G$5:$H$6326,2, FALSE) -> 69 | H156: 0.9333333333 | I156: 0.8711111111 | J156: 69.5 | K156: 67 | L156: 0 | M156: 0 | O156: 69.22301599 | P156: -2.223015988 | Q156: 4.941800085
B157: 149 | C157: 2012 | D157: 2012-06-02 | E157: =VLOOKUP(D157, data!$D$5:$E$6326,2, FALSE) -> 69.5 | F157: =VLOOKUP(D157, data!$G$5:$H$6326,2, FALSE) -> 62.5 | H157: 0.9666666667 | I157: 0.9344444444 | J157: =E158 -> 67 | K157: 0 | L157: 0 | M157: 1 | O157: 68.16776695 | P157: 1.332233055 | Q157: 1.774844912
B158: 150 | C158: 2012 | D158: 2012-06-01 | E158: =VLOOKUP(D158, data!$D$5:$E$6326,2, FALSE) -> 67 | F158: =VLOOKUP(D158, data!$G$5:$H$6326,2, FALSE) -> 57 | H158: 1 | I158: 1 | J158: 0 | K158: 0 | L158: 1 | M158: 0 | O158: 70.05352941 | P158: -3.053529412 | Q158: 9.324041869
B159: 151 | C159: 2011 | D159: =DATE(C159, 6, 30) -> 2011-06-30 | E159: =VLOOKUP(D159, data!$D$5:$E$6326,2, FALSE) -> 76 | F159: =VLOOKUP(D159, data!$G$5:$H$6326,2, FALSE) -> 74 | H159: =H129 -> 0.03333333333 | I159: =H159*H159 -> 0.001111111111 | J159: =E160 -> 79.5 | K159: =E161 -> 79 | L159: 0 | M159: 0 | O159: 78.88181762 | P159: -2.881817615 | Q159: 8.304872769
B160: 152 | C160: 2011 | D160: =D159-1 -> 2011-06-29 | E160: =VLOOKUP(D160, data!$D$5:$E$6326,2, FALSE) -> 79.5 | F160: =VLOOKUP(D160, data!$G$5:$H$6326,2, FALSE) -> 70 | H160: 0.06666666667 | I160: 0.004444444444 | J160: =E161 -> 79 | K160: =E162 -> 75.5 | L160: 0 | M160: 0 | O160: 79.00589831 | P160: 0.4941016921 | Q160: 0.2441364821
B161: 153 | C161: 2011 | D161: 2011-06-28 | E161: =VLOOKUP(D161, data!$D$5:$E$6326,2, FALSE) -> 79 | F161: =VLOOKUP(D161, data!$G$5:$H$6326,2, FALSE) -> 72 | H161: 0.1 | I161: 0.01 | J161: 75.5 | K161: 74.5 | L161: 0 | M161: 0 | O161: 76.50563599 | P161: 2.49436401 | Q161: 6.221851812
B162: 154 | C162: 2011 | D162: 2011-06-27 | E162: =VLOOKUP(D162, data!$D$5:$E$6326,2, FALSE) -> 75.5 | F162: =VLOOKUP(D162, data!$G$5:$H$6326,2, FALSE) -> 73 | H162: 0.1333333333 | I162: 0.01777777778 | J162: 74.5 | K162: 76 | L162: 0 | M162: 0 | O162: 75.36781145 | P162: 0.1321885507 | Q162: 0.01747381295
B163: 155 | C163: 2011 | D163: 2011-06-26 | E163: =VLOOKUP(D163, data!$D$5:$E$6326,2, FALSE) -> 74.5 | F163: =VLOOKUP(D163, data!$G$5:$H$6326,2, FALSE) -> 69 | H163: 0.1666666667 | I163: 0.02777777778 | J163: 76 | K163: 70 | L163: 0 | M163: 0 | O163: 77.38250104 | P163: -2.882501044 | Q163: 8.308812269
B164: 156 | C164: 2011 | D164: 2011-06-25 | E164: =VLOOKUP(D164, data!$D$5:$E$6326,2, FALSE) -> 76 | F164: =VLOOKUP(D164, data!$G$5:$H$6326,2, FALSE) -> 68.5 | H164: 0.2 | I164: =H164*H164 -> 0.04 | J164: 70 | K164: 73 | L164: 0 | M164: 0 | O164: 72.34738644 | P164: 3.652613557 | Q164: 13.3415858
B165: 157 | C165: 2011 | D165: 2011-06-24 | E165: =VLOOKUP(D165, data!$D$5:$E$6326,2, FALSE) -> 70 | F165: =VLOOKUP(D165, data!$G$5:$H$6326,2, FALSE) -> 64 | H165: 0.2333333333 | I165: 0.05444444444 | J165: 73 | K165: 76 | L165: 0 | M165: 0 | O165: 73.83387873 | P165: -3.833878728 | Q165: 14.6986261
B166: 158 | C166: 2011 | D166: 2011-06-23 | E166: =VLOOKUP(D166, data!$D$5:$E$6326,2, FALSE) -> 73 | F166: =VLOOKUP(D166, data!$G$5:$H$6326,2, FALSE) -> 66.5 | H166: 0.2666666667 | I166: 0.07111111111 | J166: 76 | K166: 78.53 | L166: 0 | M166: 0 | O166: 75.40228838 | P166: -2.402288383 | Q166: 5.770989476
B167: 159 | C167: =C137-1 -> 2011 | D167: 2011-06-22 | E167: =VLOOKUP(D167, data!$D$5:$E$6326,2, FALSE) -> 76 | F167: =VLOOKUP(D167, data!$G$5:$H$6326,2, FALSE) -> 68.5 | H167: 0.3 | I167: 0.09 | J167: 78.53 | K167: 74.5 | L167: 0 | M167: 0 | O167: 77.80208337 | P167: -1.802083372 | Q167: 3.247504481
B168: 160 | C168: 2011 | D168: 2011-06-21 | E168: =VLOOKUP(D168, data!$D$5:$E$6326,2, FALSE) -> 78.53 | F168: =VLOOKUP(D168, data!$G$5:$H$6326,2, FALSE) -> 77.5 | H168: 0.3333333333 | I168: 0.1111111111 | J168: 74.5 | K168: 78 | L168: 0 | M168: 0 | O168: 74.09659247 | P168: 4.43340753 | Q168: 19.65510233
B169: 161 | C169: 2011 | D169: 2011-06-20 | E169: =VLOOKUP(D169, data!$D$5:$E$6326,2, FALSE) -> 74.5 | F169: =VLOOKUP(D169, data!$G$5:$H$6326,2, FALSE) -> 72 | H169: 0.3666666667 | I169: 0.1344444444 | J169: 78 | K169: 76.5 | L169: 0 | M169: 0 | O169: 76.74218886 | P169: -2.24218886 | Q169: 5.027410884
B170: 162 | C170: 2011 | D170: 2011-06-19 | E170: =VLOOKUP(D170, data!$D$5:$E$6326,2, FALSE) -> 78 | F170: =VLOOKUP(D170, data!$G$5:$H$6326,2, FALSE) -> 72 | H170: 0.4 | I170: 0.16 | J170: 76.5 | K170: 73 | L170: 0 | M170: 0 | O170: 76.11923813 | P170: 1.880761866 | Q170: 3.537265197
B171: 163 | C171: 2011 | D171: 2011-06-18 | E171: =VLOOKUP(D171, data!$D$5:$E$6326,2, FALSE) -> 76.5 | F171: =VLOOKUP(D171, data!$G$5:$H$6326,2, FALSE) -> 72.5 | H171: 0.4333333333 | I171: 0.1877777778 | J171: 73 | K171: 75.5 | L171: 0 | M171: 0 | O171: 72.97028691 | P171: 3.529713094 | Q171: 12.45887452
B172: 164 | C172: 2011 | D172: 2011-06-17 | E172: =VLOOKUP(D172, data!$D$5:$E$6326,2, FALSE) -> 73 | F172: =VLOOKUP(D172, data!$G$5:$H$6326,2, FALSE) -> 71 | H172: 0.4666666667 | I172: 0.2177777778 | J172: 75.5 | K172: 71 | L172: 0 | M172: 0 | O172: 75.42138831 | P172: -2.421388315 | Q172: 5.863121371
B173: 165 | C173: 2011 | D173: 2011-06-16 | E173: =VLOOKUP(D173, data!$D$5:$E$6326,2, FALSE) -> 75.5 | F173: =VLOOKUP(D173, data!$G$5:$H$6326,2, FALSE) -> 71 | H173: 0.5 | I173: 0.25 | J173: 71 | K173: 64.5 | L173: 0 | M173: 0 | O173: 73.15420414 | P173: 2.34579586 | Q173: 5.502758218
B174: 166 | C174: 2011 | D174: 2011-06-15 | E174: =VLOOKUP(D174, data!$D$5:$E$6326,2, FALSE) -> 71 | F174: =VLOOKUP(D174, data!$G$5:$H$6326,2, FALSE) -> 64 | H174: 0.5333333333 | I174: 0.2844444444 | J174: 64.5 | K174: 69.5 | L174: 0 | M174: 0 | O174: 67.37647747 | P174: 3.623522535 | Q174: 13.12991556
B175: 167 | C175: 2011 | D175: 2011-06-14 | E175: =VLOOKUP(D175, data!$D$5:$E$6326,2, FALSE) -> 64.5 | F175: =VLOOKUP(D175, data!$G$5:$H$6326,2, FALSE) -> 65 | H175: 0.5666666667 | I175: 0.3211111111 | J175: 69.5 | K175: 67.5 | L175: 0 | M175: 0 | O175: 71.18558421 | P175: -6.685584213 | Q175: 44.69703627
B176: 168 | C176: 2011 | D176: 2011-06-13 | E176: =VLOOKUP(D176, data!$D$5:$E$6326,2, FALSE) -> 69.5 | F176: =VLOOKUP(D176, data!$G$5:$H$6326,2, FALSE) -> 63 | H176: 0.6 | I176: 0.36 | J176: 67.5 | K176: 67.5 | L176: 0 | M176: 0 | O176: 69.56037483 | P176: -0.06037483383 | Q176: 0.00364512056
B177: 169 | C177: 2011 | D177: 2011-06-12 | E177: =VLOOKUP(D177, data!$D$5:$E$6326,2, FALSE) -> 67.5 | F177: =VLOOKUP(D177, data!$G$5:$H$6326,2, FALSE) -> 57 | H177: 0.6333333333 | I177: 0.4011111111 | J177: 67.5 | K177: 79 | L177: 0 | M177: 0 | O177: 67.32409989 | P177: 0.1759001098 | Q177: 0.03094084862
B178: 170 | C178: 2011 | D178: 2011-06-11 | E178: =VLOOKUP(D178, data!$D$5:$E$6326,2, FALSE) -> 67.5 | F178: =VLOOKUP(D178, data!$G$5:$H$6326,2, FALSE) -> 57 | H178: 0.6666666667 | I178: 0.4444444444 | J178: 79 | K178: 87 | L178: 0 | M178: 0 | O178: 74.04813164 | P178: -6.548131644 | Q178: 42.87802802
B179: 171 | C179: 2011 | D179: 2011-06-10 | E179: =VLOOKUP(D179, data!$D$5:$E$6326,2, FALSE) -> 79 | F179: =VLOOKUP(D179, data!$G$5:$H$6326,2, FALSE) -> 60 | H179: 0.7 | I179: 0.49 | J179: 87 | K179: 85 | L179: 0 | M179: 0 | O179: 80.02298122 | P179: -1.02298122 | Q179: 1.046490576
B180: 172 | C180: 2011 | D180: 2011-06-09 | E180: =VLOOKUP(D180, data!$D$5:$E$6326,2, FALSE) -> 87 | F180: =VLOOKUP(D180, data!$G$5:$H$6326,2, FALSE) -> 59.5 | H180: 0.7333333333 | I180: 0.5377777778 | J180: 85 | K180: 78.5 | L180: 0 | M180: 0 | O180: 79.5524566 | P180: 7.4475434 | Q180: 55.46590269
B181: 173 | C181: 2011 | D181: 2011-06-08 | E181: =VLOOKUP(D181, data!$D$5:$E$6326,2, FALSE) -> 85 | F181: =VLOOKUP(D181, data!$G$5:$H$6326,2, FALSE) -> 80.5 | H181: 0.7666666667 | I181: 0.5877777778 | J181: 78.5 | K181: 73 | L181: 0 | M181: 0 | O181: 75.63879657 | P181: 9.361203426 | Q181: 87.63212959
B182: 174 | C182: 2011 | D182: 2011-06-07 | E182: =VLOOKUP(D182, data!$D$5:$E$6326,2, FALSE) -> 78.5 | F182: =VLOOKUP(D182, data!$G$5:$H$6326,2, FALSE) -> 85.5 | H182: 0.8 | I182: 0.64 | J182: 73 | K182: 64.5 | L182: 0 | M182: 0 | O182: 72.98481247 | P182: 5.515187529 | Q182: 30.41729348
B183: 175 | C183: 2011 | D183: 2011-06-06 | E183: =VLOOKUP(D183, data!$D$5:$E$6326,2, FALSE) -> 73 | F183: =VLOOKUP(D183, data!$G$5:$H$6326,2, FALSE) -> 76.5 | H183: 0.8333333333 | I183: 0.6944444444 | J183: 64.5 | K183: 69 | L183: 0 | M183: 0 | O183: 65.82690518 | P183: 7.17309482 | Q183: 51.45328929
B184: 176 | C184: 2011 | D184: 2011-06-05 | E184: =VLOOKUP(D184, data!$D$5:$E$6326,2, FALSE) -> 64.5 | F184: =VLOOKUP(D184, data!$G$5:$H$6326,2, FALSE) -> 72.5 | H184: 0.8666666667 | I184: 0.7511111111 | J184: 69 | K184: 68.5 | L184: 0 | M184: 0 | O184: 68.98511989 | P184: -4.485119891 | Q184: 20.11630044
B185: 177 | C185: 2011 | D185: 2011-06-04 | E185: =VLOOKUP(D185, data!$D$5:$E$6326,2, FALSE) -> 69 | F185: =VLOOKUP(D185, data!$G$5:$H$6326,2, FALSE) -> 78 | H185: 0.9 | I185: 0.81 | J185: 68.5 | K185: 72.5 | L185: 0 | M185: 0 | O185: 67.71123785 | P185: 1.288762147 | Q185: 1.660907872
B186: 178 | C186: 2011 | D186: 2011-06-03 | E186: =VLOOKUP(D186, data!$D$5:$E$6326,2, FALSE) -> 68.5 | F186: =VLOOKUP(D186, data!$G$5:$H$6326,2, FALSE) -> 71 | H186: 0.9333333333 | I186: 0.8711111111 | J186: 72.5 | K186: 82 | L186: 0 | M186: 0 | O186: 68.71250915 | P186: -0.2125091507 | Q186: 0.04516013913
B187: 179 | C187: 2011 | D187: 2011-06-02 | E187: =VLOOKUP(D187, data!$D$5:$E$6326,2, FALSE) -> 72.5 | F187: =VLOOKUP(D187, data!$G$5:$H$6326,2, FALSE) -> 62.5 | H187: 0.9666666667 | I187: 0.9344444444 | J187: =E188 -> 82 | K187: 0 | L187: 0 | M187: 1 | O187: 79.04080545 | P187: -6.540805453 | Q187: 42.78213598
B188: 180 | C188: 2011 | D188: 2011-06-01 | E188: =VLOOKUP(D188, data!$D$5:$E$6326,2, FALSE) -> 82 | F188: =VLOOKUP(D188, data!$G$5:$H$6326,2, FALSE) -> 70 | H188: 1 | I188: 1 | J188: 0 | K188: 0 | L188: 1 | M188: 0 | O188: 70.05352941 | P188: 11.94647059 | Q188: 142.7181595
B189: 181 | C189: 2010 | D189: =DATE(C189, 6, 30) -> 2010-06-30 | E189: =VLOOKUP(D189, data!$D$5:$E$6326,2, FALSE) -> 73 | F189: =VLOOKUP(D189, data!$G$5:$H$6326,2, FALSE) -> 65.5 | H189: =H159 -> 0.03333333333 | I189: =H189*H189 -> 0.001111111111 | J189: =E190 -> 81.5 | K189: =E191 -> 89 | L189: 0 | M189: 0 | O189: 78.54147972 | P189: -5.541479724 | Q189: 30.70799753
B190: 182 | C190: 2010 | D190: =D189-1 -> 2010-06-29 | E190: =VLOOKUP(D190, data!$D$5:$E$6326,2, FALSE) -> 81.5 | F190: =VLOOKUP(D190, data!$G$5:$H$6326,2, FALSE) -> 67 | H190: 0.06666666667 | I190: =H190*H190 -> 0.004444444444 | J190: =E191 -> 89 | K190: =E192 -> 84 | L190: 0 | M190: 0 | O190: 84.73302574 | P190: -3.233025741 | Q190: 10.45245544
B191: 183 | C191: 2010 | D191: 2010-06-28 | E191: =VLOOKUP(D191, data!$D$5:$E$6326,2, FALSE) -> 89 | F191: =VLOOKUP(D191, data!$G$5:$H$6326,2, FALSE) -> 72.5 | H191: 0.1 | I191: 0.01 | J191: 84 | K191: 80.5 | L191: 0 | M191: 0 | O191: 81.59297866 | P191: 7.407021337 | Q191: 54.86396509
B192: 184 | C192: 2010 | D192: 2010-06-27 | E192: =VLOOKUP(D192, data!$D$5:$E$6326,2, FALSE) -> 84 | F192: =VLOOKUP(D192, data!$G$5:$H$6326,2, FALSE) -> 78.5 | H192: 0.1333333333 | I192: 0.01777777778 | J192: 80.5 | K192: 81 | L192: 0 | M192: 0 | O192: 78.82198867 | P192: 5.178011327 | Q192: 26.81180131
B193: 185 | C193: 2010 | D193: 2010-06-26 | E193: =VLOOKUP(D193, data!$D$5:$E$6326,2, FALSE) -> 80.5 | F193: =VLOOKUP(D193, data!$G$5:$H$6326,2, FALSE) -> 78 | H193: 0.1666666667 | I193: 0.02777777778 | J193: 81 | K193: 86.5 | L193: 0 | M193: 0 | O193: 78.05322122 | P193: 2.44677878 | Q193: 5.986726398
B194: 186 | C194: 2010 | D194: 2010-06-25 | E194: =VLOOKUP(D194, data!$D$5:$E$6326,2, FALSE) -> 81 | F194: =VLOOKUP(D194, data!$G$5:$H$6326,2, FALSE) -> 73 | H194: =H164 -> 0.2 | I194: 0.04 | J194: 86.5 | K194: 82.5 | L194: 0 | M194: 0 | O194: 82.60715626 | P194: -1.60715626 | Q194: 2.582951244
B195: 187 | C195: 2010 | D195: 2010-06-24 | E195: =VLOOKUP(D195, data!$D$5:$E$6326,2, FALSE) -> 86.5 | F195: =VLOOKUP(D195, data!$G$5:$H$6326,2, FALSE) -> 74.5 | H195: 0.2333333333 | I195: 0.05444444444 | J195: 82.5 | K195: 77 | L195: 0 | M195: 0 | O195: 80.54112881 | P195: 5.958871186 | Q195: 35.50814582
B196: 188 | C196: 2010 | D196: 2010-06-23 | E196: =VLOOKUP(D196, data!$D$5:$E$6326,2, FALSE) -> 82.5 | F196: =VLOOKUP(D196, data!$G$5:$H$6326,2, FALSE) -> 78 | H196: 0.2666666667 | I196: 0.07111111111 | J196: 77 | K196: 82 | L196: 0 | M196: 0 | O196: 75.50600112 | P196: 6.99399888 | Q196: 48.91602033
B197: 189 | C197: 2010 | D197: 2010-06-22 | E197: =VLOOKUP(D197, data!$D$5:$E$6326,2, FALSE) -> 77 | F197: =VLOOKUP(D197, data!$G$5:$H$6326,2, FALSE) -> 77 | H197: 0.3 | I197: 0.09 | J197: 82 | K197: 82 | L197: 0 | M197: 0 | O197: 78.97482234 | P197: -1.974822344 | Q197: 3.899923291
B198: 190 | C198: 2010 | D198: 2010-06-21 | E198: =VLOOKUP(D198, data!$D$5:$E$6326,2, FALSE) -> 82 | F198: =VLOOKUP(D198, data!$G$5:$H$6326,2, FALSE) -> 76 | H198: 0.3333333333 | I198: 0.1111111111 | J198: 82 | K198: 71 | L198: 0 | M198: 0 | O198: 80.78616518 | P198: 1.213834824 | Q198: 1.473394981
B199: 191 | C199: 2010 | D199: 2010-06-20 | E199: =VLOOKUP(D199, data!$D$5:$E$6326,2, FALSE) -> 82 | F199: =VLOOKUP(D199, data!$G$5:$H$6326,2, FALSE) -> 72.5 | H199: 0.3666666667 | I199: 0.1344444444 | J199: 71 | K199: 73.5 | L199: 0 | M199: 0 | O199: 72.20512713 | P199: 9.794872869 | Q199: 95.93953453
B200: 192 | C200: 2010 | D200: 2010-06-19 | E200: =VLOOKUP(D200, data!$D$5:$E$6326,2, FALSE) -> 71 | F200: =VLOOKUP(D200, data!$G$5:$H$6326,2, FALSE) -> 75.5 | H200: 0.4 | I200: 0.16 | J200: 73.5 | K200: 71 | L200: 0 | M200: 0 | O200: 74.3026457 | P200: -3.302645704 | Q200: 10.90746865
B201: 193 | C201: 2010 | D201: 2010-06-18 | E201: =VLOOKUP(D201, data!$D$5:$E$6326,2, FALSE) -> 73.5 | F201: =VLOOKUP(D201, data!$G$5:$H$6326,2, FALSE) -> 78.5 | H201: 0.4333333333 | I201: 0.1877777778 | J201: 71 | K201: 69.5 | L201: 0 | M201: 0 | O201: 72.59459425 | P201: 0.9054057458 | Q201: 0.8197595646
B202: 194 | C202: 2010 | D202: 2010-06-17 | E202: =VLOOKUP(D202, data!$D$5:$E$6326,2, FALSE) -> 71 | F202: =VLOOKUP(D202, data!$G$5:$H$6326,2, FALSE) -> 74 | H202: 0.4666666667 | I202: 0.2177777778 | J202: 69.5 | K202: 72 | L202: 0 | M202: 0 | O202: =$O$7+SUMPRODUCT(H$7:M$7, H202:M202) -> 70.89316528 | P202: =E202-O202 -> 0.1068347244 | Q202: =P202*P202 -> 0.01141365834
B203: =B202+1 -> 195 | C203: 2010 | D203: 2010-06-16 | E203: =VLOOKUP(D203, data!$D$5:$E$6326,2, FALSE) -> 69.5 | F203: =VLOOKUP(D203, data!$G$5:$H$6326,2, FALSE) -> 72.5 | H203: 0.5 | I203: 0.25 | J203: 72 | K203: 75 | L203: 0 | M203: 0 | O203: 71.9994932 | P203: -2.499493196 | Q203: 6.247466238
... 315 more rows

Sheet ols A
B2: TAB: OLS REGRESSION OUTPUT
B4: OLS | C4: =_xll.FS("Reg.ols", Aug!E9:E535, Aug!H9:M535, 1) -> jmathkr.lib.jcalc.objects.stats.regression.linear.OutputLReg@Thu, 3 Aug 2017 06:37:11:768..5639782968444374859
B6: August outptut | K6: Regression statistics
B8: # | C8: Variable | D8: =_xll.FS("Reg.get", C4, "table-standard") -> COEFF | E8: STDEV | F8: T-STATS | G8: P-VALUE | H8: CI-LEFT | I8: CI-RIGHT | K8: =_xll.FS("Reg.get", C4, "stats") -> MaxAbsRes | L8: 11.13908078
B9: 1 | C9: constant | D9: 27.77260662 | E9: 2.749804515 | F9: 10.09984763 | G9: 0 | H9: 22.38298977 | I9: 33.16222347 | K9: SST | L9: 13802.18658
B10: =B9+1 -> 2 | C10: =Aug!H8 -> Linear | D10: -1.749243939 | E10: 2.508681638 | F10: -0.6972761757 | G10: 0.4859409954 | H10: -6.666259949 | I10: 3.167772072 | K10: SSR | L10: 6971.323212
B11: 3 | C11: =Aug!I8 -> Quadratic | D11: 3.193868142 | E11: 2.51161444 | F11: 1.271639505 | G11: 0.2040685925 | H11: -1.728896159 | I11: 8.116632444 | K11: SSE | L11: 6830.863369
B12: 4 | C12: =Aug!J8 -> EWR T[t-1] | D12: 0.8008497427 | E12: 0.04488385682 | F12: 17.84271227 | G12: 0 | H12: 0.7128773833 | I12: 0.8888221021 | K12: MSE | L12: 13.01116832
B13: 5 | C13: =Aug!K8 -> EWR T[t-2] | D13: -0.165138317 | E13: 0.04546602312 | F13: -3.632125832 | G13: 0.0003089049079 | H13: -0.2542517223 | I13: -0.07602491172 | K13: R2 | L13: 0.5050883185
B14: 6 | C14: =Aug!L8 -> Aug 1st | D14: 49.60629859 | E14: 3.086265555 | F14: 16.07324377 | G14: 0 | H14: 43.5572181 | I14: 55.65537908 | K14: S2 | L14: 13.13627571
B15: 7 | C15: =Aug!M8 -> Aug 2nd | D15: -12.7855523 | E15: 3.735386834 | F15: -3.422818804 | G15: 0.0006685116934 | H15: -20.10691049 | I15: -5.464194102 | K15: S | L15: 3.624400048
K16: r | L16: 6
K17: n | L17: 527
B20: OLS | C20: =_xll.FS("Reg.ols", Jul!E9:E535, Jul!H9:M535, 1) -> jmathkr.lib.jcalc.objects.stats.regression.linear.OutputLReg@Thu, 3 Aug 2017 06:37:11:737..3478511774899498489
B22: July outptut | K22: Regression statistics
B24: # | C24: Variable | D24: =_xll.FS("Reg.get", C20, "table-standard") -> COEFF | E24: STDEV | F24: T-STATS | G24: P-VALUE | H24: CI-LEFT | I24: CI-RIGHT | K24: =_xll.FS("Reg.get", C20, "stats") -> MaxAbsRes | L24: 13.69769924
B25: 1 | C25: =C9 -> constant | D25: 26.24386529 | E25: 2.702289498 | F25: 9.71171494 | G25: 0 | H25: 20.94737788 | I25: 31.54035271 | K25: SST | L25: 14642.94426
B26: =B25+1 -> 2 | C26: =C10 -> Linear | D26: 1.248842955 | E26: 2.577029904 | F26: 0.484605535 | G26: 0.6281598532 | H26: -3.802135657 | I26: 6.299821568 | K26: SSR | L26: 7439.154532
B27: 3 | C27: Quadratic | D27: -1.350962968 | E27: 2.587460248 | F27: -0.5221193133 | G27: 0.6018091712 | H27: -6.422385054 | I27: 3.720459118 | K27: SSE | L27: 7203.789727
B28: 4 | C28: EWR T[t-1] | D28: 0.8100376412 | E28: 0.04361093521 | F28: 18.57418643 | G28: 0 | H28: 0.7245602082 | I28: 0.8955150742 | K28: MSE | L28: 13.72150424
B29: 5 | C29: EWR T[t-2] | D29: -0.1474875152 | E29: 0.04424473711 | F29: -3.333447655 | G29: 0.0009187674216 | H29: -0.2342071999 | I29: -0.06076783044 | K29: R2 | L29: 0.5080367992
B30: 6 | C30: =Jul!L8 -> Jul 1st | D30: 50.38766648 | E30: 2.825758508 | F30: 17.83155438 | G30: 0 | H30: 44.84917981 | I30: 55.92615316 | K30: S2 | L30: 13.85344178
B31: 7 | C31: =Jul!M8 -> Jul 2nd | D31: -11.23774086 | E31: 3.532374979 | F31: -3.181355582 | G31: 0.001553233623 | H31: -18.16119582 | I31: -4.314285899 | K31: S | L31: 3.722021196
K32: r | L32: 6
K33: n | L33: 527
B36: OLS | C36: =_xll.FS("Reg.ols", Jun!E9:E518, Jun!H9:M518, 1) -> jmathkr.lib.jcalc.objects.stats.regression.linear.OutputLReg@Thu, 3 Aug 2017 06:37:11:752..5244343252544984900
B38: June outptut | K38: Regression statistics
B40: # | C40: Variable | D40: =_xll.FS("Reg.get", C36, "table-standard") -> COEFF | E40: STDEV | F40: T-STATS | G40: P-VALUE | H40: CI-LEFT | I40: CI-RIGHT | K40: =_xll.FS("Reg.get", C36, "stats") -> MaxAbsRes | L40: 13.55352941
B41: 1 | C41: =C25 -> constant | D41: 35.53411196 | E41: 3.144987221 | F41: 11.29865067 | G41: 0 | H41: 29.36993701 | I41: 41.69828691 | K41: SST | L41: 22115.03996
B42: =B41+1 -> 2 | C42: =C26 -> Linear | D42: -4.100612663 | E42: 3.336440629 | F42: -1.229038103 | G42: 0.2196310303 | H42: -10.6400363 | I42: 2.43881097 | K42: SSR | L42: 11323.71054
B43: 3 | C43: Quadratic | D43: -0.9972983026 | E43: 3.29474494 | F43: -0.302693629 | G43: 0.7622482395 | H43: -7.454998385 | I43: 5.46040178 | K43: SSE | L43: 10791.32942
B44: 4 | C44: EWR T[t-1] | D44: 0.7248692339 | E44: 0.04416512787 | F44: 16.41270543 | G44: 0 | H44: 0.6383055833 | I44: 0.8114328845 | K44: MSE | L44: 21.24277445
B45: 5 | C45: EWR T[t-2] | D45: -0.179007636 | E45: 0.04452813878 | F45: -4.020101466 | G45: 6.706934228e-05 | H45: -0.266282788 | I45: -0.09173248395 | K45: R2 | L45: 0.5120366302
B46: 6 | C46: =Jun!L8 -> Jun 1st | D46: 39.61732842 | E46: 3.008964701 | F46: 13.16643176 | G46: 0 | H46: 33.7197576 | I46: 45.51489923 | K46: S2 | L46: 21.45393523
B47: 7 | C47: =Jun!M8 -> Jun 2nd | D47: -11.03673825 | E47: 3.383045023 | F47: -3.262368127 | G47: 0.001179743576 | H47: -17.6675065 | I47: -4.405970008 | K47: S | L47: 4.631839293
K48: r | L48: 6
K49: n | L49: 510

Sheet config
B2: TAB: CONFIGURATION FILE
B5: Path to xlloop jar file | C5: C:\Projects\java\data\jcalc\xlloop\xlloop-ecolab.jar
B7: Test connection | C7: =_xll.FS("JCalc.testConnection") -> 1
